Workbook

Sheet selite
A1: VALTIOVARAINMINISTERIÖ/Kunta- ja aluehallinto-osasto/vjl | H1: 2019-06-14
A3: KUNTAKONSERNIN TALOUDEN SUUNNITTELUKEHIKKO
A5: Kehikon käyttötarkoitus:
A6: Vuorovaikutteinen kuntakonsernin talouden suunnittelun apuväline. Kehikon avulla voidaan suunnitella konsernin talouden
A7: kehitystä pidemmällä aikavälillä. Tarkastelun kohteena ovat konsernin tuloslaskelma, rahoituslaskelmasta rahavarat, antolainat ja
A8: investoinnit sekä taseesta lainat ja kertynyt yli-/alijäämä. Pohjatietoina kehikossa ovat 2 viimeksi
A9: valmistunutta tilinpäätöstä.
A10: Tulevan kehityksen osalta tuloslaskelman erien kasvuolettamukset pohjautuvat lähtökohtaisesti
A11: uusimman valtion kuntatalousohjelman (huhtikuu 2019) mukaisiin makroarviolukuihin - ei kuntakohtaisiin ennusteisiin.
A12: Käyttäjä voi kuitenkin itse muokata em. kasvuolettamuksia sekä yleensä tuloslaskelman muita eriä.
A13: Myös tuloveroprosenttia, investointeja ja antolainasaamisten määrää voidaan muuttaa.
A14: Rahoituslaskelman ja taseen erät pohjautuvat jäljempänä selostettuihin olettamuksiin
A15: (pl. taseen kertynyt yli-/alijäämä = ed. tilikausien yli-/alijäämä + tilikauden yli-/alijäämä).
A17: Käyttäjä voi muokata vaaleansinisellä pohjalla olevia kohtia (soluja).
A19: Kehikon laskentapohja:
A20: Asukasluku:
A21: Kunnan asukaslukuina käytetään lähtökohtaisesti viimeisintä väestötietoa (tässä 31.12.2018). Tulevien vuosien
A22: osalta asukaslukutiedot perustuvat tilastokeskuksen viimeisimpään väestöennusteeseen (TK, 2015).
A23: Tuloveroprosentti:
A24: Tuloveroprosentti perustuu viimeksi vahvistettuun tietoon (tässä vuoden 2018 veroprosentti). Tulevien vuosien osalta
A25: tuloveroprosentti on lähtökohtaisesti sama kuin edellisvuonna, mutta sitä voidaan muuttaa kehikossa. Kehikko
A26: laskee automaattisesti veroprosentin muutoksen vaikutuksen kunnallisveron tuottoon (edellisvuoden
A27: veroprosenttiyksikön tuoton perusteella).
A28: Tuloslaskelma:
A29: Tuloslaskelman pohjana ovat kuntien tilinpäätökset kahdelta viimeiseltä vuodelta. Tässä tapauksessa vuodet
A30: 2017 ja 2018. Tuloslaskelman keskeisten erien tulevien vuosien kasvuprosentit perustuvat lähtökohtaisesti
A31: kuntatalousohjelman (KTO 2020-2023, VM, huhtikuu 2019) mukaisiin makroennusteisiin eli kasvuprosentit
A32: ovat näin kaikilla kunnilla samat. Em. keskeiset tuloslaskelman erät ovat seuraavat:
B33: 1) toimintatuotot,
B34: 2) toimintamenot,
B35: 3) kunnallisverot (pl. veroprosentin noston vaikutus),
B36: 4) yhteisöverot,
B37: 5) kiinteistöverot ja
B38: 6) valtionosuudet.
A39: Käyttäjä voi muokata em. erien kasvuolettamuksia haluamikseen kirjoittamalla taulukkoon uudet kasvuprosentit.
A41: Verotuloissa on käytetty kunnan verotuloja, koska Tilastokeskus ei kerää konsernitasolla eri veromuotoja.
A42: TK:sta ilmoitettu yhteenlaskettu konsernitason verotulot saattaa poiketa perunkunnan yhteenlasketusta
A44: Korkokulujen kehitys perustuu edellisvuoden lainamäärään ja valittuun korkokantaan. Korkoprosentti (keskim.)
A45: voidaan siis valita halutun mukaiseksi. Korkoprosentti ei vaikuta korkotuottoihin, vaan sen perustuu ed. vuoden määrään.
A47: Muiden tuloslaskelman erien on oletettu edellisvuoden mukaisesti, mutta käyttäjä voi muokata niitä haluamikseen.
A48: Rahoituslaskelma ja tase:
A49: Kehikossa tuloslaskelma "päätyy" taseen kertyneeseen yli-/alijäämään, jolloin voidaan tarkastella esim. milloin kunnan mahdollinen
A50: taseen alijäämä tulisi katetuksi valituilla tuloslaskelman kasvuoletuksilla (vrt. kuntalaki ja alijäämän kattamisvelvollisuus).
A52: Investoinnit ja niihin liittyvät rahoitusosuudet sekä pysyvien vastaavien luovutustulot ovat lähtökohtaisesti viimeksi toteutuneen
A53: tilinpäätöksen mukaiset, mutta ne ovat myös muutettavissa.
A55: Kehikossa ns. bruttorahoitustarve katetaan joko lainanlisäyksellä tai/ja rahavarojen purulla. Käyttäjä voi valita prosenttiosuuden,
A56: jolla rahavaroja käytetään bruttorahoitustarpeen kattamiseen. Mikäli rahavaroja ei ole, tarve katetaan kaikkiaan lainanlisäyksellä.
A57: Bruttorahoitustarve voi olla myös positiivinen, jolloin "ylijäämä" lisää rahavaroja.
A59: Bruttorahoitustarve muodostuu seuraavista eristä = Vuosikate + tulorahoituksen korjauserät + satunnaiset erät, netto + investoinnit,
A60: netto + antolainasaamisten muutokset, netto + lainanlyhennykset. Bruttorahoitustarve voi olla myös positiivinen, jolloin "ylijäämä"
A62: Lainamäärää lyhennetään valitun keskimääräisen lyhennysajan (kuoletusaika) mukaan eli jos keskimääräinen lainanmaksuaika
A63: on esimerkiksi 8 vuotta, niin vuosittainen lainanlyhennys on 1/8 (12,5 %) edellisvuoden lainamäärästä. Lainanlyhennys
A64: tehdään aina, vaikka bruttorahoitustarve olisi negatiivinen.
A69: Lisätietoja: Neuvotteleva virkamies Vesa Lappalainen, puh. 02955 30389, etunimi.sukunimi@vm.fi

Sheet KEHIKKO
A1: Valtiovarainministeriö/Kunta- ja aluehallinto-osasto/vjl | H1: VALITSE KUNTA: | L1: 2019-06-05
A2: KUNTAKONSERNIN TALOUDEN SUUNNITTELUKEHIKKO | J2: Kunnat vuoden 2019 jaolla
A3: Muokkaa vaaleansinisellä olevia kohtia.
A4: =INDEX(pohjatiedot!$B$3:$B$298,KEHIKKO!$A$5) -> KOKO MAA (Manner-Suomi)
A5: 96 | B5: TP 2017 | C5: TP 2018 | D5: 2019 | E5: 2020 | F5: 2021 | G5: 2022 | H5: 2023 | I5: 2024 | J5: 2025 | K5: 2026 | L5: 2027 | M5: 2028
A6: TULOSLASKELMA
A7: Asukasluku 31.12. | B7: =VLOOKUP($A$4,pohjatiedot!$B$3:$CF$298,2) -> 5483641 | C7: =VLOOKUP($A$4,pohjatiedot!$B$3:$CF$298,42) -> 5488130 | D7: =VLOOKUP($A$4,väestöennuste!$A$8:$K$305,4) -> 5537202.993 | E7: =VLOOKUP($A$4,väestöennuste!$A$8:$K$305,5) -> 5557695.497 | F7: =VLOOKUP($A$4,väestöennuste!$A$8:$K$305,6) -> 5577842.87 | G7: =VLOOKUP($A$4,väestöennuste!$A$8:$K$305,7) -> 5597557.105 | H7: =VLOOKUP($A$4,väestöennuste!$A$8:$K$305,8) -> 5564874 | I7: =VLOOKUP($A$4,väestöennuste!$A$8:$K$305,9) -> 5584791 | J7: =VLOOKUP($A$4,väestöennuste!$A$8:$K$305,10) -> 5604290 | K7: =VLOOKUP($A$4,väestöennuste!$A$8:$K$305,11) -> 5623257 | L7: =VLOOKUP($A$4,väestöennuste!$A$8:$M$305,12) -> 5623257 | M7: =VLOOKUP($A$4,väestöennuste!$A$8:$N$305,13) -> 5623257 | N7: Väestöennuste TK 2015
A8: Veroprosentti | B8: =VLOOKUP($A$4,pohjatiedot!$B$3:$CF$298,3) -> 19.92 | C8: =VLOOKUP($A$4,pohjatiedot!$B$3:$CF$298,43) -> 19.87 | D8: =VLOOKUP($A$4,pohjatiedot!$B$3:$CI$298,83) -> 19.9 | E8: =D8 -> 19.9 | F8: =E8 -> 19.9 | G8: =F8 -> 19.9 | H8: =G8 -> 19.9 | I8: =H8 -> 19.9 | J8: =I8 -> 19.9 | K8: =J8 -> 19.9 | L8: =K8 -> 19.9 | M8: =L8 -> 19.9
A9: vero-% yksikön tuotto | B9: =B15/B8 -> 945165.2108 | C9: =C15/C8 -> 939334.0715 | D9: =D15/D8 -> 998512.118 | E9: =E15/E8 -> 1031463.018 | F9: 1071690.076 | G9: 1107055.848 | H9: 1141374.579 | I9: 1176757.191 | J9: 1213236.664 | K9: 1250847.001 | L9: 1289623.258 | M9: 1329601.579
A10: → noston vaikutus | D10: =(D8-C8)*C9 -> 28180.02214 | E10: =(E8-D8)*D9 -> 0 | F10: =(F8-E8)*E9 -> 0 | G10: 0 | H10: 0 | I10: 0 | J10: 0 | K10: 0 | L10: 0 | M10: 0
A11: Toimintatuotot (sis. valm. okäytt.) | B11: =VLOOKUP($A$4,pohjatiedot!$B$3:$CF$298,6) -> 24653392 | C11: =VLOOKUP($A$4,pohjatiedot!$B$3:$CF$298,46) -> 25941171 | D11: =C11*(1+D70/100) -> 26356229.74 | E11: =D11*(1+E70/100) -> 26830641.87 | F11: =E11*(1+F70/100) -> 27367254.71 | G11: =F11*(1+G70/100) -> 27941967.06 | H11: =G11*(1+H70/100) -> 28528748.37 | I11: 29127852.08 | J11: 29739536.98 | K11: 30364067.25 | L11: 31001712.66 | M11: 31652748.63 | O11: Näiden erin muutos-
A12: Toimintakulut | B12: =VLOOKUP($A$4,pohjatiedot!$B$3:$CF$298,7) -> 50758330 | C12: =VLOOKUP($A$4,pohjatiedot!$B$3:$CF$298,47) -> 52925761 | D12: =C12*(1+D71/100) -> 54354756.55 | E12: 56202818.27 | F12: =E12*(1+F71/100) -> 58057511.27 | G12: =F12*(1+G71/100) -> 59973409.14 | H12: 61892558.24 | I12: 63873120.1 | J12: 65917059.94 | K12: 68026405.86 | L12: 70203250.85 | M12: 72449754.88 | O12: prosentit syötetään
A13: Osuus osakk.yht. voitoista/tappioista | B13: =VLOOKUP($A$4,pohjatiedot!$B$3:$CF$298,8) -> 81900 | C13: =VLOOKUP($A$4,pohjatiedot!$B$3:$CF$298,48) -> 66298 | D13: =C13 -> 66298 | E13: =D13 -> 66298 | F13: =E13 -> 66298 | G13: 66298 | H13: 66298 | I13: 66298 | J13: 66298 | K13: 66298 | L13: 66298 | M13: 66298 | O13: alla olevaan taulukkoon
A14: Toimintakate | B14: =B11-B12+B13 -> -26023038 | C14: =C11-C12+C13 -> -26918292 | D14: =D11-D12+D13 -> -27932228.81 | E14: =E11-E12+E13 -> -29305878.4 | F14: -30623958.56 | G14: -31965144.09 | H14: -33297511.87 | I14: -34678970.02 | J14: -36111224.97 | K14: -37596040.61 | L14: -39135240.19 | M14: -40730708.25
A15: Kunnallisverot | B15: =VLOOKUP($A$4,pohjatiedot!$B$3:$CF$298,9) -> 18827691 | C15: =VLOOKUP($A$4,pohjatiedot!$B$3:$CF$298,49) -> 18664568 | D15: =(C15+D10)*(1+D72/100) -> 19870391.15 | E15: =(D15+E10)*(1+E72/100) -> 20526114.06 | F15: =(E15+F10)*(1+F72/100) -> 21326632.5 | G15: =F15*(1+G72/100) -> 22030411.38 | H15: =(G15+H10)*(1+H72/100) -> 22713354.13 | I15: 23417468.11 | J15: 24143409.62 | K15: 24891855.32 | L15: 25663502.83 | M15: 26459071.42
A16: Yhteisöverot | B16: =VLOOKUP($A$4,pohjatiedot!$B$3:$CF$298,10) -> 1887798 | C16: =VLOOKUP($A$4,pohjatiedot!$B$3:$CF$298,50) -> 1866127 | D16: =C16*(1+D73/100) -> 1974362.366 | E16: =D16*(1+E73/100) -> 2039516.324 | F16: 2133334.075 | G16: 2210134.102 | H16: 2267597.588 | I16: 2326555.126 | J16: 2387045.559 | K16: 2449108.743 | L16: 2512785.571 | M16: 2578117.996
A17: Kiinteistöverot | B17: =VLOOKUP($A$4,pohjatiedot!$B$3:$CF$298,11) -> 1719296 | C17: =VLOOKUP($A$4,pohjatiedot!$B$3:$CF$298,51) -> 1790525 | D17: =C17*(1+D74/100) -> 1872889.15 | E17: 1899109.598 | F17: 1923798.023 | G17: 1943036.003 | H17: 1956637.255 | I17: 1970333.716 | J17: 1984126.052 | K17: 1998014.934 | L17: 2012001.039 | M17: 2026085.046
A18: Verotulot | B18: =VLOOKUP($A$4,pohjatiedot!$B$3:$CF$298,12) -> 22434785 | C18: =VLOOKUP($A$4,pohjatiedot!$B$3:$CF$298,52) -> 22270468 | D18: =SUM(D15:D17) -> 23717642.66 | E18: 24464739.98 | F18: 25383764.6 | G18: 26183581.48 | H18: 26937588.97 | I18: 27714356.95 | J18: 28514581.23 | K18: 29338978.99 | L18: 30188289.44 | M18: 31063274.46
A19: Valtionosuudet | B19: =VLOOKUP($A$4,pohjatiedot!$B$3:$CF$298,13) -> 9699290 | C19: =VLOOKUP($A$4,pohjatiedot!$B$3:$CF$298,53) -> 9617527 | D19: =C19*(1+D75/100) -> 9386706.352 | E19: =D19*(1+E75/100) -> 10447404.17 | F19: =E19*(1+F75/100) -> 10614562.64 | G19: =F19*(1+G75/100) -> 11017916.02 | H19: =G19*(1+H75/100) -> 11524740.15 | I19: 11639987.55 | J19: 11756387.43 | K19: 11873951.3 | L19: 11992690.82 | M19: 12112617.73
D20: Kuntatalousohjelman (KTO, kevät -19) %-muutokset
A21: Korkotuotot | B21: =VLOOKUP($A$4,pohjatiedot!$B$3:$CF$298,14) -> 78182 | C21: =VLOOKUP($A$4,pohjatiedot!$B$3:$CF$298,54) -> 79083 | D21: =C21 -> 79083 | E21: =D21 -> 79083 | F21: 79083 | G21: 79083 | H21: 79083 | I21: 79083 | J21: 79083 | K21: 79083 | L21: 79083 | M21: 79083
A22: Korkokulut | B22: =VLOOKUP($A$4,pohjatiedot!$B$3:$CF$298,15) -> 449810 | C22: =VLOOKUP($A$4,pohjatiedot!$B$3:$CF$298,55) -> 413842 | D22: =($H$78/100)*C61 -> 611816.417 | E22: =($H$78/100)*D61 -> 630970.5359 | F22: 643535.8596 | G22: 659684.3914 | H22: 677989.7726 | I22: 697440.9121 | J22: 732741.5669 | K22: 781787.4998 | L22: 840895.7316 | M22: 910718.3468
A23: Muut rahoitustuotot | B23: =VLOOKUP($A$4,pohjatiedot!$B$3:$CF$298,16) -> 223419 | C23: =VLOOKUP($A$4,pohjatiedot!$B$3:$CF$298,56) -> 213264 | D23: =C23 -> 213264 | E23: =D23 -> 213264 | F23: 213264 | G23: 213264 | H23: 213264 | I23: 213264 | J23: 213264 | K23: 213264 | L23: 213264 | M23: 213264
A24: Muut rahoituskulut | B24: =VLOOKUP($A$4,pohjatiedot!$B$3:$CF$298,17) -> 67744 | C24: =VLOOKUP($A$4,pohjatiedot!$B$3:$CF$298,57) -> 110352 | D24: =C24 -> 110352 | E24: =D24 -> 110352 | F24: 110352 | G24: 110352 | H24: 110352 | I24: 110352 | J24: 110352 | K24: 110352 | L24: 110352 | M24: 110352
A25: VUOSIKATE | B25: =VLOOKUP($A$4,pohjatiedot!$B$3:$CF$298,18) -> 5909985 | C25: =VLOOKUP($A$4,pohjatiedot!$B$3:$CF$298,58) -> 4737856 | D25: =D14+D18+D19+D21-D22+D23-D24 -> 4742298.788 | E25: =E14+E18+E19+E21-E22+E23-E24 -> 5157290.213 | F25: 4912827.815 | G25: 4758664.019 | H25: 4668822.482 | I25: 4159928.572 | J25: 3608997.124 | K25: 3017097.189 | L25: 2386839.341 | M25: 1716460.593
A26: €/asukas | B26: =1000*B25/B7 -> 1077.748343 | C26: =1000*C25/C7 -> 863.2915037 | D26: =1000*D25/D7 -> 856.443008 | E26: =1000*E25/E7 -> 927.9547999 | F26: 880.7755845 | G26: 850.1322863 | H26: 838.9808074 | I26: 744.8673678 | J26: 643.9704448 | K26: 536.5390891 | L26: 424.4585195 | M26: 305.2431345
A27: Poistot ja arvonalent. | B27: =VLOOKUP($A$4,pohjatiedot!$B$3:$CF$298,20) -> 4146302 | C27: =VLOOKUP($A$4,pohjatiedot!$B$3:$CF$298,60) -> 4281238 | D27: =C27*$O$27 -> 4420565.316 | E27: =D27*$O$27 -> 4564426.859 | F27: 4712970.188 | G27: 4866347.666 | H27: 5024716.615 | I27: 5188239.475 | J27: 5357083.974 | K27: 5531423.296 | L27: 5711436.266 | M27: 5897307.522 | O27: =C27/B27 -> 1.032543698 | P27: kasvuoletus 04/19
A28: Satunnaiset erät, netto | B28: =VLOOKUP($A$4,pohjatiedot!$B$3:$CF$298,21) -> 84151 | C28: =VLOOKUP($A$4,pohjatiedot!$B$3:$CF$298,61) -> -9816 | D28: 0 | E28: =D28 -> 0 | F28: 0 | G28: 0 | H28: 0 | I28: 0 | J28: 0 | K28: 0 | L28: 0 | M28: 0
A30: Tilikauden tulos | B30: =VLOOKUP($A$4,pohjatiedot!$B$3:$CF$298,23) -> 1847834 | C30: =VLOOKUP($A$4,pohjatiedot!$B$3:$CF$298,63) -> 446802 | D30: =D25-D27+D28-D29 -> 321733.4711 | E30: =E25-E27+E28-E29 -> 592863.3541 | F30: =F25-F27+F28-F29 -> 199857.6264 | G30: -107683.6471 | H30: -355894.1333 | I30: -1028310.903 | J30: -1748086.85 | K30: -2514326.108 | L30: -3324596.924 | M30: -4180846.93
A31: Tilinpäätössiirrot | B31: =VLOOKUP($A$4,pohjatiedot!$B$3:$CF$298,24) -> -9621 | C31: =VLOOKUP($A$4,pohjatiedot!$B$3:$CF$298,64) -> 17985 | D31: =C31 -> 17985 | E31: 17985 | F31: 17985 | G31: 17985 | H31: 17985 | I31: 17985 | J31: 17985 | K31: 17985 | L31: 17985 | M31: 17985
A32: Tilikauden verot | B32: =VLOOKUP($A$4,pohjatiedot!$B$3:$CF$298,25) -> -78796 | C32: =VLOOKUP($A$4,pohjatiedot!$B$3:$CF$298,65) -> -84766 | D32: =C32 -> -84766 | E32: -84766 | F32: -84766 | G32: -84766 | H32: -84766 | I32: -84766 | J32: -84766 | K32: -84766 | L32: -84766 | M32: -84766
A33: Laskennalliset verot | B33: =VLOOKUP($A$4,pohjatiedot!$B$3:$CF$298,26) -> -48127 | C33: =VLOOKUP($A$4,pohjatiedot!$B$3:$CF$298,66) -> -64631 | D33: -64631 | E33: -64631 | F33: -64631 | G33: -64631 | H33: -64631 | I33: -64631 | J33: -64631 | K33: -64631 | L33: -64631 | M33: -64631
A34: Vähemmistöosuudet | B34: =VLOOKUP($A$4,pohjatiedot!$B$3:$CF$298,27) -> -39026 | C34: =VLOOKUP($A$4,pohjatiedot!$B$3:$CF$298,67) -> -26068 | D34: -26068 | E34: -26068 | F34: -26068 | G34: -26068 | H34: -26068 | I34: -26068 | J34: -26068 | K34: -26068 | L34: -26068 | M34: -26068
A35: Tilikauden yli-/alijäämä | B35: =VLOOKUP($A$4,pohjatiedot!$B$3:$CF$298,29) -> 1672264 | C35: =VLOOKUP($A$4,pohjatiedot!$B$3:$CF$298,68) -> 289322 | D35: =D30+D31+D32+D33 -> 190321.4711 | E35: =E30+E31+E32+E33 -> 461451.3541 | F35: 68445.62643 | G35: -239095.6471 | H35: -487306.1333 | I35: -1159722.903 | J35: -1879498.85 | K35: -2645738.108 | L35: -3456008.924 | M35: -4312258.93
A36: TASEESTA
A37: Kertynyt yli-/alijäämä | B37: =VLOOKUP($A$4,pohjatiedot!$B$3:$CF$298,31) -> 12311904 | C37: =VLOOKUP($A$4,pohjatiedot!$B$3:$CF$298,70) -> 12554784 | D37: =C37+D35 -> 12745105.47 | E37: 13206556.83 | F37: 13275002.45 | G37: 13035906.8 | H37: 12548600.67 | I37: 11388877.77 | J37: 9509378.918 | K37: 6863640.811 | L37: 3407631.886 | M37: -904627.0434
A38: €/asukas | B38: =1000*B37/B7 -> 2245.206059 | C38: =1000*C37/C7 -> 2287.625111 | D38: 2301.722636 | E38: 2376.264916 | F38: 2379.952745 | G38: 2328.856421 | H38: 2254.965822 | I38: 2039.266602 | J38: 1696.803506 | K38: 1220.581028 | L38: 605.989 | M38: -160.8724345
A40: RAHOITUSLASKELMAN JA TASEEN TIETOJA (sisältäen rahoitusjäämän ja sen vajeen kattamisoletukset)
A41: Vuosikate | B41: =B25 -> 5909985 | C41: =C25 -> 4737856 | D41: =D25 -> 4742298.788 | E41: =E25 -> 5157290.213 | F41: 4912827.815 | G41: 4758664.019 | H41: 4668822.482 | I41: 4159928.572 | J41: 3608997.124 | K41: 3017097.189 | L41: 2386839.341 | M41: 1716460.593
A42: Tulorahoituksen korjauserät | C42: =VLOOKUP($A$4,pohjatiedot!$B$3:$CV$298,97) -> -238957 | D42: =C42 -> -238957 | E42: =D42 -> -238957 | F42: =E42 -> -238957 | G42: -238957 | H42: -238957 | I42: -238957 | J42: -238957 | K42: -238957 | L42: -238957 | M42: -238957
A43: Satunnaiset erät, netto | B43: =B28-B29 -> 84151 | C43: =C28-C29 -> -9816 | D43: =D28-D29 -> 0 | E43: =E28-E29 -> 0 | F43: 0 | G43: 0 | H43: 0 | I43: 0 | J43: 0 | K43: 0 | L43: 0 | M43: 0
A44: = 1. Tulorahoitus, netto | C44: =SUM(C41:C43) -> 4489083 | D44: =SUM(D41:D43) -> 4503341.788 | E44: 4918333.213 | F44: 4673870.815 | G44: 4519707.019 | H44: 4429865.482 | I44: 3920971.572 | J44: 3370040.124 | K44: 2778140.189 | L44: 2147882.341 | M44: 1477503.593
A45: Investointimenot | C45: =VLOOKUP($A$4,pohjatiedot!$B$3:$CW$298,98) -> -7992634 | D45: =C45 -> -7992634 | E45: =D45 -> -7992634 | F45: -7992634 | G45: -7992634 | H45: -7992634 | I45: -7992634 | J45: -7992634 | K45: -7992634 | L45: -7992634 | M45: -7992634
A46: Rahoitusosuudet investointeihin | C46: =VLOOKUP($A$4,pohjatiedot!$B$3:$CW$298,99) -> 167702 | D46: =C46 -> 167702 | E46: =D46 -> 167702 | F46: 167702 | G46: 167702 | H46: 167702 | I46: 167702 | J46: 167702 | K46: 167702 | L46: 167702 | M46: 167702
A47: Inv.hyödykkeiden luovutustulot | C47: =VLOOKUP($A$4,pohjatiedot!$B$3:$CW$298,100) -> 1584265 | D47: =C47 -> 1584265 | E47: =D47 -> 1584265 | F47: 1584265 | G47: 1584265 | H47: 1584265 | I47: 1584265 | J47: 1584265 | K47: 1584265 | L47: 1584265 | M47: 1584265
A48: = 2. Nettoinvestoinnit | B48: =VLOOKUP($A$4,pohjatiedot!$B$3:$CF$298,34) -> -5826619 | C48: =C47+C46+C45 -> -6240667 | D48: =D47+D46+D45 -> -6240667 | E48: =E47+E46+E45 -> -6240667 | F48: -6240667 | G48: -6240667 | H48: -6240667 | I48: -6240667 | J48: -6240667 | K48: -6240667 | L48: -6240667 | M48: -6240667
A49: €/asukas | B49: =1000*B48/B7 -> -1062.54567 | C49: -1137.120841 | D49: -1127.043203 | E49: -1122.887535 | F49: -1118.831625 | G49: -1114.891172 | H49: -1121.439048 | I49: -1117.439668 | J49: -1113.551761 | K49: -1109.7958 | L49: -1109.7958 | M49: -1109.7958
A50: Vuosikate-nettoinv. | B50: =B25+B48 -> 83366 | C50: -1502811 | D50: -1498368.212 | E50: -1083376.787 | F50: -1327839.185 | G50: -1482002.981 | H50: -1571844.518 | I50: -2080738.428 | J50: -2631669.876 | K50: -3223569.811 | L50: -3853827.659 | M50: -4524206.407
A51: €/asukas | B51: =1000*B50/B7 -> 15.20267282 | C51: -273.8293371 | D51: -270.6001955 | E51: -194.9327356 | F51: -238.05604 | G51: -264.7588855 | H51: -282.4582404 | I51: -372.5723 | J51: -469.5813165 | K51: -573.2567107 | L51: -685.3372803 | M51: -804.5526653
A52: = 3. Rahoitusjäämä
A53: (1. Tulorahoitus+ 2.Nettoinv.) | C53: =C44+C48 -> -1751584 | D53: =D44+D48 -> -1737325.212 | E53: =E44+E48 -> -1322333.787 | F53: -1566796.185 | G53: -1720959.981 | H53: -1810801.518 | I53: -2319695.428 | J53: -2870626.876 | K53: -3462526.811 | L53: -4092784.659 | M53: -4763163.407
A54: 4. Bruttorahoitustarve
A55: (= Rahoitusjäämä + antolainasaam.
A56: muutokset + lainanlyh.) | D56: =D53-D59-D57 -> -6250403.337 | E56: =E53-E59-E57 -> -5976251.022 | F56: -6313105.506 | G56: -6586008.505 | H56: -6810448.434 | I56: -7462365.428 | J56: -8272860.515 | K56: -9225392.31 | L56: -10290269.51 | M56: -11474049.84
A57: Antolainauksen muutokset | C57: =VLOOKUP($A$4,pohjatiedot!$B$3:$CX$298,101) -> 14428 | D57: =C57 -> 14428 | E57: =D57 -> 14428 | F57: 14428 | G57: 14428 | H57: 14428 | I57: 14428 | J57: 14428 | K57: 14428 | L57: 14428 | M57: 14428 | N57: Positiivinen arvo=nettolisäys.
A58: Lainamäärän muutos; | C58: =C61-B61 -> 1364242 | D58: =D60-D59 -> 1126712.879 | E58: =E60-E59 -> 739136.6847 | F58: 949913.6349 | G58: 1076787.13 | H58: 1144184.675 | I58: 2076509.108 | J58: 2885054.876 | K58: 3476954.811 | L58: 4107212.659 | M58: 4777591.407
A59: Lainanlyhennykset | D59: =IF(C61>0,(C61*(1/$H$77)),IF(C61=0,0)) -> 4498650.125 | E59: =IF(D61>0,(D61*(1/$H$77)),IF(D61=0,0)) -> 4639489.235 | F59: 4731881.32 | G59: 4850620.525 | H59: 4985218.916 | I59: 5128242 | J59: 5387805.639 | K59: 5748437.498 | L59: 6183056.85 | M59: 6696458.432
A60: Lainanlisäystarve | D60: =-(D56+(C63-D63)) -> 5625363.004 | E60: =-(E56+(D63-E63)) -> 5378625.92 | F60: 5681794.955 | G60: 5927407.655 | H60: 6129403.591 | I60: 7204751.109 | J60: 8272860.515 | K60: 9225392.31 | L60: 10290269.51 | M60: 11474049.84
A61: Lainakanta | B61: =VLOOKUP($A$4,pohjatiedot!$B$3:$CF$298,39) -> 34624959 | C61: =VLOOKUP($A$4,pohjatiedot!$B$3:$CF$298,78) -> 35989201 | D61: =C61-D59+D60 -> 37115913.88 | E61: =D61-E59+E60 -> 37855050.56 | F61: 38804964.2 | G61: 39881751.33 | H61: 41025936 | I61: 43102445.11 | J61: 45987499.99 | K61: 49464454.8 | L61: 53571667.46 | M61: 58349258.87
A62: €/asukas | B62: =1000*B61/B7 -> 6314.227901 | C62: 6557.643678 | D62: =1000*D61/D7 -> 6703.007624 | E62: 6811.285466 | F62: 6956.984107 | G62: 7124.849391 | H62: 7372.30277 | I62: 7717.825987 | J62: 8205.767365 | K62: 8796.406566 | L62: 9526.804032 | M62: 10376.41688
A63: Rahavarat | B63: =VLOOKUP($A$4,pohjatiedot!$B$3:$CF$298,37) -> 7560048 | C63: =VLOOKUP($A$4,pohjatiedot!$B$3:$CF$298,76) -> 3451236 | D63: =IF(D56>0,(C63+D56),IF(C63+(D56*$H$79)<0,0,IF(C63+(D56*$H$79)>0,C63+(D56*$H$79)))) -> 2826195.666 | E63: =IF(E56>0,(D63+E56),IF(D63+(E56*$H$79)<0,0,IF(D63+(E56*$H$79)>0,D63+(E56*$H$79)))) -> 2228570.564 | F63: 1597260.013 | G63: 938659.1629 | H63: 257614.3195 | I63: 0 | J63: 0 | K63: 0 | L63: 0 | M63: 0
A64: €/asukas | B64: =1000*B63/B7 -> 1378.654803 | C64: 628.8546372 | D64: 510.4013108 | E64: 400.9882451 | F64: 286.3580152 | G64: 167.6908597 | H64: 46.29292946 | I64: 0 | J64: 0 | K64: 0 | L64: 0 | M64: 0
A65: Nettovelka (rahat-lainat) | B65: =B63-B61 -> -27064911 | C65: =C63-C61 -> -32537965 | D65: -34289718.21 | E65: -35626480 | F65: -37207704.18 | G65: -38943092.17 | H65: -40768321.68 | I65: -43102445.11 | J65: -45987499.99 | K65: -49464454.8 | L65: -53571667.46 | M65: -58349258.87
A66: €/asukas | B66: =1000*B65/B7 -> -4935.573098 | C66: -5928.789041 | D66: -6192.606313 | E66: -6410.297221 | F66: -6670.626091 | G66: -6957.158531 | H66: -7326.00984 | I66: -7717.825987 | J66: -8205.767365 | K66: -8796.406566 | L66: -9526.804032 | M66: -10376.41688
A68: TULOSLASKELMAN ERIEN KASVUPROSENTIT:
A69: Muutos ed. vuodesta, %: | C69: 16/17 | D69: SYÖTÄ HALUAMASI KASVUPROSENTIT! | J69: pääoletuksena samat arvot kuin v. 2023 > | O69: Syötä muutos-
A70: Toimintatuotot | C70: =((C11/B11)-1)*100 -> 5.223536786 | D70: 1.6 | E70: 1.8 | F70: 2 | G70: 2.1 | H70: 2.1 | I70: =H70 -> 2.1 | J70: =I70 -> 2.1 | K70: 2.1 | L70: 2.1 | M70: 2.1 | O70: prosentit
A71: Toimintakulut | C71: =((C12/B12)-1)*100 -> 4.270099115 | D71: 2.7 | E71: 3.4 | F71: 3.3 | G71: 3.3 | H71: 3.2 | I71: 3.2 | J71: 3.2 | K71: 3.2 | L71: 3.2 | M71: 3.2 | O71: Vuosien 2019 - 2023
A72: Kunnallisverot | C72: =((C15/B15)-1)*100 -> -0.8663993901 | D72: 6.3 | E72: 3.3 | F72: 3.9 | G72: 3.3 | H72: 3.1 | I72: 3.1 | J72: 3.1 | K72: 3.1 | L72: 3.1 | M72: 3.1 | O72: pohjana KTO:n huhti/2019
A73: Yhteisöverot | C73: =((C16/B16)-1)*100 -> -1.147951211 | D73: 5.8 | E73: 3.3 | F73: 4.6 | G73: 3.6 | H73: 2.6 | I73: 2.6 | J73: 2.6 | K73: 2.6 | L73: 2.6 | M73: 2.6 | O73: arvioluvut koko maan
A74: Kiinteistöverot | C74: =((C17/B17)-1)*100 -> 4.142916636 | D74: 4.6 | E74: 1.4 | F74: 1.3 | G74: 1 | H74: 0.7 | I74: 0.7 | J74: 0.7 | K74: 0.7 | L74: 0.7 | M74: 0.7 | O74: kehityksestä
A75: Valtionosuudet (pl. hark.var.) | C75: =((C19/B19)-1)*100 -> -0.8429792284 | D75: -2.4 | E75: 11.3 | F75: 1.6 | G75: 3.8 | H75: 4.6 | I75: 1 | J75: 1 | K75: 1 | L75: 1 | M75: 1
A76: TAUSTAMUUTTUJAT:
A77: VALITSE KESKIMÄÄR. LAINANLYHENNYSAIKA (VUODET): | H77: 8 | I77: Esim. lainanlyhennysaika 8 vuotta, jolloin vuosilyhennys = 1/8 eli 12,5 % * lainamäärä
A78: VALITSE KESKIMÄÄR. KORKOKANTA (KORKOPROSENTTI): | H78: 1.7 | I78: Vaikutus korkomenoihin, ei korkotuloihin
A79: MONTAKO % RAHAVAROISTA KÄYTETÄÄN (4.) BRUTTORAHOITUSTARPEEN KATTAMISEEN ? | H79: 0.1 | I79: Syötä prosenttiosuus, joka käytetään rahavaroista.
B85: =B5 -> TP 2017 | C85: =C5 -> TP 2018 | D85: 2019 | E85: 2020 | F85: 2021 | G85: 2022 | H85: 2023 | I85: 2024 | J85: 2025 | K85: 2026 | L85: 2027 | M85: 2028
A86: Vuosikate | B86: =B26 -> 1077.748343 | C86: =C26 -> 863.2915037 | D86: 856.443008 | E86: 927.9547999 | F86: 880.7755845 | G86: 850.1322863 | H86: 838.9808074 | I86: 744.8673678 | J86: 643.9704448 | K86: 536.5390891 | L86: 424.4585195 | M86: 305.2431345
A87: Poistot ja arvonalent. | B87: =1000*B27/B7 -> 756.1220729 | C87: =1000*C27/C7 -> 780.0904862 | D87: 798.339039 | E87: 821.280486 | F87: 844.9449541 | G87: 869.369901 | H87: 902.9344807 | I87: 928.994384 | J87: 955.8898582 | K87: 983.6689478 | L87: 1015.681173 | M87: 1048.735194
A88: Nettoinvestoinnit | B88: =-1000*B48/B7 -> 1062.54567 | C88: 1137.120841 | D88: 1127.043203 | E88: 1122.887535 | F88: 1118.831625 | G88: 1114.891172 | H88: 1121.439048 | I88: 1117.439668 | J88: 1113.551761 | K88: 1109.7958 | L88: 1109.7958 | M88: 1109.7958
B115: =B5 -> TP 2017 | C115: =C5 -> TP 2018 | D115: 2019 | E115: 2020 | F115: 2021 | G115: 2022 | H115: 2023 | I115: 2024 | J115: 2025 | K115: 2026 | L115: 2027 | M115: 2028
A116: Rahavarat | B116: =B64 -> 1378.654803 | C116: 628.8546372 | D116: 510.4013108 | E116: 400.9882451 | F116: 286.3580152 | G116: 167.6908597 | H116: 46.29292946 | I116: 0 | J116: 0 | K116: 0 | L116: 0 | M116: 0
A117: Lainakanta | B117: =B62 -> 6314.227901 | C117: =C62 -> 6557.643678 | D117: 6703.007624 | E117: 6811.285466 | F117: 6956.984107 | G117: 7124.849391 | H117: 7372.30277 | I117: 7717.825987 | J117: 8205.767365 | K117: 8796.406566 | L117: 9526.804032 | M117: 10376.41688
A118: Nettovelka | B118: =B117-B116 -> 4935.573098 | C118: =C117-C116 -> 5928.789041 | D118: 6192.606313 | E118: 6410.297221 | F118: 6670.626091 | G118: 6957.158531 | H118: 7326.00984 | I118: 7717.825987 | J118: 8205.767365 | K118: 8796.406566 | L118: 9526.804032 | M118: 10376.41688

Sheet pohjatiedot
C1: 2017 | D1: 41 | E1: 42 | F1: 43 | G1: 44 | H1: 45 | I1: 46 | J1: 47 | K1: 48 | L1: 49 | M1: 50 | N1: 51 | O1: 52 | P1: 53 | Q1: 54 | R1: 55 | S1: 56 | T1: 57 | U1: 58 | V1: 59 | W1: 60 | X1: 61 | Y1: 62 | AB1: 63 | AC1: 64 | AD1: 65 | AE1: 66 | AF1: 67 | AG1: 68 | AH1: 69 | AI1: 70 | AJ1: 71 | AK1: 72 | AL1: 73 | AM1: 74 | AN1: 75 | AO1: 76 | AP1: 77 | AQ1: 2018 | AR1: 43 | AS1: 44 | AT1: 45 | AU1: 46 | AV1: 47 | AW1: 48 | AX1: 49 | AY1: 50 | AZ1: 51 | BA1: 52 | BB1: 53 | BC1: 54 | BD1: 55 | BE1: 56 | BF1: 57 | BG1: 58 | BH1: 59 | BI1: 60 | BJ1: 61 | BK1: 62 | BL1: 63 | BM1: 64 | BN1: 65 | BO1: 66 | BP1: 67 | BQ1: 68 | BR1: 69 | BS1: 70 | BT1: 71 | BU1: 72 | BV1: 73 | BW1: 74 | BX1: 75 | BY1: 76 | BZ1: 77 | CA1: 78 | CC1: 80 | CD1: 81 | CE1: 82 | CF1: vero-% | CG1: 84 | CH1: 85 | CI1: 86 | CJ1: 87 | CK1: 88 | CL1: 89 | CM1: 90 | CN1: 91 | CO1: 92 | CP1: 93 | CQ1: 94 | CR1: 95 | CS1: 96 | CT1: 2018, rivi 97 | CU1: 2018 | CV1: 99 | CW1: 100 | CX1: 101
A2: Kunta nro. | B2: Kunta | C2: Asukasluku | D2: Veroprosentti | G2: Toimintatuotot | H2: Toimintakulut | I2: Osuus osakkuusyhteisöjen voitoista/tappioista | J2: Kunnallisverot | K2: Yhteisöverot | L2: Kiinteistöverot | M2: Verotulot | N2: Valtionavut | O2: Korkotuotot | P2: Korkokulut | Q2: Muut rahoitustuotot | R2: Muut rahoituskulut | S2: VUOSIKATE | U2: Poistot ja arvonalent. | V2: Satunnaiset erät, netto | X2: Tlikauden tulos | Y2: Tilinpäätössiirrot | Z2: Tilikauden verot | AA2: Lask. verot | AB2: Vähemmintösiirrot | AD2: Tlikauden yli-/alijäämä | AF2: Kertynyt yli-/alijäämä | AI2: Nettoinv. 2017 | AJ2: Vuosikate-nettoinv. | AL2: Rahavarat | AN2: Lainakanta | AQ2: Asukasluku | AR2: Veroprosentti | AU2: Toimintatuotot | AV2: Toimintakulut | AW2: Osuus osakkuusyhteisöjen voitoista/tappioista | AX2: Kunnallisverot | AY2: Yhteisöverot | AZ2: Kiinteistöverot | BA2: Verotulot | BB2: Valtionavut | BC2: Korkotuotot | BD2: Korkokulut | BE2: Muut rahoitustuotot | BF2: Muut rahoituskulut | BG2: VUOSIKATE | BI2: Poistot ja arvonalent. | BJ2: Satunnaiset erät | BL2: Tlikauden tulos | BM2: Tilinpäätössiirrot | BN2: Tilikauden verot | BO2: Lask. verot | BP2: Vähemmistöosuudet | BQ2: Tlikauden yli-/alijäämä | BS2: Kertynyt yli-/alijäämä | BV2: Nettoinv. | BW2: Vuosikate-nettoinv. | BY2: Rahavarat | CA2: Lainakanta | CC2: Saamiset | CF2: 2019 | CS2: Kotikuntakorv+elatustuen palautus, netto | CT2: Tulorah.korjauserät | CU2: Investointimenot | CV2: Rahoitusos. inv.menoihin | CW2: Inv.hyödyk. luovutustulot | CX2: antolainauksen muutokset
A3: 20 | B3: Akaa | C3: 16769 | D3: 21.25 | G3: 58889 | H3: 142923 | I3: 96 | J3: 54017 | K3: 1893 | L3: 3489 | M3: 59399 | N3: 32904 | O3: 385 | P3: 646 | Q3: 308 | R3: 164 | S3: 8248 | U3: 7001 | V3: 0 | X3: 1247 | Y3: 1 | Z3: -84 | AA3: -57 | AB3: -71 | AD3: 1036 | AF3: -6683 | AI3: -6028 | AL3: 6420 | AN3: 65864 | AQ3: 16611 | AR3: 21.75 | AU3: 61885 | AV3: 150217 | AW3: 9 | AX3: 54693 | AY3: 1613 | AZ3: 3319 | BA3: 59625 | BB3: 32456 | BC3: 395 | BD3: 462 | BE3: 928 | BF3: 164 | BG3: 4455 | BI3: 7026 | BJ3: 0 | BL3: -2571 | BM3: 2 | BN3: -94 | BO3: -35 | BP3: -87 | BQ3: -2785 | BS3: -9836 | BV3: -8911 | BY3: 6429 | CA3: 71190 | CF3: 22.25 | CT3: -12 | CU3: -9405 | CV3: 130 | CW3: 364 | CX3: -415
A4: 5 | B4: Alajärvi | C4: 9831 | D4: 21.75 | G4: 54164 | H4: 112513 | I4: 114 | J4: 25065 | K4: 2438 | L4: 2156 | M4: 29659 | N4: 37946 | O4: 21 | P4: 367 | Q4: 218 | R4: 135 | S4: 9107 | U4: 5188 | V4: 0 | X4: 3919 | Y4: 9 | Z4: -87 | AA4: -16 | AB4: -102 | AD4: 3723 | AF4: 9052 | AI4: -9470 | AL4: 9429 | AN4: 41635 | AQ4: 9700 | AR4: 21.75 | AU4: 56110 | AV4: 116873 | AW4: 190 | AX4: 24613 | AY4: 2142 | AZ4: 2138 | BA4: 28893 | BB4: 36755 | BC4: 22 | BD4: 365 | BE4: 172 | BF4: 168 | BG4: 4736 | BI4: 5876 | BJ4: 0 | BL4: -1140 | BM4: 25 | BN4: -50 | BO4: 0 | BP4: -5 | BQ4: -1170 | BS4: 7456 | BV4: -10578 | BY4: 8872 | CA4: 45721 | CF4: 21.75 | CT4: -250 | CU4: -11309 | CV4: 579 | CW4: 152 | CX4: 16
A5: 9 | B5: Alavieska | C5: 2610 | D5: 21.5 | G5: 14579 | H5: 30594 | I5: 1 | J5: 6494 | K5: 285 | L5: 505 | M5: 7284 | N5: 9778 | O5: 0 | P5: 45 | Q5: 26 | R5: 17 | S5: 1010 | U5: 1059 | V5: 0 | X5: -49 | Y5: 0 | Z5: -1 | AA5: -1 | AB5: 0 | AD5: -51 | AF5: 300 | AI5: -895 | AL5: 2257 | AN5: 8306 | AQ5: 2573 | AR5: 21.5 | AU5: 15045 | AV5: 30994 | AW5: 1 | AX5: 6537 | AY5: 259 | AZ5: 732 | BA5: 7525 | BB5: 9826 | BC5: 0 | BD5: 29 | BE5: 28 | BF5: 13 | BG5: 1389 | BI5: 979 | BJ5: 72 | BL5: 482 | BM5: -1 | BN5: -1 | BO5: 1 | BP5: -1 | BQ5: 480 | BS5: 926 | BV5: -902 | BY5: 3048 | CA5: 9237 | CF5: 22 | CT5: -4 | CU5: -1137 | CV5: 234 | CW5: 1 | CX5: 0
A6: 10 | B6: Alavus | C6: 11713 | D6: 21.25 | G6: 70759 | H6: 136082 | I6: 1545 | J6: 29789 | K6: 2699 | L6: 2730 | M6: 35218 | N6: 38629 | O6: 62 | P6: 641 | Q6: 816 | R6: -57 | S6: 10255 | U6: 6434 | V6: 0 | X6: 3821 | Y6: -4 | Z6: -18 | AA6: -30 | AB6: -31 | AD6: 3738 | AF6: 20120 | AI6: -7415 | AL6: 17750 | AN6: 70327 | AQ6: 11544 | AR6: 21.25 | AU6: 71741 | AV6: 137803 | AW6: 1547 | AX6: 28747 | AY6: 2398 | AZ6: 2756 | BA6: 33798 | BB6: 38294 | BC6: 85 | BD6: 604 | BE6: 761 | BF6: 151 | BG6: 7668 | BI6: 6649 | BJ6: 0 | BL6: 1019 | BM6: 9 | BN6: -17 | BO6: -68 | BP6: -4 | BQ6: 939 | BS6: 20657 | BV6: -8968 | BY6: 17462 | CA6: 71092 | CF6: 21.25 | CT6: -1296 | CU6: -9478 | CV6: 139 | CW6: 371 | CX6: 340
A7: 16 | B7: Asikkala | C7: 8248 | D7: 20.75 | G7: 42592 | H7: 82843 | I7: -3 | J7: 25298 | K7: 1616 | L7: 2787 | M7: 29701 | N7: 17513 | O7: 4 | P7: 124 | Q7: 246 | R7: 203 | S7: 6882 | U7: 4354 | V7: 64 | X7: 2592 | Y7: 0 | Z7: -2 | AA7: -43 | AB7: 0 | AD7: 2547 | AF7: 9751 | AI7: -2560 | AL7: 4601 | AN7: 24863 | AQ7: 8149 | AR7: 20.75 | AU7: 43453 | AV7: 84756 | AW7: -6 | AX7: 24509 | AY7: 1436 | AZ7: 2893 | BA7: 28838 | BB7: 17538 | BC7: 4 | BD7: 113 | BE7: 69 | BF7: 232 | BG7: 4795 | BI7: 4165 | BJ7: 263 | BL7: 893 | BM7: 0 | BN7: -13 | BO7: -59 | BP7: 0 | BQ7: 821 | BS7: 10527 | BV7: -2225 | BY7: 7673 | CA7: 23108 | CF7: 20.75 | CT7: -148 | CU7: -2610 | CV7: 106 | CW7: 279 | CX7: 37
A8: 18 | B8: Askola | C8: 4990 | D8: 20.75 | G8: 15461 | H8: 39934 | I8: -30 | J8: 16579 | K8: 1038 | L8: 1139 | M8: 18756 | N8: 7325 | O8: 0 | P8: 172 | Q8: 295 | R8: 53 | S8: 1648 | U8: 2120 | V8: 0 | X8: -472 | Y8: 123 | Z8: -3 | AA8: 0 | AB8: 0 | AD8: -352 | AF8: -2503 | AI8: -3731 | AL8: 2550 | AN8: 24594 | AQ8: 4958 | AR8: 20.75 | AU8: 14418 | AV8: 41260 | AW8: -2 | AX8: 16454 | AY8: 949 | AZ8: 1144 | BA8: 18547 | BB8: 8957 | BC8: 0 | BD8: 216 | BE8: 302 | BF8: 59 | BG8: 687 | BI8: 2089 | BJ8: 2228 | BL8: 826 | BM8: 178 | BN8: -6 | BO8: 0 | BP8: 0 | BQ8: 998 | BS8: -1633 | BV8: -4241 | BY8: 5260 | CA8: 28168 | CF8: 21.5 | CT8: -197 | CU8: -4701 | CV8: 21 | CW8: 439 | CX8: -1
A9: 19 | B9: Aura | C9: 3991 | D9: 21.75 | G9: 12669 | H9: 30038 | I9: 1 | J9: 13597 | K9: 745 | L9: 531 | M9: 14873 | N9: 5984 | O9: 3 | P9: 65 | Q9: 25 | R9: 3 | S9: 3449 | U9: 1306 | V9: 0 | X9: 2143 | Y9: 0 | Z9: 0 | AA9: 0 | AB9: -24 | AD9: 2119 | AF9: 1556 | AI9: -1001 | AL9: 2348 | AN9: 14775 | AQ9: 3984 | AR9: 21.75 | AU9: 12003 | AV9: 31204 | AW9: 1 | AX9: 12992 | AY9: 571 | AZ9: 751 | BA9: 14314 | BB9: 6390 | BC9: 0 | BD9: 52 | BE9: 48 | BF9: 25 | BG9: 1475 | BI9: 1297 | BJ9: 0 | BL9: 178 | BM9: -81 | BN9: 0 | BO9: -21 | BP9: -41 | BQ9: 35 | BS9: 1642 | BV9: -2412 | BY9: 1041 | CA9: 14251 | CF9: 21.75 | CT9: 87 | CU9: -2336 | CV9: 16 | CW9: -92 | CX9: 1
A10: 46 | B10: Enonkoski | C10: 1416 | D10: 21 | G10: 10316 | H10: 19838 | I10: 0 | J10: 3723 | K10: 595 | L10: 535 | M10: 4853 | N10: 5683 | O10: 27 | P10: 31 | Q10: 76 | R10: 5 | S10: 1082 | U10: 787 | V10: -16 | X10: 279 | Y10: 0 | Z10: 0 | AA10: -36 | AB10: 0 | AD10: 243 | AF10: 6840 | AI10: -1092 | AL10: 3081 | AN10: 1085 | AQ10: 1405 | AR10: 21 | AU10: 10151 | AV10: 19928 | AW10: 0 | AX10: 3379 | AY10: 569 | AZ10: 533 | BA10: 4481 | BB10: 5829 | BC10: 7 | BD10: 14 | BE10: 80 | BF10: 18 | BG10: 588 | BI10: 843 | BJ10: 5 | BL10: -250 | BM10: 1 | BN10: -1 | BO10: -8 | BP10: 0 | BQ10: -258 | BS10: 6659 | BV10: -802 | BY10: 3324 | CA10: 1082 | CF10: 21 | CT10: -15 | CU10: -907 | CV10: 94 | CW10: 11 | CX10: -41
A11: 47 | B11: Enontekiö | C11: 1893 | D11: 21.25 | G11: 4225 | H11: 17496 | I11: 2 | J11: 4963 | K11: 410 | L11: 830 | M11: 6203 | N11: 8824 | O11: 16 | P11: 173 | Q11: 616 | R11: 195 | S11: 2022 | U11: 1177 | V11: -22 | X11: 823 | Y11: -11 | Z11: 0 | AA11: -3 | AB11: 0 | AD11: 809 | AF11: 1400 | AI11: -764 | AL11: 1956 | AN11: 10397 | AQ11: 1852 | AR11: 21.25 | AU11: 8772 | AV11: 22485 | AW11: -11 | AX11: 5155 | AY11: 384 | AZ11: 823 | BA11: 6362 | BB11: 8604 | BC11: 16 | BD11: 137 | BE11: 655 | BF11: 212 | BG11: 1564 | BI11: 1111 | BJ11: 0 | BL11: 453 | BM11: 10 | BN11: -23 | BO11: -1 | BP11: 0 | BQ11: 439 | BS11: 1933 | BV11: -744 | BY11: 2270 | CA11: 9399 | CF11: 21.25 | CT11: 32 | CU11: -1018 | CV11: 87 | CW11: 187 | CX11: -84
A12: 49 | B12: Espoo | C12: 279044 | D12: 18 | G12: 1012445 | H12: 2264850 | I12: 994 | J12: 1236961 | K12: 137156 | L12: 116153 | M12: 1490270 | N12: 84559 | O12: 11838 | P12: 55066 | Q12: 42057 | R12: 2946 | S12: 319301 | U12: 267979 | V12: 1200 | X12: 52522 | Y12: 17 | Z12: -390 | AA12: -773 | AB12: -463 | AD12: 50913 | AF12: 600201 | AI12: -521480 | AL12: 1080286 | AN12: 3429679 | AQ12: 283632 | AR12: 18 | AU12: 1102801 | AV12: 2383893 | AW12: -1616 | AX12: 1259684 | AY12: 125298 | AZ12: 117004 | BA12: 1501986 | BB12: 95314 | BC12: 11822 | BD12: 47412 | BE12: 39012 | BF12: 18089 | BG12: 299925 | BI12: 306013 | BJ12: 0 | BL12: -6088 | BM12: 12237 | BN12: -622 | BO12: 2802 | BP12: 3973 | BQ12: 12302 | BS12: 604643 | BV12: -380311 | BY12: 1004350 | CA12: 3502631 | CF12: 18 | CT12: -70078 | CU12: -495489 | CV12: 36891 | CW12: 78287 | CX12: 490
A13: 50 | B13: Eura | C13: 11910 | D13: 20.5 | G13: 36426 | H13: 99266 | I13: 0 | J13: 39017 | K13: 2303 | L13: 3077 | M13: 44397 | N13: 26168 | O13: -13 | P13: 453 | Q13: 183 | R13: 186 | S13: 7256 | U13: 5748 | V13: 0 | X13: 1508 | Y13: 0 | Z13: 0 | AA13: -4 | AB13: 30 | AD13: 1534 | AF13: 5504 | AI13: -5760 | AL13: 5347 | AN13: 52506 | AQ13: 11748 | AR13: 20.5 | AU13: 36008 | AV13: 103147 | AW13: 0 | AX13: 38473 | AY13: 1964 | AZ13: 3128 | BA13: 43565 | BB13: 25358 | BC13: 4 | BD13: 381 | BE13: 187 | BF13: 178 | BG13: 1416 | BI13: 5804 | BJ13: 0 | BL13: -4388 | BM13: 0 | BN13: 0 | BO13: 38 | BP13: 36 | BQ13: -4314 | BS13: 1114 | BV13: -5657 | BY13: 5714 | CA13: 54266 | CF13: 20.5 | CT13: -278 | CU13: -6341 | CV13: 81 | CW13: 603 | CX13: 256
A14: 51 | B14: Eurajoki | C14: 9521 | D14: 18 | G14: 30898 | H14: 86250 | I14: 0 | J14: 51919 | K14: 0 | L14: 0 | M14: 51919 | N14: 13352 | O14: 41 | P14: 133 | Q14: 1290 | R14: 454 | S14: 10663 | U14: 5641 | V14: 2 | X14: 5024 | Y14: 29 | Z14: -3 | AA14: -13 | AB14: 0 | AD14: 5037 | AF14: 76253 | AI14: -7391 | AL14: 24191 | AN14: 17545 | AQ14: 9454 | AR14: 18 | AU14: 31437 | AV14: 87039 | AW14: 0 | AX14: 28914 | AY14: 2214 | AZ14: 19212 | BA14: 50340 | BB14: 11737 | BC14: 1 | BD14: 130 | BE14: 1084 | BF14: 1777 | BG14: 5653 | BI14: 5919 | BJ14: 0 | BL14: -266 | BM14: -52 | BN14: 0 | BO14: -7 | BP14: 1 | BQ14: -324 | BS14: 75926 | BV14: -3839 | BY14: 26142 | CA14: 16111 | CF14: 18 | CT14: 49 | CU14: -5328 | CV14: 16 | CW14: 1473 | CX14: 157
A15: 52 | B15: Evijärvi | C15: 2499 | D15: 21.5 | G15: 7148 | H15: 23269 | I15: 0 | J15: 6674 | K15: 827 | L15: 723 | M15: 8224 | N15: 8533 | O15: 94 | P15: 22 | Q15: 482 | R15: 34 | S15: 1156 | U15: 888 | V15: 0 | X15: 268 | Y15: -28 | Z15: -8 | AA15: -2 | AB15: -7 | AD15: 223 | AF15: 3481 | AI15: -765 | AL15: 7504 | AN15: 7285 | AQ15: 2473 | AR15: 21.5 | AU15: 7570 | AV15: 24216 | AW15: 4 | AX15: 6586 | AY15: 639 | AZ15: 750 | BA15: 7975 | BB15: 8800 | BC15: 49 | BD15: 28 | BE15: 90 | BF15: 360 | BG15: -116 | BI15: 940 | BJ15: 0 | BL15: -1056 | BM15: -25 | BN15: -2 | BO15: -1 | BP15: -2 | BQ15: -1086 | BS15: 2289 | BV15: -1366 | BY15: 7034 | CA15: 8210 | CF15: 21.5 | CT15: -70 | CU15: -1537 | CV15: 75 | CW15: 96 | CX15: 16
A16: 61 | B16: Forssa | C16: 17185 | D16: 20.5 | G16: 73061 | H16: 166862 | I16: 143 | J16: 51892 | K16: 3856 | L16: 5326 | M16: 61074 | N16: 44796 | O16: 243 | P16: 763 | Q16: 88 | R16: 22 | S16: 11758 | U16: 10896 | V16: 0 | X16: 862 | Y16: 3 | Z16: -11 | AA16: -62 | AB16: 120 | AD16: 912 | AF16: 25667 | AI16: -6959 | AL16: 19358 | AN16: 65801 | AQ16: 17028 | AR16: 20.5 | AU16: 74139 | AV16: 170963 | AW16: 0 | AX16: 51271 | AY16: 3659 | AZ16: 5309 | BA16: 60239 | BB16: 44568 | BC16: 100 | BD16: 759 | BE16: 101 | BF16: 11 | BG16: 7414 | BI16: 13797 | BJ16: 2000 | BL16: -4383 | BM16: 0 | BN16: -38 | BO16: 51 | BP16: 108 | BQ16: -4262 | BS16: 21404 | BV16: -4493 | BY16: 21948 | CA16: 68161 | CF16: 20.5 | CT16: -2872 | CU16: -6742 | CV16: 43 | CW16: 2206 | CX16: 71
A17: 69 | B17: Haapajärvi | C17: 7251 | D17: 22 | G17: 41518 | H17: 85945 | I17: 28 | J17: 19282 | K17: 1575 | L17: 1893 | M17: 22750 | N17: 26501 | O17: 20 | P17: 515 | Q17: 923 | R17: 279 | S17: 4898 | U17: 3904 | V17: -24 | X17: 970 | Y17: -3 | Z17: -80 | AA17: -4 | AB17: -99 | AD17: 784 | AF17: 5116 | AI17: -6291 | AL17: 20153 | AN17: 43029 | AQ17: 7147 | AR17: 22 | AU17: 42556 | AV17: 89443 | AW17: -77 | AX17: 19358 | AY17: 1560 | AZ17: 2243 | BA17: 23059 | BB17: 26347 | BC17: 28 | BD17: 368 | BE17: 960 | BF17: 747 | BG17: 2315 | BI17: 4044 | BJ17: 310 | BL17: -1419 | BM17: -6 | BN17: -88 | BO17: 25 | BP17: -74 | BQ17: -1562 | BS17: 4957 | BV17: -1385 | BY17: 21483 | CA17: 42154 | CF17: 22.5 | CT17: -228 | CU17: -2995 | CV17: 70 | CW17: 1540 | CX17: -925
A18: 71 | B18: Haapavesi | C18: 6970 | D18: 22 | G18: 30893 | H18: 70568 | I18: 2 | J18: 17804 | K18: 1291 | L18: 1673 | M18: 20768 | N18: 23997 | O18: 78 | P18: 362 | Q18: 339 | R18: 226 | S18: 4796 | U18: 3611 | V18: 0 | X18: 1185 | Y18: -1 | Z18: -118 | AA18: -27 | AB18: 2 | AD18: 1041 | AF18: 214 | AI18: -1985 | AL18: 13134 | AN18: 38371 | AQ18: 6854 | AR18: 22 | AU18: 27937 | AV18: 72355 | AW18: 2 | AX18: 17246 | AY18: 1309 | AZ18: 1664 | BA18: 20098 | BB18: 27154 | BC18: 45 | BD18: 373 | BE18: 564 | BF18: 796 | BG18: 2276 | BI18: 3641 | BJ18: 302 | BL18: -1063 | BM18: -7 | BN18: -85 | BO18: 45 | BP18: 22 | BQ18: -1088 | BS18: -173 | BV18: -3213 | BY18: 12695 | CA18: 37208 | CF18: 22 | CT18: -129 | CU18: -5182 | CV18: 48 | CW18: 1921 | CX18: 267
A19: 72 | B19: Hailuoto | C19: 967 | D19: 20 | G19: 5176 | H19: 11532 | I19: 1 | J19: 3245 | K19: 114 | L19: 332 | M19: 3691 | N19: 3733 | O19: 9 | P19: 24 | Q19: 92 | R19: 1 | S19: 1145 | U19: 674 | V19: 0 | X19: 471 | Y19: 4 | Z19: -1 | AA19: -1 | AB19: 0 | AD19: 473 | AF19: 7093 | AI19: -369 | AL19: 3536 | AN19: 3199 | AQ19: 974 | AR19: 20.5 | AU19: 5181 | AV19: 12055 | AW19: 0 | AX19: 3032 | AY19: 98 | AZ19: 339 | BA19: 3470 | BB19: 3725 | BC19: 6 | BD19: 22 | BE19: 9 | BF19: 4 | BG19: 310 | BI19: 681 | BJ19: 88 | BL19: -283 | BM19: -7 | BN19: 0 | BO19: -1 | BP19: -1 | BQ19: -292 | BS19: 6799 | BV19: -1060 | BY19: 2476 | CA19: 2726 | CF19: 20.5 | CT19: -198 | CU19: -1816 | CV19: 6 | CW19: 750 | CX19: -12
A20: 74 | B20: Halsua | C20: 1171 | D20: 22 | G20: 9263 | H20: 15712 | I20: 75 | J20: 2805 | K20: 356 | L20: 551 | M20: 3712 | N20: 4155 | O20: 8 | P20: 143 | Q20: 29 | R20: 1 | S20: 1386 | U20: 844 | V20: 0 | X20: 542 | Y20: -7 | Z20: -4 | AA20: -3 | AB20: -2 | AD20: 526 | AF20: 2010 | AI20: -731 | AL20: 1910 | AN20: 14372 | AQ20: 1165 | AR20: 22 | AU20: 9508 | AV20: 16750 | AW20: 52 | AX20: 2623 | AY20: 432 | AZ20: 356 | BA20: 3411 | BB20: 4963 | BC20: 7 | BD20: 137 | BE20: 23 | BF20: 5 | BG20: 1072 | BI20: 833 | BJ20: -53 | BL20: 186 | BM20: -35 | BN20: -8 | BO20: -2 | BP20: -3 | BQ20: 138 | BS20: 2074 | BV20: -415 | BY20: 2201 | CA20: 14180 | CF20: 22 | CT20: -376 | CU20: -798 | CV20: 15 | CW20: 368 | CX20: 0
A21: 75 | B21: Hamina | C21: 20493 | D21: 21 | G21: 89565 | H21: 189548 | I21: 652 | J21: 70564 | K21: 5202 | L21: 6787 | M21: 82553 | N21: 44101 | O21: 55 | P21: 2237 | Q21: 1232 | R21: 32 | S21: 26025 | U21: 19513 | V21: 0 | X21: 6512 | Y21: 0 | Z21: 0 | AA21: -97 | AB21: 54 | AD21: 6469 | AF21: 17455 | AI21: -13109 | AL21: 26577 | AN21: 151906 | AQ21: 20286 | AR21: 21 | AU21: 91213 | AV21: 198288 | AW21: 2247 | AX21: 69190 | AY21: 5404 | AZ21: 6608 | BA21: 80921 | BB21: 44679 | BC21: 60 | BD21: 2030 | BE21: 1228 | BF21: 42 | BG21: 19988 | BI21: 15882 | BJ21: 0 | BL21: 4106 | BM21: 0 | BN21: 0 | BO21: -111 | BP21: 51 | BQ21: 4046 | BS21: 23232 | BV21: -29089 | BY21: 24633 | CA21: 153512 | CF21: 21 | CT21: 1333 | CU21: -33660 | CV21: 589 | CW21: 3982 | CX21: 3
A22: 77 | B22: Hankasalmi | C22: 5019 | D22: 22 | G22: 15022 | H22: 47579 | I22: 0 | J22: 13142 | K22: 854 | L22: 1308 | M22: 15304 | N22: 20400 | O22: 62 | P22: 102 | Q22: 166 | R22: 67 | S22: 3145 | U22: 2342 | V22: 2 | X22: 805 | Y22: 5 | Z22: 0 | AA22: 1 | AB22: -12 | AD22: 799 | AF22: 108 | AI22: -3410 | AL22: 4837 | AN22: 19443 | AQ22: 4939 | AR22: 22 | AU22: 15392 | AV22: 48514 | AW22: 0 | AX22: 12406 | AY22: 873 | AZ22: 1307 | BA22: 14524 | BB22: 20157 | BC22: 83 | BD22: 99 | BE22: 201 | BF22: 80 | BG22: 1664 | BI22: 2466 | BJ22: 12 | BL22: -790 | BM22: -52 | BN22: 0 | BO22: 18 | BP22: 0 | BQ22: -824 | BS22: -1150 | BV22: -3332 | BY22: 5305 | CA22: 21951 | CF22: 22 | CT22: -1290 | CU22: -4795 | CV22: 2 | CW22: 1461 | CX22: 0
A23: 78 | B23: Hanko | C23: 8517 | D23: 21.75 | G23: 54531 | H23: 91458 | I23: 0 | J23: 33622 | K23: 2782 | L23: 2624 | M23: 39028 | N23: 12668 | O23: 17 | P23: 1077 | Q23: 189 | R23: 106 | S23: 13792 | U23: 5867 | V23: 38 | X23: 7963 | Y23: -2 | Z23: -595 | AA23: 55 | AB23: -3 | AD23: 7418 | AF23: -472 | AI23: -12363 | AL23: 6742 | AN23: 73274 | AQ23: 8379 | AR23: 21.75 | AU23: 56107 | AV23: 94461 | AW23: -5 | AX23: 33003 | AY23: 2734 | AZ23: 2943 | BA23: 38575 | BB23: 12372 | BC23: 21 | BD23: 835 | BE23: 183 | BF23: 106 | BG23: 11851 | BI23: 5783 | BJ23: -17 | BL23: 6051 | BM23: -19 | BN23: -767 | BO23: -84 | BP23: -5 | BQ23: 5176 | BS23: 7550 | BV23: -10909 | BY23: 5619 | CA23: 71075 | CF23: 21.75 | CT23: -301 | CU23: -12093 | CV23: 29 | CW23: 1155 | CX23: 5
A24: 79 | B24: Harjavalta | C24: 7151 | D24: 20.75 | G24: 26103 | H24: 70215 | I24: -34 | J24: 24137 | K24: 8740 | L24: 1871 | M24: 34748 | N24: 13524 | O24: 4 | P24: 207 | Q24: 93 | R24: 21 | S24: 3994 | U24: 3281 | V24: 0 | X24: 713 | Y24: 0 | Z24: -8 | AA24: -38 | AB24: -16 | AD24: 651 | AF24: 8242 | AI24: -3044 | AL24: 4980 | AN24: 23508 | AQ24: 7018 | AR24: 20.75 | AU24: 26472 | AV24: 71917 | AW24: -34 | AX24: 24048 | AY24: 7408 | AZ24: 1893 | BA24: 33349 | BB24: 12990 | BC24: 4 | BD24: 171 | BE24: 89 | BF24: 19 | BG24: 763 | BI24: 3338 | BJ24: 0 | BL24: -2575 | BM24: 0 | BN24: -8 | BO24: -16 | BP24: -6 | BQ24: -2605 | BS24: 5657 | BV24: -3204 | BY24: 4410 | CA24: 24797 | CF24: 21.5 | CT24: 53 | CU24: -4028 | CV24: 71 | CW24: 753 | CX24: -3
A25: 81 | B25: Hartola | C25: 2882 | D25: 21.5 | G25: 19841 | H25: 36166 | I25: 0 | J25: 7275 | K25: 1391 | L25: 1322 | M25: 9988 | N25: 9153 | O25: 15 | P25: 302 | Q25: 305 | R25: 5 | S25: 2829 | U25: 1885 | V25: -233 | X25: 711 | Y25: -230 | Z25: 0 | AA25: 0 | AB25: -37 | AD25: 444 | AF25: 1867 | AI25: -720 | AL25: 3120 | AN25: 29984 | AQ25: 2780 | AR25: 21.5 | AU25: 19955 | AV25: 37292 | AW25: 0 | AX25: 7218 | AY25: 1260 | AZ25: 1318 | BA25: 9796 | BB25: 8888 | BC25: 14 | BD25: 253 | BE25: 45 | BF25: 5 | BG25: 1148 | BI25: 1861 | BJ25: 124 | BL25: -589 | BM25: 18 | BN25: 0 | BO25: 0 | BP25: -36 | BQ25: -607 | BS25: 1209 | BV25: -1008 | BY25: 2336 | CA25: 28289 | CF25: 21.5 | CT25: 87 | CU25: -1103 | CV25: 19 | CW25: 76 | CX25: 8
A26: 82 | B26: Hattula | C26: 9610 | D26: 20.5 | G26: 31306 | H26: 74081 | I26: 0 | J26: 34090 | K26: 1330 | L26: 2123 | M26: 37543 | N26: 9659 | O26: 206 | P26: 264 | Q26: 84 | R26: 111 | S26: 4309 | U26: 3357 | V26: 191 | X26: 1143 | Y26: 2 | Z26: 0 | AA26: -35 | AB26: 0 | AD26: 1110 | AF26: 8825 | AI26: -1193 | AL26: 2924 | AN26: 44436 | AQ26: 9475 | AR26: 20.5 | AU26: 24931 | AV26: 71771 | AW26: 0 | AX26: 34059 | AY26: 1307 | AZ26: 2308 | BA26: 37627 | BB26: 11858 | BC26: 206 | BD26: 227 | BE26: 96 | BF26: 36 | BG26: 2684 | BI26: 3394 | BJ26: 53 | BL26: -657 | BM26: 0 | BN26: 0 | BO26: 7 | BP26: 0 | BQ26: -650 | BS26: 7749 | BV26: -4296 | BY26: 2784 | CA26: 45063 | CF26: 20.5 | CT26: -29 | CU26: -6845 | CV26: 0 | CW26: 2549 | CX26: 5
A27: 86 | B27: Hausjärvi | C27: 8504 | D27: 21.5 | G27: 22886 | H27: 64775 | I27: 2 | J27: 29362 | K27: 1180 | L27: 1690 | M27: 32232 | N27: 13585 | O27: 11 | P27: 337 | Q27: 55 | R27: 104 | S27: 3555 | U27: 2774 | V27: 138 | X27: 919 | Y27: 1 | Z27: -11 | AA27: 0 | AB27: 4 | AD27: 913 | AF27: 6568 | AI27: -4074 | AL27: 3989 | AN27: 26501 | AQ27: 8417 | AR27: 21.5 | AU27: 23068 | AV27: 65796 | AW27: 3 | AX27: 28947 | AY27: 1665 | AZ27: 1078 | BA27: 31690 | BB27: 13375 | BC27: 11 | BD27: 260 | BE27: 48 | BF27: 3 | BG27: 2136 | BI27: 3128 | BJ27: 0 | BL27: -992 | BM27: 1 | BN27: -13 | BO27: 0 | BP27: -1 | BQ27: -1005 | BS27: 5773 | BV27: -1999 | BY27: 2592 | CA27: 24166 | CF27: 21.5 | CT27: 102 | CU27: -2227 | CV27: 4 | CW27: 224 | CX27: 17
A28: 111 | B28: Heinola | C28: 19128 | D28: 20.5 | G28: 99479 | H28: 201269 | I28: 8 | J28: 60317 | K28: 3231 | L28: 6264 | M28: 69812 | N28: 42076 | O28: 125 | P28: 869 | Q28: 4428 | R28: 302 | S28: 13489 | U28: 9896 | V28: 162 | X28: 3755 | Y28: 146 | Z28: 0 | AA28: -70 | AB28: -3 | AD28: 3828 | AF28: 25618 | AI28: -15358 | AL28: 89473 | AN28: 85052 | AQ28: 18889 | AR28: 20.5 | AU28: 105165 | AV28: 202938 | AW28: 0 | AX28: 59686 | AY28: 2988 | AZ28: 6243 | BA28: 68917 | BB28: 42965 | BC28: 55 | BD28: 794 | BE28: 2829 | BF28: 2057 | BG28: 14142 | BI28: 8695 | BJ28: 614 | BL28: 6061 | BM28: 100 | BN28: -3 | BO28: -31 | BP28: -1 | BQ28: 6126 | BS28: 31535 | BV28: -13837 | BY28: 86632 | CA28: 83094 | CF28: 20.5 | CT28: -3463 | CU28: -18035 | CV28: 28 | CW28: 4170 | CX28: -16
A29: 90 | B29: Heinävesi | C29: 3455 | D29: 20.75 | G29: 16905 | H29: 39957 | I29: 0 | J29: 8594 | K29: 2236 | L29: 1225 | M29: 12055 | N29: 13941 | O29: 174 | P29: 57 | Q29: 349 | R29: 503 | S29: 2907 | U29: 2774 | V29: -198 | X29: -65 | Y29: 191 | Z29: 0 | AA29: 0 | AB29: 2 | AD29: 128 | AF29: 1349 | AI29: -3247 | AL29: 7946 | AN29: 23378 | AQ29: 3329 | AR29: 21 | AU29: 16627 | AV29: 40008 | AW29: 0 | AX29: 8128 | AY29: 2051 | AZ29: 1336 | BA29: 11515 | BB29: 13532 | BC29: 167 | BD29: 36 | BE29: 320 | BF29: 10 | BG29: 2107 | BI29: 1893 | BJ29: 79 | BL29: 293 | BM29: -10 | BN29: 0 | BO29: 1 | BP29: 2 | BQ29: 286 | BS29: 2041 | BV29: -1076 | BY29: 7419 | CA29: 21270 | CF29: 21 | CT29: -182 | CU29: -1156 | CV29: 34 | CW29: 46 | CX29: 233
A30: 91 | B30: Helsinki | C30: 643272 | D30: 18.5 | G30: 3368014 | H30: 5549282 | I30: 23333 | J30: 2595152 | K30: 528591 | L30: 257052 | M30: 3380795 | N30: 220442 | O30: 17647 | P30: 69456 | Q30: 10023 | R30: 8852 | S30: 1392664 | U30: 709312 | V30: 2492 | X30: 685844 | Y30: -15738 | Z30: -12602 | AA30: -10463 | AB30: 1289 | AD30: 648330 | AF30: 4770587 | AI30: -1022372 | AL30: 1532441 | AN30: 4984749 | AQ30: 648042 | AR30: 18 | AU30: 3551633 | AV30: 5797476 | AW30: 14523 | AX30: 2580483 | AY30: 574753 | AZ30: 261346 | BA30: 3416582 | BB30: 197861 | BC30: 20613 | BD30: 61488 | BE30: 7960 | BF30: -7798 | BG30: 1358006 | BI30: 780501 | BJ30: -18391 | BL30: 559114 | BM30: 2050 | BN30: -15145 | BO30: -18959 | BP30: 1312 | BQ30: 528372 | BS30: 5249606 | BV30: -1200831 | BY30: 1508920 | CA30: 4983823 | CF30: 18 | CT30: -158164 | CU30: -1718766 | CV30: 11511 | CW30: 506424 | CX30: 1420
A31: 97 | B31: Hirvensalmi | C31: 2236 | D31: 20 | G31: 15101 | H31: 28513 | I31: 0 | J31: 5379 | K31: 936 | L31: 1299 | M31: 7614 | N31: 7348 | O31: 6 | P31: 107 | Q31: 336 | R31: 1 | S31: 1772 | U31: 1252 | V31: 1 | X31: 521 | Y31: 10 | Z31: 0 | AA31: -1 | AB31: -5 | AD31: 525 | AF31: 3417 | AI31: -916 | AL31: 9630 | AN31: 8258 | AQ31: 2152 | AR31: 20 | AU31: 15911 | AV31: 28468 | AW31: 5 | AX31: 5457 | AY31: 882 | AZ31: 1289 | BA31: 7616 | BB31: 7115 | BC31: 7 | BD31: 102 | BE31: 237 | BF31: 1 | BG31: 2320 | BI31: 1561 | BJ31: 6 | BL31: 765 | BM31: 0 | BN31: 0 | BO31: -5 | BP31: -1 | BQ31: 759 | BS31: 4299 | BV31: -1258 | BY31: 11312 | CA31: 8236 | CF31: 20 | CT31: -189 | CU31: -1667 | CV31: 73 | CW31: 336 | CX31: 0
A32: 98 | B32: Hollola | C32: 23782 | D32: 21 | G32: 96659 | H32: 211063 | I32: -22 | J32: 83598 | K32: 3008 | L32: 5377 | M32: 91983 | N32: 41632 | O32: 7 | P32: 856 | Q32: 586 | R32: 41 | S32: 18884 | U32: 14390 | V32: 152 | X32: 4646 | Y32: -1 | Z32: 0 | AA32: 68 | AB32: 194 | AD32: 4907 | AF32: 23158 | AI32: -14959 | AL32: 24026 | AN32: 75251 | AQ32: 23602 | AR32: 21 | AU32: 96626 | AV32: 215890 | AW32: 6 | AX32: 81565 | AY32: 2799 | AZ32: 5376 | BA32: 89740 | BB32: 41487 | BC32: 27 | BD32: 833 | BE32: 653 | BF32: 40 | BG32: 11776 | BI32: 13660 | BJ32: 69 | BL32: -1815 | BM32: -1 | BN32: -4 | BO32: -45 | BP32: -2 | BQ32: -1867 | BS32: 21484 | BV32: -5174 | BY32: 19221 | CA32: 65624 | CF32: 21 | CT32: -1535 | CU32: -12018 | CV32: 0 | CW32: 6844 | CX32: -155
A33: 99 | B33: Honkajoki | C33: 1707 | D33: 22 | G33: 13630 | H33: 23688 | I33: 0 | J33: 4596 | K33: 893 | L33: 489 | M33: 5978 | N33: 4650 | O33: 1 | P33: 46 | Q33: 11 | R33: 5 | S33: 525 | U33: 481 | V33: 0 | X33: 44 | Y33: 4 | Z33: 0 | AA33: 0 | AB33: 0 | AD33: 48 | AF33: -1494 | AI33: -297 | AL33: 999 | AN33: 5057 | AQ33: 1666 | AR33: 22 | AU33: 13851 | AV33: 24515 | AW33: 0 | AX33: 3950 | AY33: 691 | AZ33: 633 | BA33: 5268 | BB33: 4772 | BC33: 2 | BD33: 38 | BE33: 15 | BF33: 4 | BG33: -649 | BI33: 445 | BJ33: 0 | BL33: -1094 | BM33: -7 | BN33: 0 | BO33: 0 | BP33: 0 | BQ33: -1101 | BS33: -2552 | BV33: -444 | BY33: 1300 | CA33: 4831 | CF33: 22.5 | CT33: 25 | CU33: -461 | CV33: 8 | CW33: 9 | CX33: 0
A34: 102 | B34: Huittinen | C34: 10207 | D34: 20.75 | G34: 24736 | H34: 83637 | I34: 266 | J34: 29763 | K34: 1975 | L34: 2242 | M34: 33980 | N34: 29710 | O34: 5 | P34: 234 | Q34: 124 | R34: 45 | S34: 4905 | U34: 4583 | V34: 0 | X34: 322 | Y34: 0 | Z34: -41 | AA34: -25 | AB34: -25 | AD34: 231 | AF34: 10861 | AI34: -5312 | AL34: 9353 | AN34: 28572 | AQ34: 10091 | AR34: 20.75 | AU34: 24387 | AV34: 86066 | AW34: 128 | AX34: 28530 | AY34: 1921 | AZ34: 2214 | BA34: 32665 | BB34: 30066 | BC34: 5 | BD34: 229 | BE34: 358 | BF34: 42 | BG34: 1272 | BI34: 4576 | BJ34: -5 | BL34: -3309 | BM34: 0 | BN34: -17 | BO34: -22 | BP34: -6 | BQ34: -3354 | BS34: 7513 | BV34: -5915 | BY34: 8806 | CA34: 30680 | CF34: 21 | CT34: -742 | CU34: -7071 | CV34: 416 | CW34: 740 | CX34: -9
A35: 103 | B35: Humppila | C35: 2290 | D35: 22 | G35: 8848 | H35: 21998 | I35: 0 | J35: 6683 | K35: 468 | L35: 501 | M35: 7652 | N35: 6672 | O35: 4 | P35: 67 | Q35: 6 | R35: 12 | S35: 1105 | U35: 763 | V35: 5 | X35: 347 | Y35: 0 | Z35: -33 | AA35: -6 | AB35: 0 | AD35: 308 | AF35: -573 | AI35: -777 | AL35: 716 | AN35: 7500 | AQ35: 2235 | AR35: 22 | AU35: 8938 | AV35: 22208 | AW35: 0 | AX35: 6326 | AY35: 379 | AZ35: 547 | BA35: 7252 | BB35: 6436 | BC35: 4 | BD35: 54 | BE35: 6 | BF35: 10 | BG35: 364 | BI35: 822 | BJ35: 664 | BL35: 206 | BM35: 0 | BN35: -29 | BO35: -8 | BP35: 0 | BQ35: 169 | BS35: -444 | BV35: -2322 | BY35: 1058 | CA35: 8936 | CF35: 22 | CT35: -45 | CU35: -2510 | CV35: 105 | CW35: 83 | CX35: 8
A36: 105 | B36: Hyrynsalmi | C36: 2326 | D36: 21.75 | G36: 16914 | H36: 32982 | I36: 0 | J36: 6247 | K36: 801 | L36: 851 | M36: 7899 | N36: 11169 | O36: 4 | P36: 49 | Q36: 18 | R36: 111 | S36: 2801 | U36: 1272 | V36: 0 | X36: 1529 | Y36: 3 | Z36: 0 | AA36: -25 | AB36: 0 | AD36: 1507 | AF36: -1654 | AI36: -1495 | AL36: 2413 | AN36: 9162 | AQ36: 2287 | AR36: 21.75 | AU36: 17513 | AV36: 34689 | AW36: 0 | AX36: 5826 | AY36: 701 | AZ36: 1190 | BA36: 7657 | BB36: 11343 | BC36: 4 | BD36: 44 | BE36: 15 | BF36: 41 | BG36: 1758 | BI36: 1707 | BJ36: -1 | BL36: 50 | BM36: 3 | BN36: 0 | BO36: -12 | BP36: 0 | BQ36: 41 | BS36: -1613 | BV36: -2891 | BY36: 3470 | CA36: 11029 | CF36: 21.75 | CT36: 227 | CU36: -2988 | CV36: 59 | CW36: 38 | CX36: -1
A37: 106 | B37: Hyvinkää | C37: 46739 | D37: 19.75 | G37: 177245 | H37: 383035 | I37: 236 | J37: 173516 | K37: 11471 | L37: 13356 | M37: 198343 | N37: 51169 | O37: 42 | P37: 3266 | Q37: 637 | R37: 518 | S37: 40246 | U37: 30538 | V37: 238 | X37: 9946 | Y37: -237 | Z37: -200 | AA37: -572 | AB37: -82 | AD37: 8855 | AF37: 56526 | AI37: -45035 | AL37: 51504 | AN37: 236489 | AQ37: 46504 | AR37: 19.75 | AU37: 315013 | AV37: 533029 | AW37: -71 | AX37: 174257 | AY37: 13476 | AZ37: 11764 | BA37: 198798 | BB37: 51806 | BC37: 40 | BD37: 3017 | BE37: 497 | BF37: 531 | BG37: 29506 | BI37: 31206 | BJ37: 0 | BL37: -1700 | BM37: -19 | BN37: -216 | BO37: -65 | BP37: -62 | BQ37: -2062 | BS37: 54416 | BV37: -48910 | BY37: 51751 | CA37: 259590 | CF37: 19.75 | CT37: -7650 | CU37: -61875 | CV37: 1043 | CW37: 11922 | CX37: 78
A38: 108 | B38: Hämeenkyrö | C38: 10599 | D38: 22 | G38: 36936 | H38: 89241 | I38: 56 | J38: 34472 | K38: 1636 | L38: 2131 | M38: 38239 | N38: 21765 | O38: 69 | P38: 479 | Q38: 663 | R38: 275 | S38: 7673 | U38: 6635 | V38: 0 | X38: 1038 | Y38: 9 | Z38: -62 | AA38: -59 | AB38: -96 | AD38: 830 | AF38: 5670 | AI38: -9512 | AL38: 11095 | AN38: 61756 | AQ38: 10510 | AR38: 22 | AU38: 40010 | AV38: 91156 | AW38: 7 | AX38: 33656 | AY38: 1656 | AZ38: 2107 | BA38: 37360 | BB38: 21575 | BC38: 39 | BD38: 402 | BE38: 517 | BF38: 150 | BG38: 7800 | BI38: 6895 | BJ38: 0 | BL38: 905 | BM38: 1 | BN38: -67 | BO38: -43 | BP38: -87 | BQ38: 709 | BS38: 5974 | BV38: -12535 | BY38: 11997 | CA38: 67089 | CF38: 22 | CT38: -127 | CU38: -13636 | CV38: 490 | CW38: 611 | CX38: 30
A39: 109 | B39: Hämeenlinna | C39: 67662 | D39: 20.75 | G39: 222299 | H39: 566706 | I39: 800 | J39: 238140 | K39: 16011 | L39: 26920 | M39: 281071 | N39: 113537 | O39: 457 | P39: 10788 | Q39: 5394 | R39: 382 | S39: 43252 | U39: 42380 | V39: 1471 | X39: 2343 | Y39: 2 | Z39: -12 | AA39: 82 | AB39: 168 | AD39: 2583 | AF39: 8011 | AI39: -46257 | AL39: 121546 | AN39: 426284 | AQ39: 67532 | AR39: 20.75 | AU39: 229427 | AV39: 577780 | AW39: 590 | AX39: 237794 | AY39: 15868 | AZ39: 27569 | BA39: 278719 | BB39: 113720 | BC39: 593 | BD39: 9894 | BE39: 6308 | BF39: 2852 | BG39: 38831 | BI39: 50268 | BJ39: 0 | BL39: -11437 | BM39: 7469 | BN39: -106 | BO39: -77 | BP39: -162 | BQ39: -4313 | BS39: 3715 | BV39: -42198 | BY39: 125550 | CA39: 432523 | CF39: 20.75 | CT39: -7789 | CU39: -61347 | CV39: 272 | CW39: 18877 | CX39: -81
A40: 139 | B40: Ii | C40: 9966 | D40: 21.25 | G40: 59869 | H40: 111519 | I40: 4 | J40: 26592 | K40: 1526 | L40: 3520 | M40: 31638 | N40: 27677 | O40: 26 | P40: 591 | Q40: 175 | R40: 8 | S40: 7272 | U40: 5869 | V40: 0 | X40: 1403 | Y40: 42 | Z40: -4 | AA40: -120 | AB40: -9 | AD40: 1312 | AF40: 14529 | AI40: -12175 | AL40: 11380 | AN40: 52711 | AQ40: 9862 | AR40: 21.25 | AU40: 60810 | AV40: 118217 | AW40: 3 | AX40: 26489 | AY40: 1373 | AZ40: 4228 | BA40: 32091 | BB40: 30145 | BC40: 32 | BD40: 663 | BE40: 251 | BF40: 46 | BG40: 4406 | BI40: 6056 | BJ40: 486 | BL40: -1164 | BM40: -52 | BN40: -6 | BO40: -53 | BP40: -7 | BQ40: -1282 | BS40: 13144 | BV40: -10829 | BY40: 8091 | CA40: 57005 | CF40: 21.25 | CT40: -1104 | CU40: -12859 | CV40: 316 | CW40: 1714 | CX40: 592
A41: 140 | B41: Iisalmi | C41: 21639 | D41: 20.5 | G41: 120731 | H41: 242112 | I41: 653 | J41: 64544 | K41: 5255 | L41: 5774 | M41: 75573 | N41: 64261 | O41: 148 | P41: 564 | Q41: 2139 | R41: 871 | S41: 19394 | U41: 14003 | V41: -15 | X41: 5376 | Y41: -25 | Z41: -17 | AA41: -224 | AB41: -41 | AD41: 5069 | AF41: 32377 | AI41: -25194 | AL41: 34239 | AN41: 98358 | AQ41: 21472 | AR41: 20.5 | AU41: 118486 | AV41: 243970 | AW41: 571 | AX41: 63744 | AY41: 5766 | AZ41: 5737 | BA41: 74684 | BB41: 67041 | BC41: 112 | BD41: 659 | BE41: 1591 | BF41: 1165 | BG41: 16691 | BI41: 15532 | BJ41: 2327 | BL41: 3486 | BM41: 400 | BN41: -11 | BO41: -202 | BP41: -9 | BQ41: 3664 | BS41: 36042 | BV41: -17256 | BY41: 45498 | CA41: 109138 | CF41: 20.5 | CT41: -3820 | CU41: -21369 | CV41: 235 | CW41: 3878 | CX41: 104
A42: 142 | B42: Iitti | C42: 6820 | D42: 20.25 | G42: 27351 | H42: 63863 | I42: 0 | J42: 20213 | K42: 2463 | L42: 1491 | M42: 24167 | N42: 15180 | O42: 4 | P42: 224 | Q42: 100 | R42: 17 | S42: 2698 | U42: 3068 | V42: 0 | X42: -370 | Y42: 0 | Z42: 0 | AA42: 0 | AB42: 0 | AD42: -370 | AF42: 316 | AI42: -1442 | AL42: 6656 | AN42: 20664 | AQ42: 6765 | AR42: 20.75 | AU42: 28376 | AV42: 64468 | AW42: 0 | AX42: 19362 | AY42: 1421 | AZ42: 2453 | BA42: 23237 | BB42: 14934 | BC42: 7 | BD42: 182 | BE42: 212 | BF42: 36 | BG42: 2080 | BI42: 2918 | BJ42: 230 | BL42: -608 | BM42: 0 | BN42: 0 | BO42: 0 | BP42: 0 | BQ42: -608 | BS42: -290 | BV42: -1360 | BY42: 8042 | CA42: 20291 | CF42: 20.75 | CT42: -71 | CU42: -1864 | CV42: 286 | CW42: 218 | CX42: -3
A43: 143 | B43: Ikaalinen | C43: 7119 | D43: 21.25 | G43: 30047 | H43: 74520 | I43: 55 | J43: 20748 | K43: 1732 | L43: 2896 | M43: 25376 | N43: 22929 | O43: 6 | P43: 203 | Q43: 448 | R43: 92 | S43: 3941 | U43: 3574 | V43: 0 | X43: 367 | Y43: -8 | Z43: -71 | AA43: 5 | AB43: -64 | AD43: 229 | AF43: 3114 | AI43: -6562 | AL43: 6621 | AN43: 42644 | AQ43: 7003 | AR43: 21.25 | AU43: 32840 | AV43: 79419 | AW43: 11 | AX43: 20257 | AY43: 1663 | AZ43: 2907 | BA43: 24715 | BB43: 25162 | BC43: 6 | BD43: 285 | BE43: 502 | BF43: 99 | BG43: 3433 | BI43: 4265 | BJ43: 0 | BL43: -832 | BM43: 842 | BN43: -82 | BO43: 1 | BP43: -58 | BQ43: -129 | BS43: 2678 | BV43: -8145 | BY43: 7751 | CA43: 45751 | CF43: 21.75 | CT43: 930 | CU43: -8341 | CV43: 90 | CW43: 106 | CX43: 330
A44: 145 | B44: Ilmajoki | C44: 12205 | D44: 20.25 | G44: 61655 | H44: 122728 | I44: 0 | J44: 35206 | K44: 1430 | L44: 2306 | M44: 38942 | N44: 29015 | O44: 11 | P44: 813 | Q44: 151 | R44: 56 | S44: 6177 | U44: 5027 | V44: 0 | X44: 1150 | Y44: -61 | Z44: -5 | AA44: -6 | AB44: -20 | AD44: 1058 | AF44: 9718 | AI44: -6095 | AL44: 8513 | AN44: 68362 | AQ44: 12187 | AR44: 20.75 | AU44: 63377 | AV44: 127869 | AW44: 13 | AX44: 35062 | AY44: 1571 | AZ44: 2516 | BA44: 39149 | BB44: 28873 | BC44: 23 | BD44: 635 | BE44: 197 | BF44: 143 | BG44: 2985 | BI44: 5050 | BJ44: 0 | BL44: -2065 | BM44: 13 | BN44: -9 | BO44: -4 | BP44: -3 | BQ44: -2068 | BS44: 7611 | BV44: -7560 | BY44: 7810 | CA44: 69346 | CF44: 20.75 | CT44: -616 | CU44: -7458 | CV44: 19 | CW44: -121 | CX44: 2
A45: 146 | B45: Ilomantsi | C45: 5128 | D45: 20.75 | G45: 31722 | H45: 70039 | I45: 4 | J45: 13573 | K45: 3414 | L45: 1372 | M45: 18359 | N45: 23577 | O45: 20 | P45: 261 | Q45: 360 | R45: 23 | S45: 3719 | U45: 3541 | V45: -157 | X45: 21 | Y45: -28 | Z45: -11 | AA45: 2 | AB45: 38 | AD45: 22 | AF45: 2484 | AI45: -7566 | AL45: 7979 | AN45: 21383 | AQ45: 4973 | AR45: 20.75 | AU45: 33211 | AV45: 70208 | AW45: -1 | AX45: 12588 | AY45: 3121 | AZ45: 1351 | BA45: 17060 | BB45: 21278 | BC45: 42 | BD45: 217 | BE45: 341 | BF45: 34 | BG45: 1472 | BI45: 3250 | BJ45: 0 | BL45: -1778 | BM45: 0 | BN45: -2 | BO45: -12 | BP45: 43 | BQ45: -1749 | BS45: 761 | BV45: -2552 | BY45: 5738 | CA45: 19475 | CF45: 21 | CT45: 68 | CU45: -2642 | CV45: 18 | CW45: 72 | CX45: 305
A46: 153 | B46: Imatra | C46: 27269 | D46: 20 | G46: 148086 | H46: 288149 | I46: -6 | J46: 91183 | K46: 4487 | L46: 9920 | M46: 105590 | N46: 65658 | O46: 135 | P46: 2461 | Q46: 218 | R46: 6 | S46: 29065 | U46: 23575 | V46: 854 | X46: 6344 | Y46: 747 | Z46: -374 | AA46: -81 | AB46: -65 | AD46: 6571 | AF46: 52223 | AI46: -36352 | AL46: 13588 | AN46: 200492 | AQ46: 26932 | AR46: 20 | AU46: 71109 | AV46: 221611 | AW46: 149 | AX46: 89509 | AY46: 3740 | AZ46: 9785 | BA46: 102066 | BB46: 67070 | BC46: 141 | BD46: 2374 | BE46: 193 | BF46: 0 | BG46: 16743 | BI46: 20807 | BJ46: 0 | BL46: -4064 | BM46: 407 | BN46: -397 | BO46: -297 | BP46: 0 | BQ46: -4351 | BS46: 49132 | BV46: -39956 | BY46: 20931 | CA46: 219774 | CF46: 20 | CT46: 1643 | CU46: -46611 | CV46: 395 | CW46: 6260 | CX46: 83
A47: 148 | B47: Inari | C47: 6869 | D47: 19 | G47: 38359 | H47: 76083 | I47: -2 | J47: 19854 | K47: 2578 | L47: 4245 | M47: 26677 | N47: 23456 | O47: 50 | P47: 791 | Q47: 160 | R47: 33 | S47: 11793 | U47: 5689 | V47: 1 | X47: 6105 | Y47: -18 | Z47: -343 | AA47: -260 | AB47: -234 | AD47: 5250 | AF47: 23370 | AI47: -8740 | AL47: 14244 | AN47: 43499 | AQ47: 6930 | AR47: 19 | AU47: 39087 | AV47: 79381 | AW47: 4 | AX47: 21115 | AY47: 2487 | AZ47: 4390 | BA47: 27992 | BB47: 23428 | BC47: 69 | BD47: 736 | BE47: 116 | BF47: 181 | BG47: 10398 | BI47: 5562 | BJ47: -4 | BL47: 4832 | BM47: 44 | BN47: -320 | BO47: -360 | BP47: -207 | BQ47: 3989 | BS47: 26271 | BV47: -8501 | BY47: 15031 | CA47: 41708 | CF47: 19 | CT47: -171 | CU47: -9678 | CV47: 467 | CW47: 710 | CX47: -211
A48: 149 | B48: Inkoo | C48: 5481 | D48: 20.75 | G48: 15299 | H48: 44385 | I48: 0 | J48: 21433 | K48: 1107 | L48: 3038 | M48: 25578 | N48: 6278 | O48: 1 | P48: 141 | Q48: 61 | R48: 51 | S48: 2640 | U48: 2176 | V48: 0 | X48: 464 | Y48: 2 | Z48: 0 | AA48: 0 | AB48: 0 | AD48: 466 | AF48: 7667 | AI48: -1827 | AL48: 2981 | AN48: 16695 | AQ48: 5403 | AR48: 20.75 | AU48: 16424 | AV48: 46096 | AW48: -3 | AX48: 21994 | AY48: 1042 | AZ48: 2939 | BA48: 25976 | BB48: 7112 | BC48: 0 | BD48: 127 | BE48: 62 | BF48: 51 | BG48: 3297 | BI48: 2533 | BJ48: 0 | BL48: 764 | BM48: -2 | BN48: 0 | BO48: 0 | BP48: 0 | BQ48: 762 | BS48: 8429 | BV48: -2644 | BY48: 4670 | CA48: 18304 | CF48: 20.75 | CT48: -162 | CU48: -2720 | CV48: 28 | CW48: 48 | CX48: 0
A49: 151 | B49: Isojoki | C49: 2032 | D49: 22 | G49: 16348 | H49: 30446 | I49: 133 | J49: 5409 | K49: 656 | L49: 447 | M49: 6512 | N49: 9061 | O49: 1 | P49: 46 | Q49: 28 | R49: 19 | S49: 1572 | U49: 856 | V49: 0 | X49: 716 | Y49: 2 | Z49: 0 | AA49: -1 | AB49: -6 | AD49: 711 | AF49: 2113 | AI49: -612 | AL49: 2590 | AN49: 3508 | AQ49: 1976 | AR49: 22 | AU49: 16393 | AV49: 30729 | AW49: 129 | AX49: 5099 | AY49: 619 | AZ49: 454 | BA49: 6172 | BB49: 8645 | BC49: 0 | BD49: 49 | BE49: 28 | BF49: 22 | BG49: 567 | BI49: 892 | BJ49: 0 | BL49: -325 | BM49: 2 | BN49: 0 | BO49: -1 | BP49: 0 | BQ49: -324 | BS49: 1414 | BV49: -1205 | BY49: 3226 | CA49: 3847 | CF49: 22 | CT49: -88 | CU49: -1518 | CV49: 49 | CW49: 264 | CX49: 6
A50: 152 | B50: Isokyrö | C50: 4673 | D50: 21.5 | G50: 13217 | H50: 37748 | I50: -7 | J50: 13541 | K50: 636 | L50: 886 | M50: 15063 | N50: 13132 | O50: 8 | P50: 159 | Q50: 61 | R50: 19 | S50: 3548 | U50: 1886 | V50: 142 | X50: 1804 | Y50: -37 | Z50: 0 | AA50: 0 | AB50: -10 | AD50: 1757 | AF50: 12604 | AI50: -2971 | AL50: 4331 | AN50: 9694 | AQ50: 4601 | AR50: 21.5 | AU50: 13048 | AV50: 37479 | AW50: 5 | AX50: 13175 | AY50: 574 | AZ50: 895 | BA50: 14646 | BB50: 13385 | BC50: 8 | BD50: 152 | BE50: 73 | BF50: 32 | BG50: 3502 | BI50: 1963 | BJ50: 0 | BL50: 1539 | BM50: 57 | BN50: 0 | BO50: 0 | BP50: -1 | BQ50: 1595 | BS50: 13710 | BV50: -2867 | BY50: 5298 | CA50: 9520 | CF50: 21.5 | CT50: -26 | CU50: -2914 | CV50: 3 | CW50: 44 | CX50: 3
A51: 165 | B51: Janakkala | C51: 16607 | D51: 21 | G51: 43023 | H51: 123571 | I51: 0 | J51: 58492 | K51: 2676 | L51: 3636 | M51: 64804 | N51: 27894 | O51: 17 | P51: 654 | Q51: 132 | R51: 11 | S51: 11441 | U51: 7908 | V51: 292 | X51: 3825 | Y51: 4 | Z51: -79 | AA51: -10 | AB51: -7 | AD51: 3733 | AF51: 7147 | AI51: -7125 | AL51: 15999 | AN51: 70271 | AQ51: 16447 | AR51: 21 | AU51: 44691 | AV51: 127061 | AW51: 0 | AX51: 57504 | AY51: 2130 | AZ51: 3658 | BA51: 63114 | BB51: 26747 | BC51: 14 | BD51: 626 | BE51: 186 | BF51: 122 | BG51: 6943 | BI51: 7938 | BJ51: 80 | BL51: -915 | BM51: 1 | BN51: -30 | BO51: 94 | BP51: 0 | BQ51: -850 | BS51: 6209 | BV51: -7421 | BY51: 14138 | CA51: 69815 | CF51: 21 | CT51: -347 | CU51: -8597 | CV51: 221 | CW51: 955 | CX51: 69
A52: 167 | B52: Joensuu | C52: 76067 | D52: 20.5 | G52: 356517 | H52: 737618 | I52: -83 | J52: 220248 | K52: 21356 | L52: 20776 | M52: 262380 | N52: 186922 | O52: 562 | P52: 4886 | Q52: 5555 | R52: 308 | S52: 69041 | U52: 57334 | V52: -2729 | X52: 8978 | Y52: -681 | Z52: -435 | AA52: -867 | AB52: -240 | AD52: 6755 | AF52: 73685 | AI52: -80712 | AL52: 160312 | AN52: 486034 | AQ52: 76551 | AR52: 20.5 | AU52: 379627 | AV52: 750242 | AW52: -87 | AX52: 218368 | AY52: 21169 | AZ52: 21099 | BA52: 260636 | BB52: 163791 | BC52: 414 | BD52: 4519 | BE52: 3454 | BF52: 1411 | BG52: 51663 | BI52: 61289 | BJ52: 0 | BL52: -9626 | BM52: -513 | BN52: -620 | BO52: -733 | BP52: -265 | BQ52: -11757 | BS52: 61624 | BV52: -90055 | BY52: 148073 | CA52: 507042 | CF52: 20.5 | CT52: -2421 | CU52: -98703 | CV52: 2494 | CW52: 6154 | CX52: 2590
A53: 169 | B53: Jokioinen | C53: 5286 | D53: 20.5 | G53: 27261 | H53: 54213 | I53: -4 | J53: 16672 | K53: 1080 | L53: 895 | M53: 18647 | N53: 11336 | O53: -59 | P53: 154 | Q53: 139 | R53: 46 | S53: 2907 | U53: 2538 | V53: 27 | X53: 396 | Y53: 3 | Z53: 0 | AA53: 0 | AB53: 0 | AD53: 399 | AF53: 5562 | AI53: -1350 | AL53: 854 | AN53: 21130 | AQ53: 5195 | AR53: 21.25 | AU53: 27694 | AV53: 55287 | AW53: -14 | AX53: 16786 | AY53: 1021 | AZ53: 986 | BA53: 18793 | BB53: 11120 | BC53: 1 | BD53: 180 | BE53: 78 | BF53: 48 | BG53: 2157 | BI53: 2974 | BJ53: 7 | BL53: -810 | BM53: 0 | BN53: -1 | BO53: 0 | BP53: -1 | BQ53: -812 | BS53: 6092 | BV53: -594 | BY53: 944 | CA53: 18755 | CF53: 21.25 | CT53: -77 | CU53: -955 | CV53: 28 | CW53: 333 | CX53: 0
A54: 171 | B54: Joroinen | C54: 4917 | D54: 20.75 | G54: 24452 | H54: 51864 | I54: -15 | J54: 14749 | K54: 1489 | L54: 1183 | M54: 17421 | N54: 12421 | O54: 72 | P54: 211 | Q54: 221 | R54: 92 | S54: 2360 | U54: 1968 | V54: 0 | X54: 392 | Y54: 0 | Z54: 0 | AA54: 0 | AB54: -10 | AD54: 382 | AF54: 496 | AI54: -2426 | AL54: 18447 | AN54: 27827 | AQ54: 4812 | AR54: 20.75 | AU54: 25026 | AV54: 53568 | AW54: 6 | AX54: 13705 | AY54: 1385 | AZ54: 1125 | BA54: 16171 | BB54: 12205 | BC54: 162 | BD54: 214 | BE54: 78 | BF54: 200 | BG54: -334 | BI54: 1468 | BJ54: 0 | BL54: -1802 | BM54: -4 | BN54: 0 | BO54: 0 | BP54: -2 | BQ54: -1808 | BS54: -1304 | BV54: -7320 | BY54: 14346 | CA54: 31179 | CF54: 21.25 | CT54: 11 | CU54: -7290 | CV54: 59 | CW54: -89 | CX54: 307
A55: 172 | B55: Joutsa | C55: 4567 | D55: 21 | G55: 13962 | H55: 43415 | I55: 1 | J55: 12364 | K55: 1492 | L55: 1686 | M55: 15542 | N55: 16562 | O55: 3 | P55: 146 | Q55: 106 | R55: 29 | S55: 2536 | U55: 2272 | V55: -1037 | X55: -773 | Y55: 5 | Z55: -6 | AA55: 9 | AB55: 11 | AD55: -754 | AF55: 2581 | AI55: -5675 | AL55: 4177 | AN55: 23572 | AQ55: 4467 | AR55: 21 | AU55: 13567 | AV55: 42727 | AW55: -21 | AX55: 11668 | AY55: 1476 | AZ55: 1754 | BA55: 14830 | BB55: 16221 | BC55: 4 | BD55: 161 | BE55: 153 | BF55: 28 | BG55: 1838 | BI55: 2251 | BJ55: 100 | BL55: -313 | BM55: 0 | BN55: 2 | BO55: 3 | BP55: 20 | BQ55: -288 | BS55: 2276 | BV55: -3669 | BY55: 3540 | CA55: 23137 | CF55: 21 | CT55: 132 | CU55: -3723 | CV55: 2 | CW55: 52 | CX55: 8
A56: 176 | B56: Juuka | C56: 4817 | D56: 20.75 | G56: 34359 | H56: 66595 | I56: 0 | J56: 11708 | K56: 1860 | L56: 1213 | M56: 14781 | N56: 22088 | O56: 93 | P56: 109 | Q56: 393 | R56: 3 | S56: 5007 | U56: 3287 | V56: -553 | X56: 1167 | Y56: -904 | Z56: -25 | AA56: -1 | AB56: -2 | AD56: 235 | AF56: 11179 | AI56: -6871 | AL56: 9468 | AN56: 12659 | AQ56: 4709 | AR56: 20.75 | AU56: 35715 | AV56: 66898 | AW56: 0 | AX56: 10804 | AY56: 1646 | AZ56: 1204 | BA56: 13654 | BB56: 20074 | BC56: 96 | BD56: 87 | BE56: 372 | BF56: 1 | BG56: 2925 | BI56: 2784 | BJ56: 0 | BL56: 141 | BM56: -247 | BN56: -39 | BO56: -4 | BP56: 0 | BQ56: -149 | BS56: 11272 | BV56: -2516 | BY56: 10533 | CA56: 11039 | CF56: 20.75 | CT56: 327 | CU56: -2771 | CV56: 49 | CW56: 206 | CX56: 288
A57: 177 | B57: Juupajoki | C57: 1904 | D57: 21 | G57: 7086 | H57: 17134 | I57: 12 | J57: 5707 | K57: 924 | L57: 543 | M57: 7174 | N57: 4285 | O57: 7 | P57: 50 | Q57: 173 | R57: 111 | S57: 1442 | U57: 803 | V57: -2 | X57: 637 | Y57: 1 | Z57: 0 | AA57: 0 | AB57: 72 | AD57: 710 | AF57: 2823 | AI57: -1183 | AL57: 1146 | AN57: 6060 | AQ57: 1884 | AR57: 21 | AU57: 7480 | AV57: 17860 | AW57: 24 | AX57: 5424 | AY57: 1003 | AZ57: 484 | BA57: 6911 | BB57: 4239 | BC57: 25 | BD57: 63 | BE57: 10 | BF57: 9 | BG57: 757 | BI57: 831 | BJ57: 0 | BL57: -74 | BM57: -1 | BN57: 0 | BO57: 0 | BP57: 71 | BQ57: -4 | BS57: 2704 | BV57: -1099 | BY57: 1191 | CA57: 6405 | CF57: 21 | CT57: 20 | CU57: -1224 | CV57: 128 | CW57: -3 | CX57: 37
A58: 178 | B58: Juva | C58: 6334 | D58: 19.75 | G58: 30684 | H58: 66970 | I58: 216 | J58: 15240 | K58: 2548 | L58: 1505 | M58: 19293 | N58: 21780 | O58: 22 | P58: 249 | Q58: 626 | R58: 29 | S58: 5316 | U58: 4198 | V58: 3 | X58: 1121 | Y58: -33 | Z58: 0 | AA58: 0 | AB58: -11 | AD58: 1077 | AF58: 3944 | AI58: -4975 | AL58: 5295 | AN58: 31771 | AQ58: 6225 | AR58: 20.75 | AU58: 31710 | AV58: 70030 | AW58: 153 | AX58: 15564 | AY58: 2405 | AZ58: 1513 | BA58: 19425 | BB58: 21548 | BC58: 5 | BD58: 197 | BE58: 518 | BF58: 34 | BG58: 3098 | BI58: 2731 | BJ58: -115 | BL58: 252 | BM58: -18 | BN58: 0 | BO58: 0 | BP58: -1 | BQ58: 233 | BS58: 3993 | BV58: -6126 | BY58: 1513 | CA58: 31903 | CF58: 20.75 | CT58: -278 | CU58: -6290 | CV58: 33 | CW58: 131 | CX58: 1045
A59: 179 | B59: Jyväskylä | C59: 140188 | D59: 20 | G59: 555518 | H59: 1157049 | I59: 489 | J59: 440260 | K59: 27051 | L59: 47096 | M59: 514407 | N59: 263554 | O59: 844 | P59: 17129 | Q59: 432 | R59: 2106 | S59: 158960 | U59: 117804 | V59: 0 | X59: 41156 | Y59: 138 | Z59: -4198 | AA59: -1455 | AB59: -127 | AD59: 35514 | AF59: 40775 | AI59: -131197 | AL59: 63438 | AN59: 1035466 | AQ59: 141305 | AR59: 20 | AU59: 570959 | AV59: 1203046 | AW59: 935 | AX59: 438821 | AY59: 25942 | AZ59: 48998 | BA59: 510190 | BB59: 266167 | BC59: 719 | BD59: 16011 | BE59: 1212 | BF59: 1508 | BG59: 129617 | BI59: 114136 | BJ59: 0 | BL59: 15481 | BM59: -498 | BN59: -2413 | BO59: -2174 | BP59: -637 | BQ59: 9759 | BS59: 33107 | BV59: -210152 | BY59: 37036 | CA59: 1099603 | CF59: 20 | CT59: -18033 | CU59: -233394 | CV59: 1776 | CW59: 21466 | CX59: -82
A60: 181 | B60: Jämijärvi | C60: 1867 | D60: 22.5 | G60: 8896 | H60: 20177 | I60: 0 | J60: 5008 | K60: 305 | L60: 392 | M60: 5705 | N60: 6094 | O60: 0 | P60: 57 | Q60: 11 | R60: 7 | S60: 454 | U60: 560 | V60: 0 | X60: -106 | Y60: 0 | Z60: 0 | AA60: 0 | AB60: 0 | AD60: -106 | AF60: -2798 | AI60: -333 | AL60: 905 | AN60: 7074 | AQ60: 1809 | AR60: 22.5 | AU60: 9347 | AV60: 20040 | AW60: 0 | AX60: 4775 | AY60: 274 | AZ60: 721 | BA60: 5760 | BB60: 5781 | BC60: 0 | BD60: 47 | BE60: 43 | BF60: 7 | BG60: 837 | BI60: 553 | BJ60: 407 | BL60: 691 | BM60: 0 | BN60: 0 | BO60: 0 | BP60: 0 | BQ60: 691 | BS60: -2092 | BV60: -47 | BY60: 662 | CA60: 6120 | CF60: 22.5 | CT60: -493 | CU60: -649 | CV60: 32 | CW60: 570 | CX60: -100
A61: 182 | B61: Jämsä | C61: 20877 | D61: 21 | G61: 63810 | H61: 195533 | I61: 1453 | J61: 69890 | K61: 9416 | L61: 6107 | M61: 85413 | N61: 57946 | O61: 32 | P61: 834 | Q61: 195 | R61: 119 | S61: 12363 | U61: 15968 | V61: 0 | X61: -3605 | Y61: 2267 | Z61: -26 | AA61: 0 | AB61: -10 | AD61: -1374 | AF61: 11080 | AI61: -12796 | AL61: 17588 | AN61: 71787 | AQ61: 20607 | AR61: 21 | AU61: 66909 | AV61: 196655 | AW61: -165 | AX61: 69472 | AY61: 8479 | AZ61: 6087 | BA61: 84038 | BB61: 57135 | BC61: 18 | BD61: 740 | BE61: 602 | BF61: 154 | BG61: 10988 | BI61: 13515 | BJ61: 2360 | BL61: -167 | BM61: -123 | BN61: -29 | BO61: 0 | BP61: -25 | BQ61: -344 | BS61: 11343 | BV61: -4998 | BY61: 18621 | CA61: 69605 | CF61: 21 | CT61: -2270 | CU61: -10644 | CV61: 501 | CW61: 5145 | CX61: 45
A62: 186 | B62: Järvenpää | C62: 42572 | D62: 19.75 | G62: 127885 | H62: 320599 | I62: 533 | J62: 163681 | K62: 5316 | L62: 12903 | M62: 181900 | N62: 36638 | O62: 1305 | P62: 1339 | Q62: 439 | R62: 1143 | S62: 24764 | U62: 33397 | V62: 57 | X62: -8576 | Y62: -42 | Z62: -245 | AA62: 924 | AB62: 18 | AD62: -7921 | AF62: 36104 | AI62: -34918 | AL62: 13927 | AN62: 299420 | AQ62: 43410 | AR62: 19.75 | AU62: 260125 | AV62: 457858 | AW62: 258 | AX62: 168830 | AY62: 5198 | AZ62: 13788 | BA62: 186872 | BB62: 39476 | BC62: 347 | BD62: 1419 | BE62: 393 | BF62: 1326 | BG62: 26868 | BI62: 34919 | BJ62: 0 | BL62: -8051 | BM62: -14 | BN62: -215 | BO62: -108 | BP62: 27 | BQ62: -8361 | BS62: 29844 | BV62: -67194 | BY62: 12273 | CA62: 340857 | CF62: 19.75 | CT62: -11504 | CU62: -81978 | CV62: 1163 | CW62: 13621 | CX62: 0
A63: 202 | B63: Kaarina | C63: 33099 | D63: 19.75 | G63: 82653 | H63: 236306 | I63: 10 | J63: 125226 | K63: 4979 | L63: 7061 | M63: 137266 | N63: 33728 | O63: 642 | P63: 1256 | Q63: 672 | R63: 19 | S63: 17390 | U63: 13520 | V63: 1 | X63: 3871 | Y63: 0 | Z63: -4 | AA63: -3 | AB63: -8 | AD63: 3856 | AF63: 29136 | AI63: -26564 | AL63: 24445 | AN63: 118530 | AQ63: 33458 | AR63: 19.75 | AU63: 83798 | AV63: 246041 | AW63: 6 | AX63: 127265 | AY63: 4896 | AZ63: 7185 | BA63: 139346 | BB63: 32724 | BC63: 466 | BD63: 1851 | BE63: 901 | BF63: 40 | BG63: 9309 | BI63: 13062 | BJ63: 0 | BL63: -3753 | BM63: 0 | BN63: -1 | BO63: 0 | BP63: 3 | BQ63: -3751 | BS63: 25166 | BV63: -19783 | BY63: 17148 | CA63: 121676 | CF63: 19.75 | CT63: -2409 | CU63: -24077 | CV63: 179 | CW63: 4115 | CX63: 1
A64: 204 | B64: Kaavi | C64: 3048 | D64: 21.25 | G64: 14106 | H64: 35250 | I64: 44 | J64: 6988 | K64: 1051 | L64: 995 | M64: 9034 | N64: 13323 | O64: 6 | P64: 306 | Q64: 202 | R64: 22 | S64: 1137 | U64: 1676 | V64: 0 | X64: -539 | Y64: 3 | Z64: -5 | AA64: -3 | AB64: -14 | AD64: -558 | AF64: 666 | AI64: -1334 | AL64: 1163 | AN64: 17209 | AQ64: 2990 | AR64: 21.75 | AU64: 14264 | AV64: 35986 | AW64: 89 | AX64: 7148 | AY64: 967 | AZ64: 1104 | BA64: 9191 | BB64: 13487 | BC64: 4 | BD64: 290 | BE64: 214 | BF64: 25 | BG64: 948 | BI64: 1508 | BJ64: -50 | BL64: -610 | BM64: 4 | BN64: -1 | BO64: -1 | BP64: -2 | BQ64: -610 | BS64: 35 | BV64: 2 | BY64: 2286 | CA64: 16584 | CF64: 22 | CT64: 96 | CU64: -1276 | CV64: 75 | CW64: 1203 | CX64: 1
A65: 205 | B65: Kajaani | C65: 37239 | D65: 21 | G65: 300207 | H65: 501841 | I65: 372 | J65: 122933 | K65: 5736 | L65: 9985 | M65: 138654 | N65: 115897 | O65: 160 | P65: 2348 | Q65: 1267 | R65: 6890 | S65: 44730 | U65: 40492 | V65: 0 | X65: 4238 | Y65: 58 | Z65: -787 | AA65: -1212 | AB65: -436 | AD65: 1861 | AF65: 83131 | AI65: -53661 | AL65: 20991 | AN65: 336027 | AQ65: 36973 | AR65: 21 | AU65: 298911 | AV65: 514215 | AW65: 791 | AX65: 120067 | AY65: 5397 | AZ65: 10142 | BA65: 134861 | BB65: 116209 | BC65: 191 | BD65: 2365 | BE65: 427 | BF65: 6111 | BG65: 28699 | BI65: 37698 | BJ65: 0 | BL65: -8999 | BM65: -286 | BN65: -780 | BO65: -493 | BP65: -225 | BQ65: -10783 | BS65: 72348 | BV65: -65584 | BY65: 26025 | CA65: 383759 | CF65: 21 | CT65: 1074 | CU65: -99694 | CV65: 1480 | CW65: 32630 | CX65: 187
A66: 208 | B66: Kalajoki | C66: 12516 | D66: 20 | G66: 37969 | H66: 102797 | I66: 49 | J66: 32482 | K66: 2716 | L66: 3557 | M66: 38755 | N66: 34367 | O66: 68 | P66: 471 | Q66: 730 | R66: 56 | S66: 8458 | U66: 8322 | V66: 906 | X66: 1042 | Y66: 6 | Z66: -53 | AA66: 36 | AB66: -65 | AD66: 966 | AF66: 21970 | AI66: -8567 | AL66: 26271 | AN66: 59412 | AQ66: 12387 | AR66: 20 | AU66: 39888 | AV66: 104096 | AW66: 136 | AX66: 31797 | AY66: 2129 | AZ66: 5079 | BA66: 38850 | BB66: 35082 | BC66: 101 | BD66: 473 | BE66: 859 | BF66: 385 | BG66: 9962 | BI66: 9926 | BJ66: 146 | BL66: 182 | BM66: 10 | BN66: -54 | BO66: 59 | BP66: -89 | BQ66: 108 | BS66: 22174 | BV66: -17047 | BY66: 27680 | CA66: 68437 | CF66: 21 | CT66: -1502 | CU66: -21918 | CV66: 2038 | CW66: 2833 | CX66: 570
A67: 211 | B67: Kangasala | C67: 31437 | D67: 21 | G67: 109187 | H67: 245528 | I67: 172 | J67: 117566 | K67: 4095 | L67: 7080 | M67: 128741 | N67: 38279 | O67: 20 | P67: 1359 | Q67: 2864 | R67: 475 | S67: 31901 | U67: 17812 | V67: 0 | X67: 14089 | Y67: 1 | Z67: -360 | AA67: 701 | AB67: -124 | AD67: 14307 | AF67: 72926 | AI67: -19751 | AL67: 54946 | AN67: 101312 | AQ67: 31676 | AR67: 21 | AU67: 116161 | AV67: 265051 | AW67: 29 | AX67: 114129 | AY67: 4094 | AZ67: 7148 | BA67: 125174 | BB67: 37493 | BC67: 98 | BD67: 1233 | BE67: 3194 | BF67: 2714 | BG67: 13151 | BI67: 17607 | BJ67: 0 | BL67: -4456 | BM67: 1 | BN67: -375 | BO67: -79 | BP67: -211 | BQ67: -5120 | BS67: 67806 | BV67: -29567 | BY67: 43833 | CA67: 101383 | CF67: 21 | CT67: -1138 | CU67: -31635 | CV67: 20 | CW67: 2048 | CX67: 17
A68: 213 | B68: Kangasniemi | C68: 5549 | D68: 20.75 | G68: 24133 | H68: 57883 | I68: -5 | J68: 14031 | K68: 2828 | L68: 1826 | M68: 18685 | N68: 18676 | O68: 27 | P68: 256 | Q68: 148 | R68: 3 | S68: 3522 | U68: 2607 | V68: 3 | X68: 918 | Y68: -6 | Z68: 0 | AA68: 0 | AB68: 6 | AD68: 918 | AF68: -213 | AI68: -3511 | AL68: 2669 | AN68: 30220 | AQ68: 5452 | AR68: 20.75 | AU68: 25024 | AV68: 59547 | AW68: 5 | AX68: 13689 | AY68: 2568 | AZ68: 1807 | BA68: 18063 | BB68: 18116 | BC68: 23 | BD68: 193 | BE68: 186 | BF68: 2 | BG68: 1675 | BI68: 2585 | BJ68: 15 | BL68: -895 | BM68: 8 | BN68: 0 | BO68: 0 | BP68: 9 | BQ68: -878 | BS68: -907 | BV68: -3501 | BY68: 1764 | CA68: 30405 | CF68: 20.75 | CT68: -108 | CU68: -3629 | CV68: 110 | CW68: 18 | CX68: 115
A69: 214 | B69: Kankaanpää | C69: 11585 | D69: 21.5 | G69: 67466 | H69: 126957 | I69: 23 | J69: 34115 | K69: 2752 | L69: 3002 | M69: 39869 | N69: 28508 | O69: 22 | P69: 446 | Q69: 769 | R69: 34 | S69: 9220 | U69: 8672 | V69: 0 | X69: 548 | Y69: -1 | Z69: 0 | AA69: -139 | AB69: -553 | AD69: -145 | AF69: 9952 | AI69: -11156 | AL69: 6687 | AN69: 67725 | AQ69: 11471 | AR69: 21.5 | AU69: 67714 | AV69: 129320 | AW69: 20 | AX69: 33790 | AY69: 2546 | AZ69: 3442 | BA69: 39779 | BB69: 28613 | BC69: 18 | BD69: 446 | BE69: 631 | BF69: 25 | BG69: 6984 | BI69: 9583 | BJ69: 0 | BL69: -2599 | BM69: -1 | BN69: 0 | BO69: -200 | BP69: -632 | BQ69: -3432 | BS69: 6400 | BV69: -11055 | BY69: 5387 | CA69: 73033 | CF69: 21.5 | CT69: 596 | CU69: -12055 | CV69: 670 | CW69: 330 | CX69: -8
A70: 216 | B70: Kannonkoski | C70: 1408 | D70: 21 | G70: 14824 | H70: 23332 | I70: 0 | J70: 3216 | K70: 570 | L70: 443 | M70: 4229 | N70: 5963 | O70: 20 | P70: 16 | Q70: 77 | R70: 4 | S70: 1761 | U70: 1587 | V70: 320 | X70: 494 | Y70: 4 | Z70: 0 | AA70: 0 | AB70: 9 | AD70: 507 | AF70: 11862 | AI70: -2936 | AL70: 4119 | AN70: 10558 | AQ70: 1353 | AR70: 21 | AU70: 15267 | AV70: 24123 | AW70: 0 | AX70: 3034 | AY70: 574 | AZ70: 441 | BA70: 4049 | BB70: 5907 | BC70: 14 | BD70: 19 | BE70: 145 | BF70: 53 | BG70: 1187 | BI70: 1292 | BJ70: 18 | BL70: -87 | BM70: 1 | BN70: 0 | BO70: 0 | BP70: 8 | BQ70: -78 | BS70: 11798 | BV70: -2654 | BY70: 4288 | CA70: 11737 | CF70: 21 | CT70: 11 | CU70: -2656 | CV70: 2 | CW70: 0 | CX70: 0
A71: 217 | B71: Kannus | C71: 5520 | D71: 20.5 | G71: 35050 | H71: 62747 | I71: 312 | J71: 15135 | K71: 1210 | L71: 1276 | M71: 17621 | N71: 13531 | O71: 33 | P71: 152 | Q71: 50 | R71: 17 | S71: 3681 | U71: 3155 | V71: 0 | X71: 526 | Y71: -27 | Z71: -54 | AA71: 0 | AB71: -36 | AD71: 409 | AF71: 12434 | AI71: -3883 | AL71: 7389 | AN71: 28275 | AQ71: 5502 | AR71: 21.5 | AU71: 38693 | AV71: 65720 | AW71: 227 | AX71: 15347 | AY71: 1153 | AZ71: 1279 | BA71: 17779 | BB71: 13339 | BC71: 25 | BD71: 141 | BE71: 34 | BF71: 34 | BG71: 4202 | BI71: 3147 | BJ71: 0 | BL71: 1055 | BM71: -271 | BN71: -144 | BO71: 0 | BP71: -150 | BQ71: 490 | BS71: 12872 | BV71: -2401 | BY71: 9621 | CA71: 28644 | CF71: 21.5 | CT71: -849 | CU71: -3806 | CV71: 44 | CW71: 1361 | CX71: 23
A72: 218 | B72: Karijoki | C72: 1329 | D72: 22 | G72: 9610 | H72: 17813 | I72: 0 | J72: 3707 | K72: 308 | L72: 227 | M72: 4242 | N72: 4983 | O72: 0 | P72: 38 | Q72: 9 | R72: 5 | S72: 989 | U72: 459 | V72: 0 | X72: 530 | Y72: 0 | Z72: 0 | AA72: -4 | AB72: -2 | AD72: 524 | AF72: 1659 | AI72: -514 | AL72: 2939 | AN72: 2969 | AQ72: 1274 | AR72: 22 | AU72: 9985 | AV72: 18628 | AW72: 1 | AX72: 3509 | AY72: 281 | AZ72: 243 | BA72: 4032 | BB72: 4880 | BC72: 0 | BD72: 37 | BE72: 9 | BF72: 6 | BG72: 236 | BI72: 451 | BJ72: 0 | BL72: -215 | BM72: 1 | BN72: 0 | BO72: 0 | BP72: 0 | BQ72: -214 | BS72: 1246 | BV72: -1464 | BY72: 1819 | CA72: 3034 | CF72: 22 | CT72: 19 | CU72: -1497 | CV72: 0 | CW72: 33 | CX72: 1
A73: 224 | B73: Karkkila | C73: 8900 | D73: 20.75 | G73: 50714 | H73: 97193 | I73: 0 | J73: 27960 | K73: 1347 | L73: 2251 | M73: 31558 | N73: 19650 | O73: 33 | P73: 650 | Q73: 131 | R73: -132 | S73: 4370 | U73: 4082 | V73: 21 | X73: 309 | Y73: 3 | Z73: 0 | AA73: 0 | AB73: 3 | AD73: 315 | AF73: 2745 | AI73: -7835 | AL73: 5466 | AN73: 62977 | AQ73: 8778 | AR73: 20.75 | AU73: 53575 | AV73: 100388 | AW73: -6 | AX73: 27267 | AY73: 1193 | AZ73: 2260 | BA73: 30716 | BB73: 20049 | BC73: 36 | BD73: 585 | BE73: 135 | BF73: 111 | BG73: 3421 | BI73: 4326 | BJ73: 0 | BL73: -905 | BM73: 0 | BN73: -2 | BO73: 0 | BP73: -9 | BQ73: -916 | BS73: 1808 | BV73: -2031 | BY73: 7880 | CA73: 62980 | CF73: 20.75 | CT73: -878 | CU73: -3161 | CV73: 54 | CW73: 1076 | CX73: 0
A74: 226 | B74: Karstula | C74: 4146 | D74: 20 | G74: 33982 | H74: 58196 | I74: 0 | J74: 9803 | K74: 1365 | L74: 962 | M74: 12130 | N74: 15983 | O74: 80 | P74: 35 | Q74: 30 | R74: 84 | S74: 3890 | U74: 2810 | V74: 0 | X74: 1080 | Y74: 183 | Z74: -45 | AA74: -28 | AB74: -68 | AD74: 1122 | AF74: 5119 | AI74: -3465 | AL74: 11877 | AN74: 22341 | AQ74: 4031 | AR74: 21 | AU74: 33843 | AV74: 58799 | AW74: 0 | AX74: 9626 | AY74: 1298 | AZ74: 1089 | BA74: 12013 | BB74: 15483 | BC74: 82 | BD74: 57 | BE74: 49 | BF74: 33 | BG74: 2581 | BI74: 2604 | BJ74: 0 | BL74: -23 | BM74: 0 | BN74: -58 | BO74: 14 | BP74: -89 | BQ74: -156 | BS74: 3514 | BV74: -4105 | BY74: 12843 | CA74: 24222 | CF74: 21.5 | CT74: 114 | CU74: -5420 | CV74: 636 | CW74: 679 | CX74: 363
A75: 230 | B75: Karvia | C75: 2403 | D75: 19.75 | G75: 21599 | H75: 34103 | I75: -2 | J75: 5486 | K75: 703 | L75: 536 | M75: 6725 | N75: 8588 | O75: 11 | P75: 83 | Q75: 138 | R75: 9 | S75: 2851 | U75: 2331 | V75: 0 | X75: 520 | Y75: 0 | Z75: -2 | AA75: -69 | AB75: -233 | AD75: 216 | AF75: 13318 | AI75: -4561 | AL75: 3981 | AN75: 10693 | AQ75: 2390 | AR75: 20.5 | AU75: 21936 | AV75: 34722 | AW75: -11 | AX75: 5092 | AY75: 615 | AZ75: 704 | BA75: 6397 | BB75: 8185 | BC75: 9 | BD75: 97 | BE75: 92 | BF75: 12 | BG75: 1777 | BI75: 2482 | BJ75: 0 | BL75: -705 | BM75: 0 | BN75: -2 | BO75: -68 | BP75: -265 | BQ75: -1040 | BS75: 12455 | BV75: -1707 | BY75: 3464 | CA75: 10224 | CF75: 20.5 | CT75: -400 | CU75: -2199 | CV75: 194 | CW75: 298 | CX75: 116
A76: 231 | B76: Kaskinen | C76: 1274 | D76: 22 | G76: 4118 | H76: 11886 | I76: 0 | J76: 4837 | K76: 1205 | L76: 596 | M76: 6638 | N76: 2217 | O76: 1 | P76: 58 | Q76: 14 | R76: 10 | S76: 1034 | U76: 1111 | V76: 0 | X76: -77 | Y76: 21 | Z76: 0 | AA76: -47 | AB76: 0 | AD76: -103 | AF76: 5809 | AI76: -2402 | AL76: 423 | AN76: 5469 | AQ76: 1262 | AR76: 22 | AU76: 4865 | AV76: 12922 | AW76: 0 | AX76: 4970 | AY76: 1082 | AZ76: 610 | BA76: 6663 | BB76: 1913 | BC76: 2 | BD76: 57 | BE76: 8 | BF76: 7 | BG76: 465 | BI76: 1940 | BJ76: 0 | BL76: -1475 | BM76: -8 | BN76: 0 | BO76: -18 | BP76: 0 | BQ76: -1501 | BS76: 4329 | BV76: -108 | BY76: 215 | CA76: 5444 | CF76: 22 | CT76: -589 | CU76: -909 | CV76: 33 | CW76: 768 | CX76: 0
A77: 232 | B77: Kauhajoki | C77: 13610 | D77: 22 | G77: 83982 | H77: 163501 | I77: 157 | J77: 38421 | K77: 4023 | L77: 3421 | M77: 45865 | N77: 43727 | O77: 17 | P77: 1135 | Q77: 1419 | R77: 71 | S77: 10460 | U77: 8016 | V77: 0 | X77: 2444 | Y77: -14 | Z77: 0 | AA77: -37 | AB77: 18 | AD77: 2411 | AF77: 153 | AI77: -6954 | AL77: 25438 | AN77: 93095 | AQ77: 13375 | AR77: 22 | AU77: 84479 | AV77: 166629 | AW77: 214 | AX77: 37191 | AY77: 3479 | AZ77: 3850 | BA77: 44521 | BB77: 43857 | BC77: 59 | BD77: 1020 | BE77: 1304 | BF77: 311 | BG77: 6474 | BI77: 8076 | BJ77: 0 | BL77: -1602 | BM77: -54 | BN77: 0 | BO77: -7 | BP77: -25 | BQ77: -1688 | BS77: -2381 | BV77: -8822 | BY77: 23584 | CA77: 93478 | CF77: 22 | CT77: -326 | CU77: -9594 | CV77: -6 | CW77: 778 | CX77: -141
A78: 233 | B78: Kauhava | C78: 16278 | D78: 21.75 | G78: 117673 | H78: 212526 | I78: 27 | J78: 47136 | K78: 4064 | L78: 3913 | M78: 55113 | N78: 56125 | O78: 155 | P78: 1098 | Q78: 228 | R78: 183 | S78: 15514 | U78: 11844 | V78: 0 | X78: 3670 | Y78: 629 | Z78: -194 | AA78: -35 | AB78: -46 | AD78: 4024 | AF78: 25744 | AI78: -12396 | AL78: 31545 | AN78: 108413 | AQ78: 16022 | AR78: 21.75 | AU78: 119536 | AV78: 218741 | AW78: 53 | AX78: 44637 | AY78: 3319 | AZ78: 4089 | BA78: 52045 | BB78: 54506 | BC78: 21 | BD78: 1133 | BE78: 314 | BF78: 270 | BG78: 6331 | BI78: 11590 | BJ78: 0 | BL78: -5259 | BM78: 646 | BN78: -128 | BO78: -28 | BP78: -13 | BQ78: -4782 | BS78: 20042 | BV78: -22374 | BY78: 30277 | CA78: 121585 | CF78: 21.75 | CT78: 130 | CU78: -23477 | CV78: 306 | CW78: 797 | CX78: 2794
A79: 235 | B79: Kauniainen | C79: 9624 | D79: 17 | G79: 40332 | H79: 93315 | I79: 1 | J79: 62530 | K79: 2081 | L79: 4659 | M79: 69270 | N79: -796 | O79: 226 | P79: 334 | Q79: 136 | R79: 89 | S79: 15431 | U79: 9319 | V79: 45 | X79: 6157 | Y79: 83 | Z79: -5 | AA79: 18 | AB79: -8 | AD79: 6245 | AF79: 49060 | AI79: -16760 | AL79: 12107 | AN79: 21859 | AQ79: 9615 | AR79: 17 | AU79: 42147 | AV79: 96141 | AW79: -5 | AX79: 62301 | AY79: 1997 | AZ79: 4851 | BA79: 69149 | BB79: -2284 | BC79: 238 | BD79: 328 | BE79: 147 | BF79: 93 | BG79: 12830 | BI79: 9199 | BJ79: 0 | BL79: 3631 | BM79: -246 | BN79: -7 | BO79: -61 | BP79: 0 | BQ79: 3317 | BS79: 51762 | BV79: -10447 | BY79: 11855 | CA79: 19470 | CF79: 17 | CT79: -1954 | CU79: -12506 | CV79: 22 | CW79: 2037 | CX79: -2
A80: 236 | B80: Kaustinen | C80: 4309 | D80: 21.5 | G80: 28898 | H80: 51486 | I80: 172 | J80: 11740 | K80: 1457 | L80: 893 | M80: 14090 | N80: 12284 | O80: 36 | P80: 299 | Q80: 37 | R80: 207 | S80: 3418 | U80: 3351 | V80: -12 | X80: 55 | Y80: 0 | Z80: 0 | AA80: 0 | AB80: 0 | AD80: 55 | AF80: 4606 | AI80: -5172 | AL80: 5330 | AN80: 47846 | AQ80: 4273 | AR80: 21.5 | AU80: 31162 | AV80: 55132 | AW80: 120 | AX80: 12180 | AY80: 1031 | AZ80: 957 | BA80: 14057 | BB80: 12977 | BC80: 95 | BD80: 358 | BE80: 47 | BF80: 97 | BG80: 2871 | BI80: 3261 | BJ80: -1 | BL80: -391 | BM80: -76 | BN80: 0 | BO80: 0 | BP80: 8 | BQ80: -459 | BS80: 3906 | BV80: -3542 | BY80: 6309 | CA80: 49632 | CF80: 21.5 | CT80: -1262 | CU80: -6061 | CV80: 49 | CW80: 2470 | CX80: -5
A81: 239 | B81: Keitele | C81: 2309 | D81: 20.5 | G81: 10079 | H81: 25038 | I81: 14 | J81: 5995 | K81: 759 | L81: 561 | M81: 7315 | N81: 8139 | O81: 3 | P81: 85 | Q81: 164 | R81: 55 | S81: 536 | U81: 1036 | V81: 0 | X81: -500 | Y81: 3 | Z81: -3 | AA81: -2 | AB81: -8 | AD81: -510 | AF81: 986 | AI81: -1083 | AL81: 650 | AN81: 17768 | AQ81: 2244 | AR81: 20.5 | AU81: 10247 | AV81: 24712 | AW81: 22 | AX81: 5713 | AY81: 618 | AZ81: 542 | BA81: 6874 | BB81: 7943 | BC81: 3 | BD81: 87 | BE81: 257 | BF81: 44 | BG81: 503 | BI81: 1150 | BJ81: -26 | BL81: -673 | BM81: 5 | BN81: 0 | BO81: -1 | BP81: 1 | BQ81: -668 | BS81: -1456 | BV81: -1349 | BY81: 2037 | CA81: 19621 | CF81: 20.5 | CT81: 0 | CU81: -1454 | CV81: 10 | CW81: 95 | CX81: 23
A82: 240 | B82: Kemi | C82: 21256 | D82: 21.25 | G82: 105205 | H82: 220500 | I82: 173 | J82: 73192 | K82: 8112 | L82: 6624 | M82: 87928 | N82: 50128 | O82: 45 | P82: 1937 | Q82: 310 | R82: 21 | S82: 20683 | U82: 13783 | V82: -60 | X82: 6840 | Y82: -33 | Z82: -1185 | AA82: -135 | AB82: -46 | AD82: 5441 | AF82: 4667 | AI82: -9096 | AL82: 16633 | AN82: 120540 | AQ82: 21021 | AR82: 21.75 | AU82: 111044 | AV82: 231676 | AW82: 132 | AX82: 72619 | AY82: 7185 | AZ82: 6556 | BA82: 85711 | BB82: 44851 | BC82: 71 | BD82: 1506 | BE82: 359 | BF82: 28 | BG82: 8958 | BI82: 13615 | BJ82: 35 | BL82: -4622 | BM82: -54 | BN82: -1219 | BO82: -79 | BP82: -26 | BQ82: -6000 | BS82: -1332 | BV82: -21297 | BY82: 17330 | CA82: 135345 | CF82: 21.75 | CT82: 128 | CU82: -26743 | CV82: 174 | CW82: 5272 | CX82: 4291
A83: 320 | B83: Kemijärvi | C83: 7534 | D83: 21 | G83: 50571 | H83: 101010 | I83: 0 | J83: 23514 | K83: 1292 | L83: 4347 | M83: 29153 | N83: 29068 | O83: 101 | P83: 1117 | Q83: 1610 | R83: 428 | S83: 7948 | U83: 6922 | V83: 9 | X83: 1035 | Y83: 61 | Z83: 0 | AA83: -416 | AB83: -397 | AD83: 283 | AF83: 7243 | AI83: -12097 | AL83: 11187 | AN83: 71662 | AQ83: 7370 | AR83: 21.5 | AU83: 51891 | AV83: 101202 | AW83: 0 | AX83: 23822 | AY83: 1298 | AZ83: 4326 | BA83: 29446 | BB83: 28548 | BC83: 99 | BD83: 1083 | BE83: 1774 | BF83: 708 | BG83: 8765 | BI83: 7171 | BJ83: 0 | BL83: 1594 | BM83: 57 | BN83: 0 | BO83: -485 | BP83: -316 | BQ83: 850 | BS83: 7513 | BV83: -4299 | BY83: 11476 | CA83: 66238 | CF83: 21.5 | CT83: -300 | CU83: -7226 | CV83: 164 | CW83: 2763 | CX83: 59
A84: 241 | B84: Keminmaa | C84: 8296 | D84: 21.25 | G84: 26511 | H84: 68392 | I84: 0 | J84: 30084 | K84: 925 | L84: 3812 | M84: 34821 | N84: 12703 | O84: 3 | P84: 380 | Q84: 135 | R84: 20 | S84: 5322 | U84: 4048 | V84: -425 | X84: 849 | Y84: 6 | Z84: 0 | AA84: -101 | AB84: 0 | AD84: 754 | AF84: 5626 | AI84: -3559 | AL84: 9230 | AN84: 29237 | AQ84: 8147 | AR84: 21.25 | AU84: 27442 | AV84: 71492 | AW84: 0 | AX84: 30057 | AY84: 1033 | AZ84: 3765 | BA84: 34796 | BB84: 12410 | BC84: 5 | BD84: 314 | BE84: 134 | BF84: 11 | BG84: 2970 | BI84: 4057 | BJ84: 713 | BL84: -374 | BM84: 5 | BN84: 0 | BO84: -165 | BP84: 0 | BQ84: -534 | BS84: 5459 | BV84: 3539 | BY84: 9404 | CA84: 26012 | CF84: 21.25 | CT84: -584 | CU84: -3591 | CV84: 133 | CW84: 6997 | CX84: 149
A85: 322 | B85: Kemiönsaari | C85: 6793 | D85: 19.75 | G85: 28373 | H85: 66346 | I85: 4 | J85: 19154 | K85: 1007 | L85: 3221 | M85: 23382 | N85: 22148 | O85: -2 | P85: 470 | Q85: 134 | R85: 95 | S85: 7128 | U85: 5106 | V85: 0 | X85: 2022 | Y85: 0 | Z85: -62 | AA85: -37 | AB85: -15 | AD85: 1908 | AF85: 20132 | AI85: -5932 | AL85: 7557 | AN85: 36308 | AQ85: 6724 | AR85: 19.75 | AU85: 27424 | AV85: 68266 | AW85: 2 | AX85: 17833 | AY85: 1070 | AZ85: 3359 | BA85: 22262 | BB85: 21205 | BC85: -1 | BD85: 452 | BE85: 157 | BF85: 97 | BG85: 2234 | BI85: 5149 | BJ85: 0 | BL85: -2915 | BM85: -214 | BN85: -59 | BO85: 27 | BP85: -2 | BQ85: -3163 | BS85: 17302 | BV85: -1754 | BY85: 3881 | CA85: 31218 | CF85: 19.75 | CT85: -333 | CU85: -2496 | CV85: 198 | CW85: 544 | CX85: 0
A86: 244 | B86: Kempele | C86: 17535 | D86: 20.5 | G86: 34369 | H86: 119201 | I86: 85 | J86: 60190 | K86: 3445 | L86: 3609 | M86: 67244 | N86: 28301 | O86: 4 | P86: 855 | Q86: 103 | R86: 3 | S86: 10047 | U86: 8222 | V86: 0 | X86: 1825 | Y86: 76 | Z86: -2 | AA86: 22 | AB86: 6 | AD86: 1927 | AF86: 21414 | AI86: -17673 | AL86: 13933 | AN86: 61107 | AQ86: 17923 | AR86: 20.5 | AU86: 37141 | AV86: 124080 | AW86: -32 | AX86: 61290 | AY86: 3686 | AZ86: 3688 | BA86: 68585 | BB86: 28668 | BC86: 15 | BD86: 810 | BE86: 81 | BF86: 83 | BG86: 9485 | BI86: 7897 | BJ86: 453 | BL86: 2041 | BM86: -109 | BN86: -2 | BO86: -31 | BP86: -15 | BQ86: 1884 | BS86: 23761 | BV86: -15539 | BY86: 15040 | CA86: 71092 | CF86: 20.5 | CT86: -4742 | CU86: -21605 | CV86: 281 | CW86: 5785 | CX86: -34
A87: 245 | B87: Kerava | C87: 35554 | D87: 19.25 | G87: 178172 | H87: 327844 | I87: 28 | J87: 135457 | K87: 11635 | L87: 9734 | M87: 156826 | N87: 34423 | O87: 132 | P87: 904 | Q87: 1699 | R87: 767 | S87: 41261 | U87: 29517 | V87: 134 | X87: 11878 | Y87: 39 | Z87: -362 | AA87: -523 | AB87: -172 | AD87: 10860 | AF87: 137647 | AI87: -47220 | AL87: 22809 | AN87: 177664 | AQ87: 36254 | AR87: 19.25 | AU87: 182884 | AV87: 338222 | AW87: 59 | AX87: 132745 | AY87: 9562 | AZ87: 10224 | BA87: 151935 | BB87: 35834 | BC87: 134 | BD87: 916 | BE87: 1271 | BF87: 720 | BG87: 32259 | BI87: 30748 | BJ87: 0 | BL87: 1511 | BM87: -10 | BN87: -19 | BO87: -68 | BP87: 60 | BQ87: 1474 | BS87: 139430 | BV87: -37435 | BY87: 23517 | CA87: 179815 | CF87: 19.25 | CT87: -4306 | CU87: -44837 | CV87: 84 | CW87: 7318 | CX87: 139
A88: 249 | B88: Keuruu | C88: 9919 | D88: 20.5 | G88: 52407 | H88: 105050 | I88: 125 | J88: 28769 | K88: 2595 | L88: 2449 | M88: 33813 | N88: 31687 | O88: 36 | P88: 651 | Q88: 152 | R88: 41 | S88: 12400 | U88: 9916 | V88: 0 | X88: 2484 | Y88: 11 | Z88: -38 | AA88: -94 | AB88: -219 | AD88: 2144 | AF88: 13623 | AI88: -14837 | AL88: 6006 | AN88: 100404 | AQ88: 9762 | AR88: 21.5 | AU88: 55436 | AV88: 109333 | AW88: 217 | AX88: 29644 | AY88: 2473 | AZ88: 2156 | BA88: 34185 | BB88: 31000 | BC88: 44 | BD88: 672 | BE88: 168 | BF88: 98 | BG88: 10947 | BI88: 10153 | BJ88: 0 | BL88: 794 | BM88: -1 | BN88: -80 | BO88: -155 | BP88: -379 | BQ88: 179 | BS88: 14074 | BV88: -12967 | BY88: 6636 | CA88: 102233 | CF88: 21.5 | CT88: -517 | CU88: -14242 | CV88: 41 | CW88: 1234 | CX88: 0
A89: 250 | B89: Kihniö | C89: 1967 | D89: 21.5 | G89: 5798 | H89: 18419 | I89: 12 | J89: 4685 | K89: 706 | L89: 492 | M89: 5883 | N89: 7665 | O89: 3 | P89: 146 | Q89: 124 | R89: 21 | S89: 896 | U89: 1017 | V89: 0 | X89: -121 | Y89: 0 | Z89: -10 | AA89: -4 | AB89: -16 | AD89: -151 | AF89: -428 | AI89: -1605 | AL89: 2638 | AN89: 10723 | AQ89: 1910 | AR89: 21.5 | AU89: 6900 | AV89: 19089 | AW89: 1 | AX89: 4554 | AY89: 664 | AZ89: 560 | BA89: 5774 | BB89: 7457 | BC89: 3 | BD89: 144 | BE89: 131 | BF89: 22 | BG89: 1011 | BI89: 894 | BJ89: 0 | BL89: 117 | BM89: 0 | BN89: -11 | BO89: -1 | BP89: -16 | BQ89: 89 | BS89: -424 | BV89: -936 | BY89: 2850 | CA89: 10566 | CF89: 21.5 | CT89: -307 | CU89: -1317 | CV89: 32 | CW89: 349 | CX89: 23
A90: 256 | B90: Kinnula | C90: 1656 | D90: 20.5 | G90: 6144 | H90: 17047 | I90: 0 | J90: 3838 | K90: 578 | L90: 365 | M90: 4781 | N90: 7543 | O90: 90 | P90: 6 | Q90: 61 | R90: 5 | S90: 1558 | U90: 990 | V90: 0 | X90: 568 | Y90: 2 | Z90: 0 | AA90: 0 | AB90: 0 | AD90: 570 | AF90: 7397 | AI90: -990 | AL90: 3927 | AN90: 7980 | AQ90: 1615 | AR90: 20.5 | AU90: 5903 | AV90: 17749 | AW90: -29 | AX90: 3669 | AY90: 569 | AZ90: 365 | BA90: 4599 | BB90: 6995 | BC90: 79 | BD90: 5 | BE90: 45 | BF90: 7 | BG90: -169 | BI90: 1042 | BJ90: 0 | BL90: -1211 | BM90: 0 | BN90: 0 | BO90: 0 | BP90: 0 | BQ90: -1211 | BS90: 6144 | BV90: -2571 | BY90: 2561 | CA90: 9199 | CF90: 21 | CT90: 0 | CU90: -2610 | CV90: 22 | CW90: 17 | CX90: -50
A91: 257 | B91: Kirkkonummi | C91: 39170 | D91: 19.5 | G91: 112139 | H91: 307827 | I91: -55 | J91: 171018 | K91: 7265 | L91: 11436 | M91: 189719 | N91: 29021 | O91: 69 | P91: 1733 | Q91: 644 | R91: 292 | S91: 21678 | U91: 20514 | V91: 150 | X91: 1314 | Y91: 83 | Z91: 0 | AA91: -136 | AB91: 52 | AD91: 1313 | AF91: 26943 | AI91: -28285 | AL91: 27864 | AN91: 162359 | AQ91: 39262 | AR91: 19.5 | AU91: 120214 | AV91: 319679 | AW91: -59 | AX91: 171177 | AY91: 6599 | AZ91: 11571 | BA91: 189339 | BB91: 28687 | BC91: 73 | BD91: 1615 | BE91: 601 | BF91: 426 | BG91: 17135 | BI91: 21656 | BJ91: -190 | BL91: -4711 | BM91: 48 | BN91: -4 | BO91: -49 | BP91: 57 | BQ91: -4659 | BS91: 22294 | BV91: -30126 | BY91: 31470 | CA91: 174841 | CF91: 19.75 | CT91: -4249 | CU91: -35037 | CV91: 66 | CW91: 4845 | CX91: 79
A92: 260 | B92: Kitee | C92: 10486 | D92: 21.5 | G92: 62385 | H92: 124759 | I92: 0 | J92: 28980 | K92: 2594 | L92: 2748 | M92: 34322 | N92: 40203 | O92: 44 | P92: 318 | Q92: 454 | R92: 5 | S92: 12207 | U92: 5796 | V92: 533 | X92: 6944 | Y92: -55 | Z92: -67 | AA92: -94 | AB92: -31 | AD92: 6697 | AF92: 20997 | AI92: -2844 | AL92: 14202 | AN92: 25747 | AQ92: 10358 | AR92: 21.5 | AU92: 61656 | AV92: 126206 | AW92: 1 | AX92: 27147 | AY92: 2167 | AZ92: 2845 | BA92: 32042 | BB92: 39590 | BC92: 30 | BD92: 227 | BE92: 416 | BF92: 4 | BG92: 7298 | BI92: 4819 | BJ92: 20 | BL92: 2499 | BM92: 1 | BN92: -77 | BO92: -73 | BP92: -23 | BQ92: 2327 | BS92: 23324 | BV92: -4925 | BY92: 14424 | CA92: 20176 | CF92: 21 | CT92: 860 | CU92: -5143 | CV92: 72 | CW92: 146 | CX92: 396
A93: 261 | B93: Kittilä | C93: 6421 | D93: 20.25 | G93: 49471 | H93: 83698 | I93: 0 | J93: 19635 | K93: 7107 | L93: 2402 | M93: 29144 | N93: 20402 | O93: 17 | P93: 895 | Q93: 768 | R93: 1179 | S93: 14030 | U93: 8419 | V93: -55 | X93: 5556 | Y93: 891 | Z93: -529 | AA93: -84 | AB93: 584 | AD93: 6418 | AF93: 44152 | AI93: -7721 | AL93: 6068 | AN93: 50840 | AQ93: 6436 | AR93: 20.25 | AU93: 51079 | AV93: 90616 | AW93: 1248 | AX93: 19614 | AY93: 1926 | AZ93: 7040 | BA93: 28580 | BB93: 23980 | BC93: 1 | BD93: 668 | BE93: 716 | BF93: 823 | BG93: 13497 | BI93: 8502 | BJ93: 0 | BL93: 4995 | BM93: 662 | BN93: -386 | BO93: -46 | BP93: -671 | BQ93: 4554 | BS93: 48182 | BV93: -4269 | BY93: 7849 | CA93: 43992 | CF93: 20.25 | CT93: -2849 | CU93: -6021 | CV93: 67 | CW93: 1685 | CX93: 186
A94: 263 | B94: Kiuruvesi | C94: 8283 | D94: 20.75 | G94: 47164 | H94: 100169 | I94: 118 | J94: 20787 | K94: 1986 | L94: 1717 | M94: 24490 | N94: 34732 | O94: 20 | P94: 523 | Q94: 1219 | R94: 199 | S94: 6711 | U94: 6436 | V94: 1 | X94: 276 | Y94: 9 | Z94: -9 | AA94: -51 | AB94: -13 | AD94: 212 | AF94: 2622 | AI94: -6856 | AL94: 10841 | AN94: 56500 | AQ94: 8153 | AR94: 20.75 | AU94: 46447 | AV94: 100170 | AW94: 154 | AX94: 19533 | AY94: 1814 | AZ94: 1708 | BA94: 22913 | BB94: 34298 | BC94: 6 | BD94: 537 | BE94: 1112 | BF94: 377 | BG94: 3846 | BI94: 5634 | BJ94: 140 | BL94: -1648 | BM94: 9 | BN94: -4 | BO94: -66 | BP94: -2 | BQ94: -1711 | BS94: 887 | BV94: -4743 | BY94: 11832 | CA94: 56328 | CF94: 20.75 | CT94: -769 | CU94: -6402 | CV94: 463 | CW94: 1196 | CX94: 2
A95: 265 | B95: Kivijärvi | C95: 1132 | D95: 21 | G95: 10431 | H95: 18291 | I95: 0 | J95: 2518 | K95: 619 | L95: 379 | M95: 3516 | N95: 5541 | O95: 10 | P95: 67 | Q95: 13 | R95: 1 | S95: 1152 | U95: 1369 | V95: 0 | X95: -217 | Y95: 1 | Z95: 0 | AA95: -1 | AB95: 0 | AD95: -217 | AF95: 2060 | AI95: -1091 | AL95: 2657 | AN95: 7771 | AQ95: 1103 | AR95: 21.5 | AU95: 10488 | AV95: 18683 | AW95: 0 | AX95: 2441 | AY95: 609 | AZ95: 439 | BA95: 3489 | BB95: 5113 | BC95: 7 | BD95: 47 | BE95: 13 | BF95: 208 | BG95: 172 | BI95: 1106 | BJ95: 0 | BL95: -934 | BM95: 0 | BN95: 0 | BO95: -1 | BP95: 0 | BQ95: -935 | BS95: 1610 | BV95: -1764 | BY95: 2492 | CA95: 8596 | CF95: 21.5 | CT95: 11 | CU95: -1814 | CV95: 50 | CW95: 0 | CX95: 342
A96: 271 | B96: Kokemäki | C96: 7381 | D96: 21.75 | G96: 31895 | H96: 74205 | I96: 15 | J96: 22874 | K96: 1653 | L96: 2301 | M96: 26828 | N96: 19889 | O96: 10 | P96: 276 | Q96: 58 | R96: 38 | S96: 4128 | U96: 3484 | V96: 0 | X96: 644 | Y96: 25 | Z96: 0 | AA96: -24 | AB96: 0 | AD96: 645 | AF96: 1069 | AI96: -3581 | AL96: 4480 | AN96: 35522 | AQ96: 7226 | AR96: 21.75 | AU96: 32223 | AV96: 74380 | AW96: -14 | AX96: 22047 | AY96: 1229 | AZ96: 2525 | BA96: 25747 | BB96: 20169 | BC96: 17 | BD96: 219 | BE96: 69 | BF96: 119 | BG96: 3493 | BI96: 3618 | BJ96: -455 | BL96: -580 | BM96: 0 | BN96: -66 | BO96: 0 | BP96: 3 | BQ96: -643 | BS96: 452 | BV96: -3610 | BY96: 4030 | CA96: 34262 | CF96: 21.75 | CT96: 233 | CU96: -3963 | CV96: 202 | CW96: 151 | CX96: -12
A97: 272 | B97: Kokkola | C97: 47723 | D97: 21.75 | G97: 327002 | H97: 537772 | I97: 520 | J97: 159221 | K97: 16028 | L97: 15456 | M97: 190705 | N97: 86873 | O97: 445 | P97: 4593 | Q97: 2005 | R97: 355 | S97: 64363 | U97: 42548 | V97: 25022 | X97: 46837 | Y97: -1261 | Z97: -2222 | AA97: -1119 | AB97: -325 | AD97: 41910 | AF97: 98572 | AI97: -54007 | AL97: 108562 | AN97: 452664 | AQ97: 47657 | AR97: 21.75 | AU97: 332872 | AV97: 555741 | AW97: -20 | AX97: 156967 | AY97: 15715 | AZ97: 15332 | BA97: 186811 | BB97: 87938 | BC97: 660 | BD97: 4472 | BE97: 1551 | BF97: 2414 | BG97: 47185 | BI97: 41215 | BJ97: -21 | BL97: 5949 | BM97: -1389 | BN97: -1886 | BO97: -237 | BP97: -354 | BQ97: 2083 | BS97: 100604 | BV97: -44993 | BY97: 71426 | CA97: 408593 | CF97: 21.75 | CT97: 5161 | CU97: -53816 | CV97: 1895 | CW97: 6928 | CX97: -440
B98: KOKO MAA (Manner-Suomi) | C98: 5483641 | D98: 19.92 | G98: 24653392 | H98: 50758330 | I98: 81900 | J98: 18827691 | K98: 1887798 | L98: 1719296 | M98: 22434785 | N98: 9699290 | O98: 78182 | P98: 449810 | Q98: 223419 | R98: 67744 | S98: 5909985 | U98: 4146302 | V98: 84151 | X98: 1847834 | Y98: -9621 | Z98: -78796 | AA98: -48127 | AB98: -39026 | AD98: 1672264 | AF98: 12311904 | AI98: -5826619 | AL98: 7560048 | AN98: 34624959 | AQ98: 5488130 | AR98: 19.87 | AU98: 25941171 | AV98: 52925761 | AW98: 66298 | AX98: 18664568 | AY98: 1866127 | AZ98: 1790525 | BA98: 22270468 | BB98: 9617527 | BC98: 79083 | BD98: 413842 | BE98: 213264 | BF98: 110352 | BG98: 4737856 | BI98: 4281238 | BJ98: -9816 | BL98: 446802 | BM98: 17985 | BN98: -84766 | BO98: -64631 | BP98: -26068 | BQ98: 289322 | BS98: 12554784 | BV98: -3504641 | BY98: 3451236 | CA98: 35989201 | CF98: 19.9 | CT98: -238957 | CU98: -7992634 | CV98: 167702 | CW98: 1584265 | CX98: 14428
A99: 273 | B99: Kolari | C99: 3854 | D99: 20 | G99: 13684 | H99: 36769 | I99: 0 | J99: 9989 | K99: 3410 | L99: 732 | M99: 14131 | N99: 14401 | O99: 7 | P99: 144 | Q99: 20 | R99: 15 | S99: 5269 | U99: 3140 | V99: -381 | X99: 1748 | Y99: -29 | Z99: -5 | AA99: -9 | AB99: -6 | AD99: 1699 | AF99: 12271 | AI99: -5642 | AL99: 3844 | AN99: 11012 | AQ99: 3834 | AR99: 20 | AU99: 14698 | AV99: 39667 | AW99: 0 | AX99: 10418 | AY99: 762 | AZ99: 3676 | BA99: 14808 | BB99: 14322 | BC99: 5 | BD99: 126 | BE99: 28 | BF99: 21 | BG99: 4047 | BI99: 2943 | BJ99: 0 | BL99: 1104 | BM99: 13 | BN99: -5 | BO99: 19 | BP99: -6 | BQ99: 1125 | BS99: 14090 | BV99: -1620 | BY99: 5784 | CA99: 9885 | CF99: 20 | CT99: 2 | CU99: -2020 | CV99: 89 | CW99: 311 | CX99: 1060
A100: 275 | B100: Konnevesi | C100: 2748 | D100: 21.5 | G100: 8854 | H100: 26500 | I100: 0 | J100: 7241 | K100: 808 | L100: 765 | M100: 8814 | N100: 9500 | O100: 240 | P100: 230 | Q100: 4 | R100: 23 | S100: 638 | U100: 1814 | V100: 0 | X100: -1176 | Y100: -65 | Z100: -21 | AA100: 1 | AB100: 0 | AD100: -1261 | AF100: 2680 | AI100: -4025 | AL100: 3295 | AN100: 27023 | AQ100: 2698 | AR100: 22 | AU100: 8530 | AV100: 26317 | AW100: 0 | AX100: 7329 | AY100: 806 | AZ100: 782 | BA100: 8897 | BB100: 9290 | BC100: 247 | BD100: 225 | BE100: 11 | BF100: 62 | BG100: 371 | BI100: 1881 | BJ100: 0 | BL100: -1510 | BM100: -1 | BN100: -42 | BO100: 2 | BP100: 0 | BQ100: -1551 | BS100: 1395 | BV100: -2362 | BY100: 2469 | CA100: 27962 | CF100: 22 | CT100: -11 | CU100: -2919 | CV100: 180 | CW100: 377 | CX100: 0
A101: 276 | B101: Kontiolahti | C101: 14830 | D101: 20.5 | G101: 55600 | H101: 121480 | I101: 19 | J101: 46157 | K101: 1873 | L101: 2721 | M101: 50751 | N101: 23393 | O101: 17 | P101: 1021 | Q101: 307 | R101: 10 | S101: 7577 | U101: 6116 | V101: 418 | X101: 1879 | Y101: 39 | Z101: 0 | AA101: -1 | AB101: -4 | AD101: 1913 | AF101: 25920 | AI101: -15202 | AL101: 10276 | AN101: 59344 | AQ101: 14849 | AR101: 20.5 | AU101: 52941 | AV101: 124287 | AW101: 1 | AX101: 45058 | AY101: 1444 | AZ101: 2812 | BA101: 49315 | BB101: 24595 | BC101: 28 | BD101: 728 | BE101: 270 | BF101: 134 | BG101: 2001 | BI101: 5978 | BJ101: 36 | BL101: -3941 | BM101: 66 | BN101: -30 | BO101: -5 | BP101: 1 | BQ101: -3909 | BS101: 21864 | BV101: -14580 | BY101: 9216 | CA101: 68948 | CF101: 20.5 | CT101: -88 | CU101: -15365 | CV101: 470 | CW101: 315 | CX101: 732
A102: 280 | B102: Korsnäs | C102: 2154 | D102: 21 | G102: 7558 | H102: 19680 | I102: -3 | J102: 5407 | K102: 975 | L102: 709 | M102: 7091 | N102: 6824 | O102: 0 | P102: 56 | Q102: 16 | R102: 1 | S102: 1748 | U102: 1256 | V102: 20 | X102: 512 | Y102: 0 | Z102: 0 | AA102: 0 | AB102: 0 | AD102: 512 | AF102: 9341 | AI102: -1700 | AL102: 873 | AN102: 3540 | AQ102: 2122 | AR102: 21 | AU102: 7689 | AV102: 20112 | AW102: -2 | AX102: 5066 | AY102: 852 | AZ102: 721 | BA102: 6638 | BB102: 6535 | BC102: 0 | BD102: 53 | BE102: 17 | BF102: 12 | BG102: 700 | BI102: 1342 | BJ102: 0 | BL102: -642 | BM102: 0 | BN102: 0 | BO102: 0 | BP102: 0 | BQ102: -642 | BS102: 8699 | BV102: -1113 | BY102: 793 | CA102: 3213 | CF102: 21.5 | CT102: -36 | CU102: -1311 | CV102: 139 | CW102: 59 | CX102: -4
A103: 284 | B103: Koski tl | C103: 2359 | D103: 19.5 | G103: 9690 | H103: 22564 | I103: 1 | J103: 6359 | K103: 543 | L103: 536 | M103: 7438 | N103: 7397 | O103: 7 | P103: 29 | Q103: 22 | R103: 1 | S103: 1958 | U103: 1064 | V103: 0 | X103: 894 | Y103: 65 | Z103: 0 | AA103: 0 | AB103: 0 | AD103: 959 | AF103: 5381 | AI103: -1911 | AL103: 2271 | AN103: 1515 | AQ103: 2340 | AR103: 19.5 | AU103: 9779 | AV103: 23670 | AW103: 14 | AX103: 5587 | AY103: 599 | AZ103: 526 | BA103: 6709 | BB103: 7517 | BC103: 0 | BD103: 25 | BE103: 23 | BF103: 5 | BG103: 342 | BI103: 1138 | BJ103: 0 | BL103: -796 | BM103: 47 | BN103: -1 | BO103: 0 | BP103: -1 | BQ103: -751 | BS103: 4589 | BV103: -1465 | BY103: 2262 | CA103: 1443 | CF103: 19.5 | CT103: 20 | CU103: -1553 | CV103: 63 | CW103: 25 | CX103: -1
A104: 285 | B104: Kotka | C104: 53539 | D104: 21.5 | G104: 283620 | H104: 530822 | I104: 1172 | J104: 191014 | K104: 10128 | L104: 15046 | M104: 216188 | N104: 120860 | O104: 157 | P104: 6917 | Q104: 209 | R104: 3402 | S104: 79654 | U104: 64407 | V104: 48218 | X104: 63465 | Y104: 0 | Z104: -3058 | AA104: -212 | AB104: -2700 | AD104: 57495 | AF104: 15728 | AI104: -38929 | AL104: 130548 | AN104: 560306 | AQ104: 52883 | AR104: 21.5 | AU104: 299862 | AV104: 561357 | AW104: 304 | AX104: 187770 | AY104: 9500 | AZ104: 15212 | BA104: 211083 | BB104: 128242 | BC104: 151 | BD104: 5443 | BE104: 143 | BF104: 3251 | BG104: 69734 | BI104: 59107 | BJ104: 8402 | BL104: 19029 | BM104: 0 | BN104: -3403 | BO104: -93 | BP104: -3087 | BQ104: 12446 | BS104: 28173 | BV104: -81740 | BY104: 130131 | CA104: 557126 | CF104: 21.5 | CT104: -10804 | CU104: -109379 | CV104: 458 | CW104: 27181 | CX104: 140
A105: 286 | B105: Kouvola | C105: 84196 | D105: 20.75 | G105: 295120 | H105: 743319 | I105: 1968 | J105: 289198 | K105: 20631 | L105: 28306 | M105: 338135 | N105: 169167 | O105: 446 | P105: 5366 | Q105: 2534 | R105: 409 | S105: 56800 | U105: 44774 | V105: 0 | X105: 12026 | Y105: 0 | Z105: -2649 | AA105: -522 | AB105: 9 | AD105: 8864 | AF105: 36695 | AI105: -58155 | AL105: 69515 | AN105: 346723 | AQ105: 83177 | AR105: 20.75 | AU105: 313098 | AV105: 787091 | AW105: 4371 | AX105: 283094 | AY105: 27768 | AZ105: 20213 | BA105: 329566 | BB105: 170969 | BC105: 365 | BD105: 4904 | BE105: 1993 | BF105: 2028 | BG105: 26339 | BI105: 42700 | BJ105: 0 | BL105: -16361 | BM105: 5 | BN105: -2328 | BO105: -101 | BP105: -37 | BQ105: -18822 | BS105: 51931 | BV105: -66212 | BY105: 72835 | CA105: 367644 | CF105: 20.75 | CT105: -5102 | CU105: -74197 | CV105: 1102 | CW105: 6883 | CX105: -5
A106: 287 | B106: Kristiinankaupunki | C106: 6638 | D106: 21.5 | G106: 16952 | H106: 54919 | I106: 0 | J106: 20406 | K106: 1573 | L106: 2118 | M106: 24097 | N106: 20662 | O106: 1 | P106: 513 | Q106: 99 | R106: 68 | S106: 6311 | U106: 3176 | V106: 40 | X106: 3175 | Y106: -35 | Z106: 0 | AA106: -4 | AB106: 0 | AD106: 3136 | AF106: 10654 | AI106: -7784 | AL106: 2246 | AN106: 26451 | AQ106: 6596 | AR106: 21.5 | AU106: 22922 | AV106: 62871 | AW106: 0 | AX106: 19548 | AY106: 1369 | AZ106: 2552 | BA106: 23469 | BB106: 20205 | BC106: 1 | BD106: 485 | BE106: 124 | BF106: 29 | BG106: 3336 | BI106: 3313 | BJ106: 0 | BL106: 23 | BM106: 20 | BN106: 0 | BO106: -3 | BP106: 0 | BQ106: 40 | BS106: 10681 | BV106: -6854 | BY106: 7079 | CA106: 37013 | CF106: 21.5 | CT106: -569 | CU106: -8776 | CV106: 1303 | CW106: 619 | CX106: 0
A107: 288 | B107: Kruunupyy | C107: 6531 | D107: 21.25 | G107: 24300 | H107: 59838 | I107: 29 | J107: 18706 | K107: 1585 | L107: 2466 | M107: 22757 | N107: 16625 | O107: 10 | P107: 385 | Q107: 438 | R107: 7 | S107: 3929 | U107: 2460 | V107: 22 | X107: 1491 | Y107: 114 | Z107: -14 | AA107: -3 | AB107: 1 | AD107: 1589 | AF107: 8868 | AI107: -4599 | AL107: 4276 | AN107: 26247 | AQ107: 6509 | AR107: 22 | AU107: 26832 | AV107: 63498 | AW107: 24 | AX107: 19461 | AY107: 2316 | AZ107: 1807 | BA107: 23584 | BB107: 16364 | BC107: 6 | BD107: 352 | BE107: 159 | BF107: 15 | BG107: 3104 | BI107: 2821 | BJ107: -2 | BL107: 281 | BM107: -81 | BN107: -12 | BO107: -55 | BP107: 0 | BQ107: 133 | BS107: 8720 | BV107: -2812 | BY107: 3781 | CA107: 25266 | CF107: 22 | CT107: 30 | CU107: -2928 | CV107: 67 | CW107: 49 | CX107: 0
A108: 290 | B108: Kuhmo | C108: 8499 | D108: 21.5 | G108: 50942 | H108: 106694 | I108: 2 | J108: 23766 | K108: 3190 | L108: 2141 | M108: 29097 | N108: 32233 | O108: 86 | P108: 224 | Q108: 1492 | R108: 243 | S108: 6691 | U108: 5095 | V108: 0 | X108: 1596 | Y108: 12 | Z108: 0 | AA108: -147 | AB108: -159 | AD108: 1302 | AF108: 8637 | AI108: -20233 | AL108: 32023 | AN108: 50402 | AQ108: 8329 | AR108: 21.5 | AU108: 52066 | AV108: 108580 | AW108: 0 | AX108: 22756 | AY108: 2888 | AZ108: 2144 | BA108: 27788 | BB108: 32246 | BC108: 21 | BD108: 244 | BE108: 845 | BF108: 1332 | BG108: 2810 | BI108: 4882 | BJ108: -3 | BL108: -2075 | BM108: 12 | BN108: 0 | BO108: -135 | BP108: -238 | BQ108: -2436 | BS108: 6201 | BV108: -11469 | BY108: 29900 | CA108: 55585 | CF108: 21.5 | CT108: 464 | CU108: -11986 | CV108: 348 | CW108: 169 | CX108: 150
A109: 291 | B109: Kuhmoinen | C109: 2252 | D109: 20.75 | G109: 4784 | H109: 20319 | I109: 4 | J109: 5721 | K109: 1005 | L109: 1341 | M109: 8067 | N109: 10368 | O109: 105 | P109: 42 | Q109: 62 | R109: 108 | S109: 2921 | U109: 1785 | V109: 4 | X109: 1140 | Y109: -2 | Z109: -3 | AA109: -1 | AB109: -40 | AD109: 1094 | AF109: 5535 | AI109: -3028 | AL109: 4674 | AN109: 7596 | AQ109: 2238 | AR109: 20.75 | AU109: 5042 | AV109: 21400 | AW109: 0 | AX109: 5685 | AY109: 1013 | AZ109: 1342 | BA109: 8040 | BB109: 9822 | BC109: 85 | BD109: 36 | BE109: 95 | BF109: 111 | BG109: 1537 | BI109: 1576 | BJ109: 0 | BL109: -39 | BM109: 47 | BN109: -3 | BO109: -8 | BP109: 19 | BQ109: 16 | BS109: 5504 | BV109: -2224 | BY109: 4738 | CA109: 7167 | CF109: 20.75 | CT109: 13 | CU109: -2326 | CV109: 14 | CW109: 88 | CX109: -12
A110: 297 | B110: Kuopio | C110: 118209 | D110: 20.5 | G110: 614581 | H110: 1170587 | I110: 1068 | J110: 388768 | K110: 38434 | L110: 25537 | M110: 452739 | N110: 258004 | O110: 390 | P110: 14107 | Q110: 2501 | R110: 714 | S110: 143875 | U110: 103555 | V110: 0 | X110: 40320 | Y110: 23 | Z110: -2434 | AA110: -2510 | AB110: -2623 | AD110: 32776 | AF110: 2177 | AI110: -160449 | AL110: 158193 | AN110: 947219 | AQ110: 118664 | AR110: 20.5 | AU110: 662764 | AV110: 1232300 | AW110: 952 | AX110: 378301 | AY110: 24219 | AZ110: 38754 | BA110: 441274 | BB110: 257328 | BC110: 372 | BD110: 12447 | BE110: 6467 | BF110: 1202 | BG110: 123208 | BI110: 106063 | BJ110: 1379 | BL110: 18524 | BM110: -961 | BN110: -1549 | BO110: -5087 | BP110: -989 | BQ110: 9938 | BS110: 10875 | BV110: -122023 | BY110: 171985 | CA110: 955659 | CF110: 20.5 | CT110: -26614 | CU110: -238526 | CV110: 2632 | CW110: 113871 | CX110: -336
A111: 300 | B111: Kuortane | C111: 3637 | D111: 21 | G111: 30555 | H111: 52970 | I111: -22 | J111: 9700 | K111: 755 | L111: 850 | M111: 11305 | N111: 14262 | O111: 14 | P111: 72 | Q111: 188 | R111: 340 | S111: 2920 | U111: 2244 | V111: 0 | X111: 676 | Y111: -94 | Z111: 0 | AA111: 0 | AB111: -11 | AD111: 571 | AF111: 3195 | AI111: -1839 | AL111: 2893 | AN111: 15071 | AQ111: 3572 | AR111: 21 | AU111: 31144 | AV111: 53821 | AW111: -13 | AX111: 9230 | AY111: 707 | AZ111: 839 | BA111: 10776 | BB111: 14215 | BC111: 38 | BD111: 95 | BE111: 149 | BF111: 27 | BG111: 2366 | BI111: 1964 | BJ111: 0 | BL111: 402 | BM111: -8 | BN111: 0 | BO111: 0 | BP111: -2 | BQ111: 392 | BS111: 3484 | BV111: -3167 | BY111: 2853 | CA111: 15534 | CF111: 21 | CT111: -32 | CU111: -3292 | CV111: 32 | CW111: 93 | CX111: 49
A112: 301 | B112: Kurikka | C112: 21203 | D112: 21 | G112: 91921 | H112: 213779 | I112: -6 | J112: 57835 | K112: 4318 | L112: 4336 | M112: 66489 | N112: 67652 | O112: 224 | P112: 1372 | Q112: 9198 | R112: 263 | S112: 20064 | U112: 14373 | V112: 0 | X112: 5691 | Y112: -95 | Z112: 0 | AA112: -14 | AB112: 49 | AD112: 5631 | AF112: 19953 | AI112: -15363 | AL112: 57651 | AN112: 137520 | AQ112: 20952 | AR112: 21 | AU112: 92967 | AV112: 216865 | AW112: 24 | AX112: 55377 | AY112: 4019 | AZ112: 4376 | BA112: 63772 | BB112: 67569 | BC112: 171 | BD112: 1197 | BE112: 9777 | BF112: 286 | BG112: 15932 | BI112: 14631 | BJ112: 0 | BL112: 1301 | BM112: -40 | BN112: -190 | BO112: -39 | BP112: 48 | BQ112: 1080 | BS112: 22823 | BV112: -17620 | BY112: 55853 | CA112: 134854 | CF112: 21 | CT112: -135 | CU112: -18920 | CV112: 63 | CW112: 1237 | CX112: 227
A113: 304 | B113: Kustavi | C113: 923 | D113: 19 | G113: 5195 | H113: 10376 | I113: 1 | J113: 2425 | K113: 201 | L113: 1402 | M113: 4028 | N113: 2367 | O113: 0 | P113: 58 | Q113: 4 | R113: 0 | S113: 1159 | U113: 524 | V113: 0 | X113: 635 | Y113: 30 | Z113: 0 | AA113: 0 | AB113: 0 | AD113: 665 | AF113: 3432 | AI113: -1136 | AL113: 1100 | AN113: 4408 | AQ113: 926 | AR113: 18.75 | AU113: 5242 | AV113: 11053 | AW113: 0 | AX113: 2827 | AY113: 223 | AZ113: 1421 | BA113: 4469 | BB113: 2303 | BC113: 0 | BD113: 53 | BE113: 3 | BF113: 12 | BG113: 899 | BI113: 588 | BJ113: 0 | BL113: 311 | BM113: 21 | BN113: 0 | BO113: 0 | BP113: 0 | BQ113: 332 | BS113: 3761 | BV113: -368 | BY113: 1463 | CA113: 4012 | CF113: 18.5 | CT113: 2 | CU113: -390 | CV113: 18 | CW113: 4 | CX113: -10
A114: 305 | B114: Kuusamo | C114: 15386 | D114: 20 | G114: 47965 | H114: 135460 | I114: 2 | J114: 41781 | K114: 4067 | L114: 6737 | M114: 52585 | N114: 46187 | O114: 20 | P114: 914 | Q114: 993 | R114: 110 | S114: 11269 | U114: 9222 | V114: 0 | X114: 2047 | Y114: 414 | Z114: -46 | AA114: -66 | AB114: -39 | AD114: 2310 | AF114: 21081 | AI114: -8722 | AL114: 31134 | AN114: 55375 | AQ114: 15207 | AR114: 20 | AU114: 48008 | AV114: 137406 | AW114: 4 | AX114: 40189 | AY114: 3843 | AZ114: 7218 | BA114: 51130 | BB114: 44886 | BC114: 25 | BD114: 741 | BE114: 1134 | BF114: 1021 | BG114: 6019 | BI114: 7343 | BJ114: 511 | BL114: -813 | BM114: 412 | BN114: -21 | BO114: -92 | BP114: -8 | BQ114: -522 | BS114: 21569 | BV114: -9444 | BY114: 36583 | CA114: 60107 | CF114: 20 | CT114: -757 | CU114: -11481 | CV114: 843 | CW114: 1194 | CX114: 2
A115: 312 | B115: Kyyjärvi | C115: 1352 | D115: 21 | G115: 9627 | H115: 17810 | I115: 0 | J115: 3421 | K115: 577 | L115: 321 | M115: 4319 | N115: 4420 | O115: 28 | P115: 35 | Q115: 355 | R115: 5 | S115: 899 | U115: 954 | V115: 0 | X115: -55 | Y115: 2 | Z115: 0 | AA115: 0 | AB115: 48 | AD115: -5 | AF115: -1539 | AI115: -1159 | AL115: 6415 | AN115: 14982 | AQ115: 1343 | AR115: 21.75 | AU115: 9522 | AV115: 18191 | AW115: 0 | AX115: 3406 | AY115: 597 | AZ115: 381 | BA115: 4384 | BB115: 4149 | BC115: 10 | BD115: 21 | BE115: 581 | BF115: 136 | BG115: 298 | BI115: 2383 | BJ115: 0 | BL115: -2085 | BM115: 0 | BN115: 0 | BO115: 0 | BP115: 492 | BQ115: -1593 | BS115: -1867 | BV115: -1682 | BY115: 6585 | CA115: 16518 | CF115: 21.75 | CT115: 6 | CU115: -1758 | CV115: 33 | CW115: 43 | CX115: 1
A116: 316 | B116: Kärkölä | C116: 4508 | D116: 21.75 | G116: 25035 | H116: 46680 | I116: 1 | J116: 14790 | K116: 736 | L116: 1161 | M116: 16687 | N116: 8203 | O116: 1 | P116: 156 | Q116: 30 | R116: 29 | S116: 3092 | U116: 1587 | V116: 20 | X116: 1525 | Y116: 0 | Z116: 0 | AA116: 0 | AB116: -9 | AD116: 1516 | AF116: 1861 | AI116: -525 | AL116: 3310 | AN116: 9986 | AQ116: 4451 | AR116: 21.75 | AU116: 25304 | AV116: 47952 | AW116: -2 | AX116: 13911 | AY116: 616 | AZ116: 1137 | BA116: 15663 | BB116: 7861 | BC116: 2 | BD116: 144 | BE116: 40 | BF116: 29 | BG116: 743 | BI116: 1482 | BJ116: 173 | BL116: -566 | BM116: 0 | BN116: -1 | BO116: -2 | BP116: -4 | BQ116: -573 | BS116: 1275 | BV116: -1129 | BY116: 4018 | CA116: 9321 | CF116: 22 | CT116: -13 | CU116: -1188 | CV116: 6 | CW116: 53 | CX116: -2
A117: 317 | B117: Kärsämäki | C117: 2611 | D117: 21.5 | G117: 22453 | H117: 39888 | I117: 1 | J117: 5781 | K117: 626 | L117: 470 | M117: 6877 | N117: 12025 | O117: 11 | P117: 143 | Q117: 480 | R117: 22 | S117: 1752 | U117: 1898 | V117: 0 | X117: -146 | Y117: 277 | Z117: -6 | AA117: -2 | AB117: -1 | AD117: 122 | AF117: 5051 | AI117: -3014 | AL117: 11468 | AN117: 20282 | AQ117: 2613 | AR117: 21.5 | AU117: 22956 | AV117: 40419 | AW117: 1 | AX117: 5855 | AY117: 589 | AZ117: 586 | BA117: 6977 | BB117: 12237 | BC117: 23 | BD117: 99 | BE117: 484 | BF117: 249 | BG117: 1911 | BI117: 1528 | BJ117: 189 | BL117: 572 | BM117: -5 | BN117: -4 | BO117: -1 | BP117: -1 | BQ117: 561 | BS117: 5675 | BV117: -932 | BY117: 11797 | CA117: 19560 | CF117: 21.5 | CT117: -275 | CU117: -1661 | CV117: 174 | CW117: 555 | CX117: -125
A118: 398 | B118: Lahti | C118: 119573 | D118: 20.25 | G118: 610585 | H118: 1134068 | I118: 156 | J118: 390185 | K118: 26717 | L118: 35898 | M118: 452800 | N118: 253230 | O118: 1176 | P118: 21877 | Q118: 1111 | R118: -465 | S118: 159162 | U118: 118319 | V118: 1047 | X118: 41890 | Y118: -138 | Z118: -5764 | AA118: -1862 | AB118: -1048 | AD118: 33078 | AF118: 162740 | AI118: -216596 | AL118: 158601 | AN118: 1098025 | AQ118: 119951 | AR118: 20.75 | AU118: 630995 | AV118: 1145546 | AW118: -11 | AX118: 396744 | AY118: 27427 | AZ118: 40968 | BA118: 460249 | BB118: 225413 | BC118: 1738 | BD118: 19083 | BE118: 2162 | BF118: 1037 | BG118: 154880 | BI118: 127681 | BJ118: 3106 | BL118: 30305 | BM118: -122 | BN118: -6640 | BO118: -3619 | BP118: -43 | BQ118: 19881 | BS118: 182621 | BV118: -228853 | BY118: 143836 | CA118: 1161404 | CF118: 20.75 | CT118: -23191 | CU118: -272918 | CV118: 653 | CW118: 43412 | CX118: 409
A119: 399 | B119: Laihia | C119: 8051 | D119: 21.75 | G119: 18597 | H119: 60277 | I119: 0 | J119: 27660 | K119: 1217 | L119: 1132 | M119: 30009 | N119: 15041 | O119: 3 | P119: 263 | Q119: 95 | R119: 61 | S119: 3081 | U119: 2931 | V119: 0 | X119: 150 | Y119: -34 | Z119: 0 | AA119: -38 | AB119: 21 | AD119: 99 | AF119: -336 | AI119: -7917 | AL119: 2869 | AN119: 35436 | AQ119: 8058 | AR119: 21.75 | AU119: 18535 | AV119: 61225 | AW119: 0 | AX119: 26941 | AY119: 1015 | AZ119: 1234 | BA119: 29126 | BB119: 15050 | BC119: 2 | BD119: 245 | BE119: 114 | BF119: 55 | BG119: 1302 | BI119: 3075 | BJ119: 0 | BL119: -1773 | BM119: 0 | BN119: 0 | BO119: -12 | BP119: 20 | BQ119: -1765 | BS119: -2078 | BV119: -3876 | BY119: 2746 | CA119: 40881 | CF119: 21.75 | CT119: -225 | CU119: -6481 | CV119: 233 | CW119: 2372 | CX119: 2
A120: 400 | B120: Laitila | C120: 8610 | D120: 20.75 | G120: 38145 | H120: 81498 | I120: 12 | J120: 25112 | K120: 2046 | L120: 2074 | M120: 29232 | N120: 20509 | O120: 6 | P120: 194 | Q120: 59 | R120: -44 | S120: 6315 | U120: 6583 | V120: -1 | X120: -269 | Y120: -293 | Z120: -33 | AA120: -14 | AB120: -98 | AD120: -707 | AF120: 8617 | AI120: -4748 | AL120: 4357 | AN120: 31673 | AQ120: 8647 | AR120: 20.5 | AU120: 38494 | AV120: 83775 | AW120: 23 | AX120: 24995 | AY120: 1948 | AZ120: 2063 | BA120: 29006 | BB120: 20359 | BC120: 54 | BD120: 235 | BE120: 86 | BF120: 29 | BG120: 3983 | BI120: 4746 | BJ120: 0 | BL120: -763 | BM120: 0 | BN120: -40 | BO120: 9 | BP120: -107 | BQ120: -901 | BS120: 8207 | BV120: -6506 | BY120: 6125 | CA120: 35307 | CF120: 20.75 | CT120: -1203 | CU120: -9903 | CV120: 2175 | CW120: 1222 | CX120: 0
A121: 407 | B121: Lapinjärvi | C121: 2706 | D121: 20.5 | G121: 9643 | H121: 25315 | I121: 1 | J121: 7595 | K121: 508 | L121: 547 | M121: 8650 | N121: 7161 | O121: 6 | P121: 113 | Q121: 811 | R121: 55 | S121: 769 | U121: 1697 | V121: 0 | X121: -928 | Y121: 1 | Z121: 0 | AA121: 0 | AB121: 0 | AD121: -927 | AF121: -1348 | AI121: -2175 | AL121: 1554 | AN121: 14685 | AQ121: 2665 | AR121: 20.5 | AU121: 10533 | AV121: 26313 | AW121: -2 | AX121: 7362 | AY121: 549 | AZ121: 545 | BA121: 8438 | BB121: 7316 | BC121: 4 | BD121: 115 | BE121: 866 | BF121: 27 | BG121: 700 | BI121: 1525 | BJ121: 0 | BL121: -825 | BM121: -1 | BN121: 0 | BO121: -1 | BP121: 0 | BQ121: -827 | BS121: -2173 | BV121: -4160 | BY121: 1285 | CA121: 17716 | CF121: 20.5 | CT121: -138 | CU121: -4277 | CV121: 6 | CW121: 111 | CX121: -9
A122: 402 | B122: Lapinlahti | C122: 9692 | D122: 20.25 | G122: 35963 | H122: 91828 | I122: 115 | J122: 25412 | K122: 1767 | L122: 2219 | M122: 29398 | N122: 33354 | O122: 26 | P122: 593 | Q122: 849 | R122: 51 | S122: 7110 | U122: 5962 | V122: -3 | X122: 1145 | Y122: 1 | Z122: -24 | AA122: -3 | AB122: 66 | AD122: 1185 | AF122: 126 | AI122: -5182 | AL122: 3591 | AN122: 57754 | AQ122: 9617 | AR122: 21.25 | AU122: 35029 | AV122: 91782 | AW122: 130 | AX122: 25409 | AY122: 1555 | AZ122: 2224 | BA122: 29062 | BB122: 32843 | BC122: 15 | BD122: 552 | BE122: 899 | BF122: 57 | BG122: 5587 | BI122: 6029 | BJ122: -116 | BL122: -558 | BM122: 10 | BN122: -27 | BO122: 27 | BP122: 65 | BQ122: -483 | BS122: -276 | BV122: -4585 | BY122: 4716 | CA122: 54782 | CF122: 21.25 | CT122: -55 | CU122: -5003 | CV122: 90 | CW122: 328 | CX122: 428
A123: 403 | B123: Lappajärvi | C123: 3140 | D123: 21 | G123: 16092 | H123: 36262 | I123: -90 | J123: 8038 | K123: 982 | L123: 886 | M123: 9906 | N123: 12386 | O123: 7 | P123: 150 | Q123: 86 | R123: 24 | S123: 1951 | U123: 1945 | V123: 0 | X123: 6 | Y123: 2 | Z123: -3 | AA123: -7 | AB123: 8 | AD123: 6 | AF123: 2912 | AI123: -2578 | AL123: 3876 | AN123: 18416 | AQ123: 3078 | AR123: 21 | AU123: 19343 | AV123: 38647 | AW123: -67 | AX123: 7532 | AY123: 757 | AZ123: 1029 | BA123: 9318 | BB123: 12342 | BC123: 9 | BD123: 90 | BE123: 96 | BF123: 59 | BG123: 2245 | BI123: 2513 | BJ123: 0 | BL123: -268 | BM123: 4 | BN123: -7 | BO123: -1 | BP123: 42 | BQ123: -230 | BS123: 2541 | BV123: 4792 | BY123: 5886 | CA123: 15246 | CF123: 21.5 | CT123: -1830 | CU123: -2781 | CV123: 202 | CW123: 7371 | CX123: 2
A124: 405 | B124: Lappeenranta | C124: 72909 | D124: 21 | G124: 365675 | H124: 683920 | I124: -31 | J124: 244562 | K124: 24745 | L124: 24626 | M124: 293933 | N124: 117435 | O124: 179 | P124: 6103 | Q124: 259 | R124: 891 | S124: 84102 | U124: 61837 | V124: 0 | X124: 22265 | Y124: 812 | Z124: -3399 | AA124: -2524 | AB124: -602 | AD124: 16552 | AF124: 80222 | AI124: -56872 | AL124: 42773 | AN124: 500519 | AQ124: 72699 | AR124: 21 | AU124: 386828 | AV124: 716530 | AW124: -260 | AX124: 243607 | AY124: 22310 | AZ124: 24771 | BA124: 288085 | BB124: 120593 | BC124: 135 | BD124: 4751 | BE124: 331 | BF124: 1027 | BG124: 73404 | BI124: 54595 | BJ124: 0 | BL124: 18809 | BM124: 96 | BN124: -2761 | BO124: -2140 | BP124: -668 | BQ124: 13336 | BS124: 88902 | BV124: -48919 | BY124: 50011 | CA124: 479933 | CF124: 21 | CT124: -3602 | CU124: -62187 | CV124: 1913 | CW124: 11355 | CX124: 1078
A125: 408 | B125: Lapua | C125: 14494 | D125: 21 | G125: 43993 | H125: 118217 | I125: 34 | J125: 43335 | K125: 2468 | L125: 2884 | M125: 48687 | N125: 38734 | O125: 33 | P125: 1067 | Q125: 429 | R125: 95 | S125: 12531 | U125: 8802 | V125: 0 | X125: 3729 | Y125: 58 | Z125: -47 | AA125: -82 | AB125: -35 | AD125: 3623 | AF125: 18249 | AI125: -13181 | AL125: 12215 | AN125: 92343 | AQ125: 14427 | AR125: 21.5 | AU125: 47633 | AV125: 122288 | AW125: 19 | AX125: 42420 | AY125: 2343 | AZ125: 3014 | BA125: 47777 | BB125: 35853 | BC125: 41 | BD125: 957 | BE125: 625 | BF125: 112 | BG125: 8591 | BI125: 9146 | BJ125: 0 | BL125: -555 | BM125: 237 | BN125: -3 | BO125: -122 | BP125: -4 | BQ125: -447 | BS125: 16520 | BV125: -18457 | BY125: 14047 | CA125: 101285 | CF125: 21.5 | CT125: -501 | CU125: -21140 | CV125: 212 | CW125: 2471 | CX125: 10
A126: 410 | B126: Laukaa | C126: 18978 | D126: 21.5 | G126: 44331 | H126: 144285 | I126: 0 | J126: 60612 | K126: 2606 | L126: 4713 | M126: 67931 | N126: 44071 | O126: 57 | P126: 118 | Q126: 248 | R126: 33 | S126: 12201 | U126: 8993 | V126: 0 | X126: 3208 | Y126: -201 | Z126: -17 | AA126: -87 | AB126: 0 | AD126: 2903 | AF126: -886 | AI126: -20039 | AL126: 6693 | AN126: 118285 | AQ126: 18927 | AR126: 21.5 | AU126: 42889 | AV126: 147556 | AW126: 0 | AX126: 58865 | AY126: 2511 | AZ126: 4754 | BA126: 66130 | BB126: 43733 | BC126: 37 | BD126: 168 | BE126: 770 | BF126: 41 | BG126: 5794 | BI126: 9245 | BJ126: 0 | BL126: -3451 | BM126: 86 | BN126: -15 | BO126: -40 | BP126: 0 | BQ126: -3420 | BS126: -3820 | BV126: -17172 | BY126: 5705 | CA126: 128124 | CF126: 21.5 | CT126: -75 | CU126: -18147 | CV126: 24 | CW126: 951 | CX126: 311
A127: 416 | B127: Lemi | C127: 3063 | D127: 21 | G127: 13656 | H127: 29523 | I127: 0 | J127: 9242 | K127: 520 | L127: 815 | M127: 10577 | N127: 6011 | O127: 1 | P127: 75 | Q127: 7 | R127: 5 | S127: 618 | U127: 1146 | V127: 0 | X127: -528 | Y127: -43 | Z127: 0 | AA127: 0 | AB127: 0 | AD127: -571 | AF127: 179 | AI127: -2062 | AL127: 715 | AN127: 10350 | AQ127: 3043 | AR127: 21 | AU127: 13688 | AV127: 31018 | AW127: 4 | AX127: 9046 | AY127: 421 | AZ127: 816 | BA127: 10252 | BB127: 6230 | BC127: 1 | BD127: 80 | BE127: 16 | BF127: 3 | BG127: -910 | BI127: 1122 | BJ127: 0 | BL127: -2032 | BM127: -5 | BN127: 0 | BO127: 0 | BP127: 0 | BQ127: -2037 | BS127: -1859 | BV127: -1365 | BY127: 910 | CA127: 11297 | CF127: 21 | CT127: -547 | CU127: -1710 | CV127: 0 | CW127: 345 | CX127: -6
A128: 418 | B128: Lempäälä | C128: 22829 | D128: 20.5 | G128: 59699 | H128: 158465 | I128: 79 | J128: 83968 | K128: 4684 | L128: 5313 | M128: 93965 | N128: 23547 | O128: 19 | P128: 956 | Q128: 845 | R128: 79 | S128: 18487 | U128: 15034 | V128: 0 | X128: 3453 | Y128: 1 | Z128: -120 | AA128: -122 | AB128: -108 | AD128: 3104 | AF128: 20919 | AI128: -15703 | AL128: 9948 | AN128: 112590 | AQ128: 23206 | AR128: 20.5 | AU128: 63439 | AV128: 167347 | AW128: 24 | AX128: 82103 | AY128: 4275 | AZ128: 5572 | BA128: 91776 | BB128: 22687 | BC128: 22 | BD128: 940 | BE128: 834 | BF128: 98 | BG128: 10397 | BI128: 14504 | BJ128: 0 | BL128: -4107 | BM128: 1 | BN128: -143 | BO128: -42 | BP128: -86 | BQ128: -4377 | BS128: 16229 | BV128: -30953 | BY128: 7957 | CA128: 128938 | CF128: 20.5 | CT128: -1065 | CU128: -35261 | CV128: 2177 | CW128: 2131 | CX128: 3
A129: 420 | B129: Leppävirta | C129: 9782 | D129: 20 | G129: 35297 | H129: 87515 | I129: 44 | J129: 27957 | K129: 2821 | L129: 2420 | M129: 33198 | N129: 25796 | O129: 54 | P129: 476 | Q129: 704 | R129: 80 | S129: 7022 | U129: 6746 | V129: 3 | X129: 279 | Y129: -149 | Z129: -10 | AA129: -7 | AB129: -27 | AD129: 86 | AF129: 4779 | AI129: -9845 | AL129: 6802 | AN129: 35673 | AQ129: 9650 | AR129: 21 | AU129: 35387 | AV129: 91930 | AW129: 81 | AX129: 29588 | AY129: 2598 | AZ129: 2499 | BA129: 34685 | BB129: 25450 | BC129: 39 | BD129: 431 | BE129: 728 | BF129: 230 | BG129: 3779 | BI129: 5428 | BJ129: -88 | BL129: -1737 | BM129: 70 | BN129: -1 | BO129: -3 | BP129: -5 | BQ129: -1676 | BS129: 3230 | BV129: -7499 | BY129: 6631 | CA129: 36290 | CF129: 21 | CT129: -56 | CU129: -8947 | CV129: 1107 | CW129: 341 | CX129: 0
A130: 421 | B130: Lestijärvi | C130: 789 | D130: 21 | G130: 8199 | H130: 13219 | I130: 39 | J130: 1886 | K130: 405 | L130: 278 | M130: 2569 | N130: 3011 | O130: 8 | P130: 35 | Q130: 9 | R130: 1 | S130: 580 | U130: 588 | V130: 50 | X130: 42 | Y130: -9 | Z130: 0 | AA130: 0 | AB130: -1 | AD130: 32 | AF130: 2497 | AI130: -680 | AL130: 1655 | AN130: 4076 | AQ130: 737 | AR130: 21 | AU130: 8595 | AV130: 13815 | AW130: 27 | AX130: 1763 | AY130: 384 | AZ130: 273 | BA130: 2420 | BB130: 2965 | BC130: 6 | BD130: 33 | BE130: 4 | BF130: 6 | BG130: 163 | BI130: 616 | BJ130: 50 | BL130: -403 | BM130: -38 | BN130: 0 | BO130: 2 | BP130: -1 | BQ130: -440 | BS130: 2007 | BV130: -553 | BY130: 1369 | CA130: 3949 | CF130: 21 | CT130: -230 | CU130: -726 | CV130: 5 | CW130: 168 | CX130: 80
A131: 422 | B131: Lieksa | C131: 11297 | D131: 21 | G131: 66785 | H131: 139928 | I131: -3 | J131: 32294 | K131: 5054 | L131: 3282 | M131: 40630 | N131: 43414 | O131: 213 | P131: 654 | Q131: 618 | R131: 44 | S131: 10883 | U131: 6583 | V131: 574 | X131: 4874 | Y131: -62 | Z131: -1 | AA131: 11 | AB131: 1 | AD131: 4823 | AF131: 31860 | AI131: -5783 | AL131: 19817 | AN131: 45460 | AQ131: 11098 | AR131: 21 | AU131: 70729 | AV131: 139581 | AW131: -2 | AX131: 30785 | AY131: 4483 | AZ131: 3277 | BA131: 38403 | BB131: 37374 | BC131: 185 | BD131: 577 | BE131: 573 | BF131: 32 | BG131: 7072 | BI131: 6056 | BJ131: 0 | BL131: 1016 | BM131: 1 | BN131: 0 | BO131: 51 | BP131: 0 | BQ131: 1068 | BS131: 32996 | BV131: -6612 | BY131: 15235 | CA131: 37404 | CF131: 21 | CT131: 156 | CU131: -7749 | CV131: 1005 | CW131: 132 | CX131: 611
A132: 423 | B132: Lieto | C132: 19596 | D132: 19.5 | G132: 52269 | H132: 138306 | I132: 5 | J132: 68995 | K132: 3393 | L132: 3567 | M132: 75955 | N132: 21394 | O132: 8 | P132: 620 | Q132: 55 | R132: 15 | S132: 10745 | U132: 8790 | V132: 0 | X132: 1955 | Y132: 0 | Z132: 0 | AA132: -64 | AB132: -1 | AD132: 1890 | AF132: 9613 | AI132: -17706 | AL132: 6968 | AN132: 80724 | AQ132: 19831 | AR132: 19.5 | AU132: 53617 | AV132: 143266 | AW132: 8 | AX132: 67828 | AY132: 3640 | AZ132: 3657 | BA132: 75125 | BB132: 21032 | BC132: 14 | BD132: 651 | BE132: 61 | BF132: 8 | BG132: 5932 | BI132: 10014 | BJ132: 0 | BL132: -4082 | BM132: 0 | BN132: 0 | BO132: -79 | BP132: -5 | BQ132: -4166 | BS132: 5433 | BV132: -8820 | BY132: 9394 | CA132: 88511 | CF132: 19.5 | CT132: -3443 | CU132: -13746 | CV132: 162 | CW132: 4764 | CX132: -3
A133: 425 | B133: Liminka | C133: 10133 | D133: 21 | G133: 22895 | H133: 72060 | I133: 2 | J133: 29443 | K133: 758 | L133: 1183 | M133: 31384 | N133: 25236 | O133: 2 | P133: 193 | Q133: 61 | R133: 2 | S133: 7325 | U133: 5510 | V133: -15 | X133: 1800 | Y133: 43 | Z133: -8 | AA133: -37 | AB133: 44 | AD133: 1842 | AF133: 29126 | AI133: -9523 | AL133: 12711 | AN133: 33585 | AQ133: 10161 | AR133: 21.5 | AU133: 21539 | AV133: 73612 | AW133: 1 | AX133: 30159 | AY133: 684 | AZ133: 1255 | BA133: 32097 | BB133: 26851 | BC133: 27 | BD133: 268 | BE133: 34 | BF133: 10 | BG133: 6659 | BI133: 5422 | BJ133: 265 | BL133: 1502 | BM133: -45 | BN133: -5 | BO133: -21 | BP133: 78 | BQ133: 1509 | BS133: 30591 | BV133: -24316 | BY133: 7186 | CA133: 45432 | CF133: 21.5 | CT133: -1312 | CU133: -36559 | CV133: 191 | CW133: 12052 | CX133: 69
A134: 426 | B134: Liperi | C134: 12150 | D134: 21.5 | G134: 60486 | H134: 121387 | I134: -67 | J134: 36068 | K134: 1533 | L134: 2419 | M134: 40020 | N134: 28984 | O134: 23 | P134: 626 | Q134: 388 | R134: 5 | S134: 7816 | U134: 5284 | V134: -305 | X134: 2227 | Y134: -48 | Z134: 19 | AA134: -87 | AB134: -19 | AD134: 2092 | AF134: 11095 | AI134: -4389 | AL134: 10886 | AN134: 49859 | AQ134: 12145 | AR134: 21.5 | AU134: 59894 | AV134: 122909 | AW134: -20 | AX134: 35753 | AY134: 1338 | AZ134: 2397 | BA134: 39488 | BB134: 28846 | BC134: 22 | BD134: 454 | BE134: 347 | BF134: 3 | BG134: 5211 | BI134: 4528 | BJ134: 0 | BL134: 683 | BM134: 1 | BN134: -23 | BO134: -72 | BP134: -77 | BQ134: 512 | BS134: 11789 | BV134: -5771 | BY134: 11309 | CA134: 49203 | CF134: 21.5 | CT134: -226 | CU134: -6021 | CV134: 26 | CW134: 224 | CX134: 680
A135: 444 | B135: Lohja | C135: 46785 | D135: 20.5 | G135: 163705 | H135: 406111 | I135: 88 | J135: 170627 | K135: 6613 | L135: 12616 | M135: 189856 | N135: 79116 | O135: 134 | P135: 1830 | Q135: 863 | R135: 742 | S135: 25079 | U135: 23234 | V135: 282 | X135: 2127 | Y135: 13 | Z135: -335 | AA135: 10 | AB135: -54 | AD135: 1761 | AF135: 18775 | AI135: -49304 | AL135: 21704 | AN135: 208715 | AQ135: 46296 | AR135: 20.5 | AU135: 167376 | AV135: 420848 | AW135: 15 | AX135: 168400 | AY135: 6789 | AZ135: 13269 | BA135: 188458 | BB135: 79524 | BC135: 133 | BD135: 1987 | BE135: 812 | BF135: 708 | BG135: 12775 | BI135: 25222 | BJ135: 0 | BL135: -12447 | BM135: -20 | BN135: -223 | BO135: -2 | BP135: 24 | BQ135: -12668 | BS135: 6080 | BV135: -33873 | BY135: 19140 | CA135: 222603 | CF135: 20.5 | CT135: -1917 | CU135: -39903 | CV135: 2385 | CW135: 3645 | CX135: 33
A136: 430 | B136: Loimaa | C136: 16150 | D136: 20.5 | G136: 68944 | H136: 163492 | I136: 9 | J136: 45770 | K136: 3595 | L136: 4149 | M136: 53514 | N136: 50312 | O136: 3 | P136: 592 | Q136: 85 | R136: 16 | S136: 8768 | U136: 8219 | V136: 0 | X136: 549 | Y136: 0 | Z136: -201 | AA136: -11 | AB136: -374 | AD136: -37 | AF136: 11159 | AI136: -7657 | AL136: 11239 | AN136: 54645 | AQ136: 16032 | AR136: 20.5 | AU136: 70084 | AV136: 167122 | AW136: 6 | AX136: 45814 | AY136: 3300 | AZ136: 4163 | BA136: 53278 | BB136: 48729 | BC136: 3 | BD136: 517 | BE136: 72 | BF136: 26 | BG136: 4507 | BI136: 8544 | BJ136: -62 | BL136: -4099 | BM136: 0 | BN136: -184 | BO136: -44 | BP136: -356 | BQ136: -4683 | BS136: 6476 | BV136: -5416 | BY136: 9180 | CA136: 54212 | CF136: 21 | CT136: -671 | CU136: -6976 | CV136: 366 | CW136: 1194 | CX136: 741
A137: 433 | B137: Loppi | C137: 8028 | D137: 21.5 | G137: 24606 | H137: 65185 | I137: -44 | J137: 25505 | K137: 1684 | L137: 2029 | M137: 29218 | N137: 15871 | O137: 3 | P137: 419 | Q137: 59 | R137: 4 | S137: 4079 | U137: 3061 | V137: 163 | X137: 1181 | Y137: 2 | Z137: -1 | AA137: -4 | AB137: 0 | AD137: 1178 | AF137: 13651 | AI137: -3265 | AL137: 2889 | AN137: 28791 | AQ137: 7861 | AR137: 21.5 | AU137: 24931 | AV137: 65632 | AW137: -87 | AX137: 24605 | AY137: 1482 | AZ137: 2025 | BA137: 28086 | BB137: 15422 | BC137: 3 | BD137: 375 | BE137: 62 | BF137: 5 | BG137: 2405 | BI137: 3060 | BJ137: 0 | BL137: -655 | BM137: 1 | BN137: -1 | BO137: -28 | BP137: 0 | BQ137: -683 | BS137: 12968 | BV137: -2479 | BY137: 3279 | CA137: 27988 | CF137: 21.5 | CT137: 48 | CU137: -3670 | CV137: 4 | CW137: 1187 | CX137: 4
A138: 434 | B138: Loviisa | C138: 15085 | D138: 19.75 | G138: 52563 | H138: 136560 | I138: -10 | J138: 47747 | K138: 9950 | L138: 8252 | M138: 65949 | N138: 27852 | O138: 32 | P138: 451 | Q138: 1711 | R138: 133 | S138: 10953 | U138: 6525 | V138: -91 | X138: 4337 | Y138: 188 | Z138: -12 | AA138: -17 | AB138: -140 | AD138: 4356 | AF138: 10617 | AI138: -12568 | AL138: 10617 | AN138: 57322 | AQ138: 14891 | AR138: 19.75 | AU138: 53875 | AV138: 141448 | AW138: 11857 | AX138: 45706 | AY138: 6689 | AZ138: 7605 | BA138: 60000 | BB138: 27357 | BC138: 136 | BD138: 391 | BE138: 1396 | BF138: 141 | BG138: 12641 | BI138: 7341 | BJ138: -5 | BL138: 5295 | BM138: -10 | BN138: -27 | BO138: -31 | BP138: -14 | BQ138: 5213 | BS138: 15641 | BV138: -13258 | BY138: 9125 | CA138: 65431 | CF138: 19.75 | CT138: -12553 | CU138: -14632 | CV138: 176 | CW138: 1198 | CX138: -111
A139: 435 | B139: Luhanka | C139: 734 | D139: 18.5 | G139: 2813 | H139: 7614 | I139: 0 | J139: 1655 | K139: 286 | L139: 495 | M139: 2436 | N139: 3144 | O139: 20 | P139: 28 | Q139: 82 | R139: 39 | S139: 814 | U139: 307 | V139: 0 | X139: 507 | Y139: 0 | Z139: 0 | AA139: 0 | AB139: 0 | AD139: 507 | AF139: 2860 | AI139: -2081 | AL139: 1293 | AN139: 3164 | AQ139: 707 | AR139: 18.5 | AU139: 2621 | AV139: 7452 | AW139: 0 | AX139: 1589 | AY139: 284 | AZ139: 579 | BA139: 2452 | BB139: 2959 | BC139: 20 | BD139: 14 | BE139: 3 | BF139: 102 | BG139: 487 | BI139: 357 | BJ139: 69 | BL139: 199 | BM139: 0 | BN139: 0 | BO139: 0 | BP139: 0 | BQ139: 199 | BS139: 2174 | BV139: -882 | BY139: 1408 | CA139: 3310 | CF139: 18.5 | CT139: -3 | CU139: -882 | CV139: -1 | CW139: 1 | CX139: 94
A140: 436 | B140: Lumijoki | C140: 2081 | D140: 20.75 | G140: 5422 | H140: 16981 | I140: 1 | J140: 5349 | K140: 164 | L140: 288 | M140: 5801 | N140: 6824 | O140: 2 | P140: 71 | Q140: 15 | R140: 2 | S140: 998 | U140: 996 | V140: 0 | X140: 2 | Y140: -4 | Z140: -4 | AA140: -1 | AB140: 0 | AD140: -7 | AF140: 999 | AI140: -881 | AL140: 1780 | AN140: 8729 | AQ140: 2052 | AR140: 21 | AU140: 5172 | AV140: 16090 | AW140: -18 | AX140: 5255 | AY140: 159 | AZ140: 290 | BA140: 5692 | BB140: 6682 | BC140: 2 | BD140: 72 | BE140: 11 | BF140: 6 | BG140: 1373 | BI140: 1289 | BJ140: 90 | BL140: 174 | BM140: -11 | BN140: -7 | BO140: -16 | BP140: 10 | BQ140: 150 | BS140: 1147 | BV140: -2063 | BY140: 1050 | CA140: 9339 | CF140: 21 | CT140: -80 | CU140: -2280 | CV140: 13 | CW140: 204 | CX140: 0
A141: 440 | B141: Luoto | C141: 5264 | D141: 19.5 | G141: 9289 | H141: 34196 | I141: 0 | J141: 13596 | K141: 362 | L141: 1026 | M141: 14984 | N141: 13720 | O141: 109 | P141: 59 | Q141: 221 | R141: 562 | S141: 3507 | U141: 2130 | V141: 18 | X141: 1395 | Y141: -55 | Z141: 0 | AA141: 0 | AB141: 0 | AD141: 1340 | AF141: 16753 | AI141: -11964 | AL141: 12709 | AN141: 35526 | AQ141: 5340 | AR141: 19.5 | AU141: 9706 | AV141: 35420 | AW141: 0 | AX141: 13671 | AY141: 352 | AZ141: 1032 | BA141: 15056 | BB141: 13350 | BC141: 111 | BD141: 30 | BE141: 215 | BF141: 592 | BG141: 2396 | BI141: 2261 | BJ141: -2 | BL141: 133 | BM141: 94 | BN141: -24 | BO141: 0 | BP141: 0 | BQ141: 203 | BS141: 17505 | BV141: -5314 | BY141: 12094 | CA141: 41322 | CF141: 19.5 | CT141: -90 | CU141: -5699 | CV141: 196 | CW141: 189 | CX141: -24
A142: 441 | B142: Luumäki | C142: 4747 | D142: 19.75 | G142: 23202 | H142: 49695 | I142: -37 | J142: 13559 | K142: 2202 | L142: 1503 | M142: 17264 | N142: 12340 | O142: 232 | P142: 151 | Q142: 700 | R142: 1 | S142: 3854 | U142: 3225 | V142: 0 | X142: 629 | Y142: 178 | Z142: 0 | AA142: -26 | AB142: 0 | AD142: 781 | AF142: 17898 | AI142: -7730 | AL142: 15930 | AN142: 19867 | AQ142: 4662 | AR142: 20.5 | AU142: 23540 | AV142: 51657 | AW142: -40 | AX142: 12822 | AY142: 1513 | AZ142: 1966 | BA142: 16301 | BB142: 12016 | BC142: 109 | BD142: 155 | BE142: 578 | BF142: 426 | BG142: 266 | BI142: 3297 | BJ142: 0 | BL142: -3031 | BM142: 3 | BN142: 0 | BO142: -11 | BP142: 1 | BQ142: -3038 | BS142: 15904 | BV142: -3962 | BY142: 13819 | CA142: 19697 | CF142: 20.5 | CT142: 1008 | CU142: -4337 | CV142: 36 | CW142: 339 | CX142: 0
A143: 475 | B143: Maalahti | C143: 5477 | D143: 21.5 | G143: 23054 | H143: 55336 | I143: -10 | J143: 17027 | K143: 1075 | L143: 1387 | M143: 19489 | N143: 16508 | O143: 9 | P143: 144 | Q143: 42 | R143: 36 | S143: 3546 | U143: 2832 | V143: 76 | X143: 790 | Y143: -61 | Z143: -19 | AA143: -15 | AB143: 0 | AD143: 695 | AF143: 5655 | AI143: -5867 | AL143: 1282 | AN143: 25761 | AQ143: 5477 | AR143: 21.5 | AU143: 23754 | AV143: 56751 | AW143: -9 | AX143: 16592 | AY143: 1085 | AZ143: 1416 | BA143: 19062 | BB143: 16446 | BC143: 6 | BD143: 148 | BE143: 49 | BF143: 36 | BG143: 2373 | BI143: 2852 | BJ143: 0 | BL143: -479 | BM143: 11 | BN143: -19 | BO143: 0 | BP143: 15 | BQ143: -472 | BS143: 5184 | BV143: -6100 | BY143: 1696 | CA143: 29590 | CF143: 21.5 | CT143: -280 | CU143: -7195 | CV143: 742 | CW143: 353 | CX143: -8
A144: 480 | B144: Marttila | C144: 1988 | D144: 20.25 | G144: 6143 | H144: 16365 | I144: 0 | J144: 5951 | K144: 330 | L144: 350 | M144: 6631 | N144: 5051 | O144: 3 | P144: 48 | Q144: 11 | R144: 0 | S144: 1426 | U144: 758 | V144: 0 | X144: 668 | Y144: -19 | Z144: 0 | AA144: 0 | AB144: 0 | AD144: 649 | AF144: 2810 | AI144: -1441 | AL144: 1098 | AN144: 3548 | AQ144: 2018 | AR144: 20.75 | AU144: 6415 | AV144: 16416 | AW144: 0 | AX144: 5592 | AY144: 309 | AZ144: 342 | BA144: 6243 | BB144: 4505 | BC144: 3 | BD144: 38 | BE144: 4 | BF144: 1 | BG144: 715 | BI144: 710 | BJ144: 0 | BL144: 5 | BM144: 7 | BN144: 0 | BO144: 0 | BP144: 0 | BQ144: 12 | BS144: 3499 | BV144: -266 | BY144: 817 | CA144: 3098 | CF144: 20.75 | CT144: -16 | CU144: -595 | CV144: 281 | CW144: 48 | CX144: 0
A145: 481 | B145: Masku | C145: 9656 | D145: 20.75 | G145: 32645 | H145: 76611 | I145: 3 | J145: 36930 | K145: 1647 | L145: 1864 | M145: 40441 | N145: 10056 | O145: 5 | P145: 150 | Q145: 123 | R145: 41 | S145: 6471 | U145: 3952 | V145: 0 | X145: 2519 | Y145: -37 | Z145: 0 | AA145: 0 | AB145: 1 | AD145: 2483 | AF145: 614 | AI145: -3697 | AL145: 5564 | AN145: 39813 | AQ145: 9554 | AR145: 20.75 | AU145: 33154 | AV145: 79578 | AW145: 2 | AX145: 36887 | AY145: 1554 | AZ145: 1888 | BA145: 40329 | BB145: 9194 | BC145: 1 | BD145: 171 | BE145: 84 | BF145: 29 | BG145: 2986 | BI145: 3983 | BJ145: 0 | BL145: -997 | BM145: 0 | BN145: -8 | BO145: 24 | BP145: 6 | BQ145: -975 | BS145: -545 | BV145: -8702 | BY145: 4836 | CA145: 47417 | CF145: 20.75 | CT145: -270 | CU145: -9171 | CV145: 52 | CW145: 417 | CX145: 0
A146: 483 | B146: Merijärvi | C146: 1119 | D146: 21.5 | G146: 4465 | H146: 11044 | I146: 1 | J146: 2268 | K146: 136 | L146: 202 | M146: 2606 | N146: 4303 | O146: 1 | P146: 24 | Q146: 70 | R146: 2 | S146: 376 | U146: 510 | V146: 0 | X146: -134 | Y146: 0 | Z146: 0 | AA146: -1 | AB146: 0 | AD146: -135 | AF146: 2671 | AI146: -673 | AL146: 4306 | AN146: 4595 | AQ146: 1104 | AR146: 21.5 | AU146: 4465 | AV146: 11361 | AW146: 12 | AX146: 2126 | AY146: 121 | AZ146: 332 | BA146: 2578 | BB146: 4493 | BC146: 1 | BD146: 23 | BE146: 167 | BF146: 112 | BG146: 220 | BI146: 579 | BJ146: 77 | BL146: -282 | BM146: -1 | BN146: 0 | BO146: -1 | BP146: 0 | BQ146: -284 | BS146: 2496 | BV146: -1326 | BY146: 3032 | CA146: 3959 | CF146: 22 | CT146: -87 | CU146: -1423 | CV146: 4 | CW146: 93 | CX146: -23
A147: 484 | B147: Merikarvia | C147: 3156 | D147: 19.5 | G147: 10682 | H147: 31445 | I147: -1 | J147: 7975 | K147: 789 | L147: 992 | M147: 9756 | N147: 12279 | O147: 1 | P147: 24 | Q147: 89 | R147: 3 | S147: 1334 | U147: 1495 | V147: 0 | X147: -161 | Y147: -14 | Z147: 4 | AA147: 1 | AB147: 0 | AD147: -170 | AF147: 5803 | AI147: -1723 | AL147: 3760 | AN147: 2409 | AQ147: 3115 | AR147: 19.5 | AU147: 11006 | AV147: 32134 | AW147: -8 | AX147: 7459 | AY147: 817 | AZ147: 1010 | BA147: 9286 | BB147: 11723 | BC147: 1 | BD147: 18 | BE147: 44 | BF147: 13 | BG147: -113 | BI147: 1631 | BJ147: 0 | BL147: -1744 | BM147: -28 | BN147: 0 | BO147: 0 | BP147: 0 | BQ147: -1772 | BS147: 4510 | BV147: -1727 | BY147: 2434 | CA147: 2395 | CF147: 20.5 | CT147: -6 | CU147: -1811 | CV147: 11 | CW147: 73 | CX147: 15
A148: 489 | B148: Miehikkälä | C148: 1992 | D148: 20 | G148: 13743 | H148: 25702 | I148: 1 | J148: 4667 | K148: 834 | L148: 495 | M148: 5996 | N148: 7909 | O148: 11 | P148: 57 | Q148: 20 | R148: 2 | S148: 1919 | U148: 1232 | V148: 0 | X148: 687 | Y148: -4 | Z148: 0 | AA148: -10 | AB148: 0 | AD148: 673 | AF148: 5817 | AI148: -2191 | AL148: 2863 | AN148: 9765 | AQ148: 1940 | AR148: 20 | AU148: 14853 | AV148: 27376 | AW148: 1 | AX148: 4349 | AY148: 777 | AZ148: 490 | BA148: 5617 | BB148: 7887 | BC148: 13 | BD148: 46 | BE148: 17 | BF148: 140 | BG148: 826 | BI148: 1320 | BJ148: 0 | BL148: -494 | BM148: -9 | BN148: 0 | BO148: -12 | BP148: 0 | BQ148: -515 | BS148: 5336 | BV148: -1051 | BY148: 2693 | CA148: 9278 | CF148: 20.5 | CT148: -8 | CU148: -1109 | CV148: 72 | CW148: -14 | CX148: 133
A149: 491 | B149: Mikkeli | C149: 54261 | D149: 20.5 | G149: 273023 | H149: 551934 | I149: 3714 | J149: 169353 | K149: 13293 | L149: 18948 | M149: 201594 | N149: 139118 | O149: 662 | P149: 4792 | Q149: 961 | R149: 1948 | S149: 58154 | U149: 50042 | V149: 24 | X149: 8136 | Y149: -73 | Z149: -1462 | AA149: -815 | AB149: 95 | AD149: 5881 | AF149: 63358 | AI149: -84152 | AL149: 36514 | AN149: 505223 | AQ149: 53818 | AR149: 20.5 | AU149: 266352 | AV149: 561229 | AW149: -78 | AX149: 167523 | AY149: 13164 | AZ149: 19147 | BA149: 197629 | BB149: 136843 | BC149: 612 | BD149: 4330 | BE149: 1147 | BF149: 1870 | BG149: 35076 | BI149: 46197 | BJ149: 144 | BL149: -10977 | BM149: 0 | BN149: -1042 | BO149: -595 | BP149: 253 | BQ149: -12361 | BS149: 47738 | BV149: -68279 | BY149: 29848 | CA149: 523530 | CF149: 20.5 | CT149: -3040 | CU149: -79687 | CV149: 1457 | CW149: 9951 | CX149: 13
A150: 494 | B150: Muhos | C150: 9019 | D150: 20.5 | G150: 32127 | H150: 83488 | I150: 34 | J150: 24970 | K150: 1204 | L150: 3662 | M150: 29836 | N150: 27679 | O150: 36 | P150: 445 | Q150: 46 | R150: 3 | S150: 5823 | U150: 5014 | V150: 0 | X150: 809 | Y150: 39 | Z150: -3 | AA150: -6 | AB150: -2 | AD150: 837 | AF150: 4020 | AI150: -7267 | AL150: 5142 | AN150: 46978 | AQ150: 8980 | AR150: 21 | AU150: 32609 | AV150: 86278 | AW150: 38 | AX150: 25620 | AY150: 782 | AZ150: 3680 | BA150: 30082 | BB150: 27467 | BC150: 31 | BD150: 421 | BE150: 66 | BF150: 12 | BG150: 3582 | BI150: 4828 | BJ150: 483 | BL150: -763 | BM150: -50 | BN150: -2 | BO150: -4 | BP150: -3 | BQ150: -822 | BS150: 3132 | BV150: -3748 | BY150: 6147 | CA150: 47543 | CF150: 21.5 | CT150: -622 | CU150: -4901 | CV150: 65 | CW150: 1088 | CX150: 12
A151: 495 | B151: Multia | C151: 1636 | D151: 21.75 | G151: 2592 | H151: 13057 | I151: 0 | J151: 3973 | K151: 1081 | L151: 404 | M151: 5458 | N151: 5886 | O151: 5 | P151: 13 | Q151: 15 | R151: 19 | S151: 867 | U151: 638 | V151: 0 | X151: 229 | Y151: -55 | Z151: 0 | AA151: 0 | AB151: 0 | AD151: 174 | AF151: 1159 | AI151: -1278 | AL151: 1663 | AN151: 2940 | AQ151: 1584 | AR151: 22 | AU151: 5658 | AV151: 16182 | AW151: 0 | AX151: 3890 | AY151: 1086 | AZ151: 403 | BA151: 5379 | BB151: 5778 | BC151: 7 | BD151: 11 | BE151: 11 | BF151: 57 | BG151: 583 | BI151: 651 | BJ151: 0 | BL151: -68 | BM151: 12 | BN151: 0 | BO151: 0 | BP151: -1 | BQ151: -57 | BS151: 1112 | BV151: -1234 | BY151: 1756 | CA151: 3356 | CF151: 22 | CT151: -101 | CU151: -1387 | CV151: 28 | CW151: 125 | CX151: 30
A152: 498 | B152: Muonio | C152: 2332 | D152: 21.5 | G152: 9266 | H152: 24954 | I152: 0 | J152: 7044 | K152: 728 | L152: 966 | M152: 8738 | N152: 9054 | O152: 4 | P152: 106 | Q152: 20 | R152: 20 | S152: 2002 | U152: 1131 | V152: -11 | X152: 860 | Y152: 15 | Z152: 0 | AA152: 7 | AB152: 0 | AD152: 882 | AF152: 798 | AI152: -844 | AL152: 1630 | AN152: 9610 | AQ152: 2299 | AR152: 21.5 | AU152: 8627 | AV152: 25127 | AW152: 0 | AX152: 6997 | AY152: 705 | AZ152: 948 | BA152: 8650 | BB152: 9228 | BC152: 3 | BD152: 80 | BE152: 17 | BF152: 13 | BG152: 1305 | BI152: 1373 | BJ152: 9 | BL152: -59 | BM152: 34 | BN152: 0 | BO152: 5 | BP152: 0 | BQ152: -20 | BS152: 738 | BV152: -1065 | BY152: 1229 | CA152: 8900 | CF152: 21.5 | CT152: -8 | CU152: -1227 | CV152: 51 | CW152: 111 | CX152: 28
A153: 499 | B153: Mustasaari | C153: 19384 | D153: 20.75 | G153: 55054 | H153: 149557 | I153: 198 | J153: 69600 | K153: 2650 | L153: 4579 | M153: 76829 | N153: 31479 | O153: 3 | P153: 578 | Q153: 154 | R153: 60 | S153: 13489 | U153: 11022 | V153: 168 | X153: 2635 | Y153: -136 | Z153: -8 | AA153: -31 | AB153: 1 | AD153: 2461 | AF153: 11345 | AI153: -14425 | AL153: 5541 | AN153: 76742 | AQ153: 19444 | AR153: 20.75 | AU153: 56879 | AV153: 157487 | AW153: 272 | AX153: 68348 | AY153: 2430 | AZ153: 4579 | BA153: 75323 | BB153: 31855 | BC153: 3 | BD153: 525 | BE153: 158 | BF153: 66 | BG153: 6412 | BI153: 9524 | BJ153: 0 | BL153: -3112 | BM153: 24 | BN153: -31 | BO153: -32 | BP153: 16 | BQ153: -3135 | BS153: 8212 | BV153: -25739 | BY153: 7688 | CA153: 95233 | CF153: 20.75 | CT153: -1372 | CU153: -28191 | CV153: 1017 | CW153: 1435 | CX153: 8
A154: 500 | B154: Muurame | C154: 10097 | D154: 19.5 | G154: 23809 | H154: 67183 | I154: 30 | J154: 34205 | K154: 2316 | L154: 2134 | M154: 38655 | N154: 12744 | O154: 17 | P154: 401 | Q154: 135 | R154: 19 | S154: 7787 | U154: 5734 | V154: 0 | X154: 2053 | Y154: 12 | Z154: -9 | AA154: -53 | AB154: 0 | AD154: 2003 | AF154: 4693 | AI154: -5917 | AL154: 3496 | AN154: 49795 | AQ154: 10170 | AR154: 19.5 | AU154: 24135 | AV154: 70576 | AW154: -52 | AX154: 35053 | AY154: 2139 | AZ154: 2212 | BA154: 39403 | BB154: 13256 | BC154: 38 | BD154: 355 | BE154: 385 | BF154: 20 | BG154: 6214 | BI154: 6128 | BJ154: 0 | BL154: 86 | BM154: -1 | BN154: -34 | BO154: -43 | BP154: 0 | BQ154: 8 | BS154: 4734 | BV154: -5711 | BY154: 2264 | CA154: 48713 | CF154: 19.5 | CT154: -762 | CU154: -6994 | CV154: 185 | CW154: 1098 | CX154: 0
A155: 503 | B155: Mynämäki | C155: 7838 | D155: 21 | G155: 36158 | H155: 77091 | I155: 26 | J155: 25161 | K155: 1587 | L155: 1113 | M155: 27861 | N155: 17501 | O155: 8 | P155: 162 | Q155: 59 | R155: 15 | S155: 4345 | U155: 3436 | V155: 0 | X155: 909 | Y155: -19 | Z155: -22 | AA155: 0 | AB155: 19 | AD155: 887 | AF155: 3282 | AI155: -14855 | AL155: 5706 | AN155: 21853 | AQ155: 7766 | AR155: 21 | AU155: 36947 | AV155: 81233 | AW155: 26 | AX155: 24650 | AY155: 1053 | AZ155: 1593 | BA155: 27296 | BB155: 17019 | BC155: 16 | BD155: 173 | BE155: 49 | BF155: 14 | BG155: -67 | BI155: 3180 | BJ155: 0 | BL155: -3247 | BM155: 53 | BN155: -11 | BO155: 0 | BP155: 7 | BQ155: -3198 | BS155: 23 | BV155: -3791 | BY155: 5860 | CA155: 25039 | CF155: 21 | CT155: -102 | CU155: -4072 | CV155: 97 | CW155: 184 | CX155: 0
A156: 504 | B156: Myrskylä | C156: 1969 | D156: 21.5 | G156: 8337 | H156: 19199 | I156: 5 | J156: 5515 | K156: 463 | L156: 400 | M156: 6378 | N156: 4569 | O156: 0 | P156: 39 | Q156: 298 | R156: 3 | S156: 346 | U156: 681 | V156: 0 | X156: -335 | Y156: 1 | Z156: 0 | AA156: 0 | AB156: 0 | AD156: -334 | AF156: 1346 | AI156: -112 | AL156: 2007 | AN156: 2447 | AQ156: 1922 | AR156: 21.5 | AU156: 8544 | AV156: 19194 | AW156: 4 | AX156: 5582 | AY156: 441 | AZ156: 394 | BA156: 6417 | BB156: 4770 | BC156: 0 | BD156: 33 | BE156: 292 | BF156: 4 | BG156: 796 | BI156: 659 | BJ156: 18 | BL156: 155 | BM156: -1 | BN156: 0 | BO156: -1 | BP156: 5 | BQ156: 158 | BS156: 1519 | BV156: -132 | BY156: 1474 | CA156: 2216 | CF156: 21.5 | CT156: 58 | CU156: -450 | CV156: 65 | CW156: 253 | CX156: 0
A157: 505 | B157: Mäntsälä | C157: 20803 | D157: 20.5 | G157: 91640 | H157: 182371 | I157: 2 | J157: 71545 | K157: 2877 | L157: 6885 | M157: 81307 | N157: 31644 | O157: 84 | P157: 1470 | Q157: 333 | R157: 252 | S157: 20737 | U157: 15727 | V157: 84 | X157: 5094 | Y157: 5 | Z157: -7 | AA157: 213 | AB157: 9 | AD157: 5314 | AF157: 31191 | AI157: -32735 | AL157: 7285 | AN157: 152041 | AQ157: 20686 | AR157: 20.5 | AU157: 163168 | AV157: 260462 | AW157: -8 | AX157: 69917 | AY157: 2753 | AZ157: 6954 | BA157: 79438 | BB157: 31659 | BC157: 49 | BD157: 1694 | BE157: 160 | BF157: 154 | BG157: 12156 | BI157: 14439 | BJ157: 0 | BL157: -2283 | BM157: -7 | BN157: -16 | BO157: 215 | BP157: -50 | BQ157: -2141 | BS157: 30528 | BV157: -29300 | BY157: 14920 | CA157: 173714 | CF157: 20.5 | CT157: -1105 | CU157: -35819 | CV157: 151 | CW157: 6368 | CX157: -18
A158: 508 | B158: Mänttä-Vilppula | C158: 10256 | D158: 22 | G158: 61579 | H158: 124698 | I158: 845 | J158: 35684 | K158: 3252 | L158: 1701 | M158: 40637 | N158: 32443 | O158: 214 | P158: 964 | Q158: 939 | R158: 146 | S158: 10849 | U158: 7165 | V158: 0 | X158: 3684 | Y158: 1 | Z158: -101 | AA158: 119 | AB158: -163 | AD158: 3540 | AF158: 4133 | AI158: -8395 | AL158: 7607 | AN158: 62987 | AQ158: 9983 | AR158: 22 | AU158: 63493 | AV158: 129382 | AW158: 33 | AX158: 34122 | AY158: 2046 | AZ158: 3145 | BA158: 39314 | BB158: 31202 | BC158: 20 | BD158: 805 | BE158: 759 | BF158: 208 | BG158: 4426 | BI158: 6221 | BJ158: 0 | BL158: -1795 | BM158: 1 | BN158: -102 | BO158: 32 | BP158: -155 | BQ158: -2019 | BS158: 4082 | BV158: -3515 | BY158: 8722 | CA158: 63673 | CF158: 22 | CT158: -2632 | CU158: -6950 | CV158: 0 | CW158: 3435 | CX158: 2
A159: 507 | B159: Mäntyharju | C159: 6054 | D159: 19.75 | G159: 31571 | H159: 67005 | I159: 0 | J159: 16104 | K159: 2346 | L159: 2568 | M159: 21018 | N159: 18626 | O159: 11 | P159: 346 | Q159: 440 | R159: -8 | S159: 4322 | U159: 4063 | V159: 3 | X159: 262 | Y159: -22 | Z159: 0 | AA159: -38 | AB159: 0 | AD159: 202 | AF159: 6868 | AI159: -2573 | AL159: 5185 | AN159: 28320 | AQ159: 5924 | AR159: 19.75 | AU159: 33385 | AV159: 69219 | AW159: 10 | AX159: 15855 | AY159: 2818 | AZ159: 2232 | BA159: 20906 | BB159: 17999 | BC159: 9 | BD159: 216 | BE159: 267 | BF159: 41 | BG159: 3100 | BI159: 3175 | BJ159: 19 | BL159: -56 | BM159: 3 | BN159: 0 | BO159: 10 | BP159: -1 | BQ159: -44 | BS159: 6731 | BV159: -3870 | BY159: 2295 | CA159: 27248 | CF159: 19.75 | CT159: -140 | CU159: -4051 | CV159: 147 | CW159: 34 | CX159: 103
A160: 529 | B160: Naantali | C160: 19167 | D160: 19 | G160: 78332 | H160: 157780 | I160: 19 | J160: 71892 | K160: 7868 | L160: 6545 | M160: 86305 | N160: 16028 | O160: 170 | P160: 577 | Q160: 895 | R160: 515 | S160: 22877 | U160: 12790 | V160: 0 | X160: 10087 | Y160: 0 | Z160: -294 | AA160: -384 | AB160: 7 | AD160: 9416 | AF160: 66459 | AI160: -12770 | AL160: 8568 | AN160: 68203 | AQ160: 19245 | AR160: 19 | AU160: 78967 | AV160: 162728 | AW160: 14 | AX160: 74124 | AY160: 8840 | AZ160: 6600 | BA160: 89563 | BB160: 14306 | BC160: 146 | BD160: 1074 | BE160: 968 | BF160: 23 | BG160: 20139 | BI160: 13197 | BJ160: 0 | BL160: 6942 | BM160: 0 | BN160: -381 | BO160: -291 | BP160: -2 | BQ160: 6268 | BS160: 71651 | BV160: -16832 | BY160: 13055 | CA160: 69559 | CF160: 19 | CT160: -1480 | CU160: -20757 | CV160: 174 | CW160: 3751 | CX160: 154
A161: 531 | B161: Nakkila | C161: 5521 | D161: 21.25 | G161: 20494 | H161: 49483 | I161: 0 | J161: 16886 | K161: 693 | L161: 1340 | M161: 18919 | N161: 12490 | O161: 17 | P161: 75 | Q161: 125 | R161: 13 | S161: 2474 | U161: 2272 | V161: 0 | X161: 202 | Y161: 0 | Z161: 0 | AA161: -24 | AB161: 0 | AD161: 178 | AF161: 2876 | AI161: -3569 | AL161: 4611 | AN161: 8419 | AQ161: 5437 | AR161: 21.25 | AU161: 20875 | AV161: 50355 | AW161: -1 | AX161: 17362 | AY161: 574 | AZ161: 1405 | BA161: 19341 | BB161: 12982 | BC161: 2 | BD161: 87 | BE161: 125 | BF161: 12 | BG161: 2870 | BI161: 1996 | BJ161: 0 | BL161: 874 | BM161: 0 | BN161: 9 | BO161: 0 | BP161: 16 | BQ161: 899 | BS161: 3789 | BV161: -6061 | BY161: 6465 | CA161: 12443 | CF161: 21.25 | CT161: 5 | CU161: -6716 | CV161: 525 | CW161: 130 | CX161: 0
A162: 535 | B162: Nivala | C162: 10815 | D162: 21.5 | G162: 64451 | H162: 127363 | I162: 48 | J162: 27412 | K162: 1232 | L162: 2334 | M162: 30978 | N162: 41875 | O162: 144 | P162: 877 | Q162: 1002 | R162: -172 | S162: 10068 | U162: 6257 | V162: 0 | X162: 3811 | Y162: -103 | Z162: -58 | AA162: 95 | AB162: -21 | AD162: 3724 | AF162: 14399 | AI162: -12265 | AL162: 27624 | AN162: 92564 | AQ162: 10737 | AR162: 21.5 | AU162: 65748 | AV162: 130564 | AW162: 40 | AX162: 27573 | AY162: 1130 | AZ162: 2476 | BA162: 30941 | BB162: 41943 | BC162: 186 | BD162: 719 | BE162: 731 | BF162: 507 | BG162: 7799 | BI162: 6809 | BJ162: 426 | BL162: 1416 | BM162: 498 | BN162: -54 | BO162: 240 | BP162: 9 | BQ162: 2109 | BS162: 16483 | BV162: -12607 | BY162: 30287 | CA162: 100419 | CF162: 22 | CT162: -458 | CU162: -13450 | CV162: 272 | CW162: 571 | CX162: 0
A163: 536 | B163: Nokia | C163: 33322 | D163: 20 | G163: 88813 | H163: 241585 | I163: 147 | J163: 114222 | K163: 8614 | L163: 7240 | M163: 130076 | N163: 39434 | O163: 58 | P163: 1383 | Q163: 1588 | R163: 220 | S163: 16926 | U163: 20309 | V163: 0 | X163: -3383 | Y163: -453 | Z163: 0 | AA163: 0 | AB163: -163 | AD163: -3999 | AF163: 9180 | AI163: -22931 | AL163: 31167 | AN163: 134659 | AQ163: 33527 | AR163: 20.5 | AU163: 96109 | AV163: 251425 | AW163: 16 | AX163: 118109 | AY163: 8837 | AZ163: 8942 | BA163: 135598 | BB163: 39829 | BC163: 72 | BD163: 1229 | BE163: 1422 | BF163: 515 | BG163: 19877 | BI163: 20698 | BJ163: 0 | BL163: -821 | BM163: 1 | BN163: -351 | BO163: -73 | BP163: -179 | BQ163: -1423 | BS163: 7778 | BV163: -18351 | BY163: 40926 | CA163: 144253 | CF163: 20.5 | CT163: -2709 | CU163: -23548 | CV163: 1693 | CW163: 3504 | CX163: 4
A164: 538 | B164: Nousiainen | C164: 4813 | D164: 21 | G164: 19880 | H164: 44101 | I164: 2 | J164: 16097 | K164: 462 | L164: 853 | M164: 17412 | N164: 8892 | O164: 3 | P164: 115 | Q164: 24 | R164: 9 | S164: 1988 | U164: 1601 | V164: 1803 | X164: 2190 | Y164: 0 | Z164: 0 | AA164: 0 | AB164: 0 | AD164: 2190 | AF164: 1955 | AI164: -1014 | AL164: 959 | AN164: 10944 | AQ164: 4733 | AR164: 21.5 | AU164: 20199 | AV164: 45671 | AW164: 1 | AX164: 16500 | AY164: 428 | AZ164: 858 | BA164: 17787 | BB164: 8704 | BC164: 1 | BD164: 96 | BE164: 24 | BF164: 71 | BG164: 878 | BI164: 2250 | BJ164: 0 | BL164: -1372 | BM164: 0 | BN164: 0 | BO164: 0 | BP164: -1 | BQ164: -1373 | BS164: 584 | BV164: -1590 | BY164: 931 | CA164: 10912 | CF164: 21.5 | CT164: 14 | CU164: -1638 | CV164: 20 | CW164: 28 | CX164: 0
A165: 541 | B165: Nurmes | C165: 7765 | D165: 20.5 | G165: 51292 | H165: 97755 | I165: -19 | J165: 19703 | K165: 2881 | L165: 1652 | M165: 24236 | N165: 32365 | O165: 54 | P165: 336 | Q165: 380 | R165: 42 | S165: 10175 | U165: 6114 | V165: 370 | X165: 4431 | Y165: -75 | Z165: -156 | AA165: -1 | AB165: -34 | AD165: 4165 | AF165: 23889 | AI165: -7166 | AL165: 10623 | AN165: 20319 | AQ165: 7641 | AR165: 20.5 | AU165: 51113 | AV165: 97013 | AW165: 1 | AX165: 19247 | AY165: 2691 | AZ165: 1681 | BA165: 23619 | BB165: 29747 | BC165: 58 | BD165: 293 | BE165: 352 | BF165: 11 | BG165: 7573 | BI165: 5987 | BJ165: -9 | BL165: 1577 | BM165: -35 | BN165: -40 | BO165: -5 | BP165: 55 | BQ165: 1552 | BS165: 25362 | BV165: -8916 | BY165: 9026 | CA165: 19279 | CF165: 20.5 | CT165: 32 | CU165: -10090 | CV165: 1045 | CW165: 129 | CX165: 430
A166: 543 | B166: Nurmijärvi | C166: 42159 | D166: 19.5 | G166: 131530 | H166: 311902 | I166: 3 | J166: 165825 | K166: 7810 | L166: 8972 | M166: 182607 | N166: 32775 | O166: 99 | P166: 2091 | Q166: 2620 | R166: 653 | S166: 34989 | U166: 26876 | V166: 162 | X166: 8275 | Y166: 10 | Z166: -1391 | AA166: 154 | AB166: 11 | AD166: 7059 | AF166: 94022 | AI166: -49475 | AL166: 42548 | AN166: 232481 | AQ166: 42665 | AR166: 19.5 | AU166: 250158 | AV166: 444329 | AW166: -15 | AX166: 166166 | AY166: 7631 | AZ166: 9376 | BA166: 183173 | BB166: 33115 | BC166: 48 | BD166: 1974 | BE166: 1425 | BF166: 714 | BG166: 20887 | BI166: 28237 | BJ166: 0 | BL166: -7350 | BM166: -13 | BN166: -1158 | BO166: -382 | BP166: 5 | BQ166: -8898 | BS166: 84943 | BV166: -47205 | BY166: 52732 | CA166: 264941 | CF166: 19.5 | CT166: -1538 | CU166: -52213 | CV166: 1054 | CW166: 3954 | CX166: -326
A167: 545 | B167: Närpiö | C167: 9507 | D167: 21 | G167: 30854 | H167: 80262 | I167: 0 | J167: 26290 | K167: 2619 | L167: 2910 | M167: 31819 | N167: 28279 | O167: 358 | P167: 648 | Q167: 865 | R167: 152 | S167: 11113 | U167: 5525 | V167: 100 | X167: 5688 | Y167: 0 | Z167: -58 | AA167: 24 | AB167: -24 | AD167: 5630 | AF167: 19054 | AI167: -9151 | AL167: 23477 | AN167: 44258 | AQ167: 9471 | AR167: 21 | AU167: 31220 | AV167: 84137 | AW167: 0 | AX167: 24902 | AY167: 2682 | AZ167: 3002 | BA167: 30587 | BB167: 29249 | BC167: 438 | BD167: 738 | BE167: 1234 | BF167: 412 | BG167: 7441 | BI167: 5644 | BJ167: 0 | BL167: 1797 | BM167: 0 | BN167: -35 | BO167: -37 | BP167: -4 | BQ167: 1721 | BS167: 20331 | BV167: -14163 | BY167: 23822 | CA167: 48811 | CF167: 21 | CT167: -210 | CU167: -15453 | CV167: 944 | CW167: 346 | CX167: -85
A168: 560 | B168: Orimattila | C168: 16221 | D168: 20.75 | G168: 81380 | H168: 159406 | I168: 7 | J168: 48770 | K168: 2691 | L168: 4380 | M168: 55841 | N168: 32288 | O168: 18 | P168: 698 | Q168: 1551 | R168: 27 | S168: 10955 | U168: 8027 | V168: 112 | X168: 3040 | Y168: 0 | Z168: -111 | AA168: -93 | AB168: -102 | AD168: 2734 | AF168: 17452 | AI168: -14879 | AL168: 15439 | AN168: 58533 | AQ168: 16091 | AR168: 20.75 | AU168: 82597 | AV168: 162794 | AW168: 0 | AX168: 48357 | AY168: 2368 | AZ168: 4318 | BA168: 55043 | BB168: 31875 | BC168: 14 | BD168: 640 | BE168: 1616 | BF168: 30 | BG168: 7681 | BI168: 8414 | BJ168: 482 | BL168: -251 | BM168: 0 | BN168: -103 | BO168: -135 | BP168: -131 | BQ168: -620 | BS168: 16497 | BV168: -15353 | BY168: 13556 | CA168: 62310 | CF168: 20.75 | CT168: -316 | CU168: -16678 | CV168: 808 | CW168: 517 | CX168: -112
A169: 561 | B169: Oripää | C169: 1382 | D169: 19.5 | G169: 4106 | H169: 12226 | I169: 0 | J169: 3458 | K169: 388 | L169: 327 | M169: 4173 | N169: 4195 | O169: 2 | P169: 52 | Q169: 7 | R169: 0 | S169: 205 | U169: 634 | V169: 0 | X169: -429 | Y169: 15 | Z169: 0 | AA169: 0 | AB169: 0 | AD169: -414 | AF169: 1183 | AI169: -1049 | AL169: 234 | AN169: 4435 | AQ169: 1364 | AR169: 19.5 | AU169: 4318 | AV169: 13069 | AW169: 0 | AX169: 3314 | AY169: 356 | AZ169: 317 | BA169: 3987 | BB169: 4139 | BC169: 1 | BD169: 1 | BE169: -56 | BF169: 1 | BG169: -682 | BI169: 643 | BJ169: -3 | BL169: -1328 | BM169: 14 | BN169: 0 | BO169: 0 | BP169: 0 | BQ169: -1314 | BS169: -123 | BV169: -222 | BY169: 217 | CA169: 5105 | CF169: 21 | CT169: 8 | CU169: -251 | CV169: 7 | CW169: 22 | CX169: -1
A170: 562 | B170: Orivesi | C170: 9285 | D170: 22 | G170: 28964 | H170: 79855 | I170: 217 | J170: 28775 | K170: 1972 | L170: 3022 | M170: 33769 | N170: 23814 | O170: 60 | P170: 472 | Q170: 113 | R170: 96 | S170: 6414 | U170: 4367 | V170: 0 | X170: 2047 | Y170: 1 | Z170: -47 | AA170: -82 | AB170: -71 | AD170: 1848 | AF170: 7744 | AI170: -3239 | AL170: 9543 | AN170: 33530 | AQ170: 9221 | AR170: 22 | AU170: 31069 | AV170: 83556 | AW170: 148 | AX170: 28106 | AY170: 1892 | AZ170: 2969 | BA170: 32899 | BB170: 22441 | BC170: 59 | BD170: 389 | BE170: 119 | BF170: 96 | BG170: 2694 | BI170: 4258 | BJ170: 0 | BL170: -1564 | BM170: 0 | BN170: -51 | BO170: -35 | BP170: -65 | BQ170: -1715 | BS170: 6030 | BV170: -6592 | BY170: 5503 | CA170: 31760 | CF170: 22 | CT170: 84 | CU170: -6662 | CV170: 7 | CW170: 63 | CX170: -13
A171: 563 | B171: Oulainen | C171: 7472 | D171: 21.5 | G171: 29638 | H171: 74314 | I171: 3 | J171: 21436 | K171: 1279 | L171: 1901 | M171: 24616 | N171: 24633 | O171: 31 | P171: 200 | Q171: 599 | R171: 250 | S171: 4756 | U171: 3703 | V171: 835 | X171: 1888 | Y171: -2 | Z171: -4 | AA171: -6 | AB171: -2 | AD171: 1874 | AF171: 8555 | AI171: -4265 | AL171: 19608 | AN171: 42813 | AQ171: 7430 | AR171: 21.5 | AU171: 29654 | AV171: 77694 | AW171: 2 | AX171: 21172 | AY171: 1128 | AZ171: 2031 | BA171: 24332 | BB171: 24050 | BC171: 27 | BD171: 176 | BE171: 1209 | BF171: 851 | BG171: 553 | BI171: 4196 | BJ171: 443 | BL171: -3200 | BM171: -12 | BN171: -3 | BO171: -3 | BP171: -2 | BQ171: -3220 | BS171: 6675 | BV171: -2149 | BY171: 20118 | CA171: 42827 | CF171: 22 | CT171: 258 | CU171: -3044 | CV171: 127 | CW171: 768 | CX171: 40
A172: 564 | B172: Oulu | C172: 201810 | D172: 20 | G172: 831894 | H172: 1735601 | I172: -89 | J172: 665862 | K172: 42612 | L172: 56086 | M172: 764560 | N172: 370328 | O172: 2562 | P172: 15254 | Q172: 6281 | R172: 4781 | S172: 216246 | U172: 146844 | V172: 0 | X172: 69402 | Y172: 805 | Z172: -2747 | AA172: -6167 | AB172: -2132 | AD172: 59161 | AF172: 735963 | AI172: -174871 | AL172: 213819 | AN172: 808073 | AQ172: 203567 | AR172: 20 | AU172: 847127 | AV172: 1777433 | AW172: 2688 | AX172: 665006 | AY172: 45173 | AZ172: 56717 | BA172: 763750 | BB172: 358170 | BC172: 2862 | BD172: 14942 | BE172: 4647 | BF172: 8286 | BG172: 178583 | BI172: 150294 | BJ172: 9916 | BL172: 38205 | BM172: -2413 | BN172: -2506 | BO172: -5243 | BP172: -1867 | BQ172: 26176 | BS172: 761359 | BV172: -232339 | BY172: 206336 | CA172: 834134 | CF172: 20 | CT172: -26284 | CU172: -260195 | CV172: 2146 | CW172: 25710 | CX172: 78
A173: 309 | B173: Outokumpu | C173: 7003 | D173: 21.75 | G173: 52585 | H173: 90014 | I173: 0 | J173: 19165 | K173: 1436 | L173: 1764 | M173: 22365 | N173: 22518 | O173: 132 | P173: 406 | Q173: 76 | R173: 16 | S173: 7240 | U173: 5060 | V173: -228 | X173: 1952 | Y173: -44 | Z173: -82 | AA173: -37 | AB173: 9 | AD173: 1798 | AF173: 6996 | AI173: -3972 | AL173: 7141 | AN173: 34258 | AQ173: 6803 | AR173: 21.75 | AU173: 53376 | AV173: 91100 | AW173: 0 | AX173: 18390 | AY173: 1246 | AZ173: 1726 | BA173: 21362 | BB173: 22620 | BC173: 117 | BD173: 324 | BE173: 47 | BF173: 5 | BG173: 6093 | BI173: 5696 | BJ173: 0 | BL173: 397 | BM173: -4 | BN173: -401 | BO173: 5 | BP173: 3 | BQ173: 0 | BS173: 6790 | BV173: -4020 | BY173: 6915 | CA173: 30568 | CF173: 21.75 | CT173: 883 | CU173: -4798 | CV173: 102 | CW173: 676 | CX173: 403
A174: 576 | B174: Padasjoki | C174: 3027 | D174: 21 | G174: 21374 | H174: 38659 | I174: 1 | J174: 7978 | K174: 1271 | L174: 1465 | M174: 10714 | N174: 9557 | O174: 119 | P174: 131 | Q174: 69 | R174: 23 | S174: 3022 | U174: 2351 | V174: 24 | X174: 695 | Y174: 0 | Z174: 0 | AA174: -25 | AB174: 12 | AD174: 682 | AF174: 11266 | AI174: -2082 | AL174: 7848 | AN174: 12369 | AQ174: 2963 | AR174: 21 | AU174: 21740 | AV174: 40114 | AW174: 0 | AX174: 8126 | AY174: 1172 | AZ174: 1466 | BA174: 10757 | BB174: 9437 | BC174: 125 | BD174: 106 | BE174: 77 | BF174: 48 | BG174: 1868 | BI174: 2296 | BJ174: 136 | BL174: -292 | BM174: 0 | BN174: -10 | BO174: -16 | BP174: -17 | BQ174: -335 | BS174: 10969 | BV174: -1710 | BY174: 8280 | CA174: 11977 | CF174: 21 | CT174: -23 | CU174: -1829 | CV174: 38 | CW174: 81 | CX174: 32
A175: 577 | B175: Paimio | C175: 10730 | D175: 20.75 | G175: 34541 | H175: 86311 | I175: 33 | J175: 38296 | K175: 1494 | L175: 2302 | M175: 42092 | N175: 19028 | O175: 27 | P175: 508 | Q175: 33 | R175: 1 | S175: 8933 | U175: 5408 | V175: 0 | X175: 3525 | Y175: 0 | Z175: -128 | AA175: -22 | AB175: -1 | AD175: 3374 | AF175: -1159 | AI175: -3261 | AL175: 8828 | AN175: 58874 | AQ175: 10832 | AR175: 20.75 | AU175: 33733 | AV175: 89318 | AW175: 22 | AX175: 37406 | AY175: 1345 | AZ175: 2337 | BA175: 41088 | BB175: 18886 | BC175: 33 | BD175: 455 | BE175: 13 | BF175: 6 | BG175: 3996 | BI175: 5169 | BJ175: 0 | BL175: -1173 | BM175: 0 | BN175: -132 | BO175: -43 | BP175: -3 | BQ175: -1351 | BS175: -1737 | BV175: -6586 | BY175: 10361 | CA175: 62224 | CF175: 20.75 | CT175: -716 | CU175: -7692 | CV175: 124 | CW175: 982 | CX175: 1
A176: 578 | B176: Paltamo | C176: 3435 | D176: 22 | G176: 25295 | H176: 47544 | I176: -1 | J176: 9356 | K176: 673 | L176: 1288 | M176: 11317 | N176: 12704 | O176: 4 | P176: 55 | Q176: 625 | R176: 91 | S176: 2254 | U176: 2466 | V176: 0 | X176: -212 | Y176: 4 | Z176: 0 | AA176: -47 | AB176: 0 | AD176: -255 | AF176: 1107 | AI176: -3514 | AL176: 5553 | AN176: 19162 | AQ176: 3336 | AR176: 22 | AU176: 25729 | AV176: 47978 | AW176: -3 | AX176: 8812 | AY176: 598 | AZ176: 1278 | BA176: 10688 | BB176: 12939 | BC176: 3 | BD176: 64 | BE176: 71 | BF176: 124 | BG176: 1261 | BI176: 1934 | BJ176: -2 | BL176: -675 | BM176: 4 | BN176: 0 | BO176: -51 | BP176: 0 | BQ176: -722 | BS176: 351 | BV176: -4840 | BY176: 6428 | CA176: 23154 | CF176: 22 | CT176: 261 | CU176: -5258 | CV176: 415 | CW176: 3 | CX176: 7
A177: 445 | B177: Parainen | C177: 15285 | D177: 19.75 | G177: 49710 | H177: 137454 | I177: 13 | J177: 54787 | K177: 2254 | L177: 9190 | M177: 66231 | N177: 30004 | O177: 1 | P177: 1221 | Q177: 68 | R177: 13 | S177: 7339 | U177: 7198 | V177: 0 | X177: 141 | Y177: 89 | Z177: -56 | AA177: 15 | AB177: 1 | AD177: 190 | AF177: 16088 | AI177: -5941 | AL177: 9689 | AN177: 55137 | AQ177: 15217 | AR177: 19.75 | AU177: 50826 | AV177: 138492 | AW177: -10 | AX177: 54276 | AY177: 2304 | AZ177: 9109 | BA177: 65688 | BB177: 28595 | BC177: 7 | BD177: 1022 | BE177: 94 | BF177: 14 | BG177: 5672 | BI177: 7314 | BJ177: 0 | BL177: -1642 | BM177: 0 | BN177: -82 | BO177: 22 | BP177: 6 | BQ177: -1696 | BS177: 14393 | BV177: -6084 | BY177: 6593 | CA177: 51805 | CF177: 19.75 | CT177: -440 | CU177: -7522 | CV177: 948 | CW177: 490 | CX177: 0
A178: 580 | B178: Parikkala | C178: 4969 | D178: 19.5 | G178: 27793 | H178: 58376 | I178: 14 | J178: 12734 | K178: 1748 | L178: 1332 | M178: 15814 | N178: 18571 | O178: 8 | P178: 25 | Q178: 40 | R178: 3 | S178: 3825 | U178: 2666 | V178: 0 | X178: 1159 | Y178: 59 | Z178: -27 | AA178: 0 | AB178: -44 | AD178: 1147 | AF178: 19082 | AI178: -4128 | AL178: 5593 | AN178: 4253 | AQ178: 4842 | AR178: 19.5 | AU178: 29332 | AV178: 58140 | AW178: 9 | AX178: 12085 | AY178: 1439 | AZ178: 1322 | BA178: 14841 | BB178: 17538 | BC178: 37 | BD178: 19 | BE178: 55 | BF178: 3 | BG178: 3650 | BI178: 2165 | BJ178: 0 | BL178: 1485 | BM178: -269 | BN178: 0 | BO178: -1 | BP178: 1 | BQ178: 1216 | BS178: 20291 | BV178: 472 | BY178: 7462 | CA178: 4775 | CF178: 19.5 | CT178: -2317 | CU178: -3401 | CV178: 184 | CW178: 3689 | CX178: 50
A179: 581 | B179: Parkano | C179: 6562 | D179: 21 | G179: 35703 | H179: 73847 | I179: 214 | J179: 18014 | K179: 2181 | L179: 1868 | M179: 22063 | N179: 20787 | O179: 14 | P179: 314 | Q179: 380 | R179: 77 | S179: 4871 | U179: 2836 | V179: 0 | X179: 2035 | Y179: 0 | Z179: -37 | AA179: -1 | AB179: -61 | AD179: 1936 | AF179: 11769 | AI179: -3481 | AL179: 4554 | AN179: 28203 | AQ179: 6469 | AR179: 22 | AU179: 37511 | AV179: 75475 | AW179: 122 | AX179: 18261 | AY179: 2013 | AZ179: 1902 | BA179: 22125 | BB179: 20646 | BC179: 5 | BD179: 304 | BE179: 128 | BF179: 77 | BG179: 4681 | BI179: 3138 | BJ179: 0 | BL179: 1543 | BM179: 0 | BN179: -39 | BO179: 0 | BP179: -61 | BQ179: 1443 | BS179: 12190 | BV179: -3251 | BY179: 3684 | CA179: 27450 | CF179: 22 | CT179: -1214 | CU179: -4710 | CV179: 184 | CW179: 1275 | CX179: -80
A180: 599 | B180: Pedersören kunta | C180: 11084 | D180: 20.5 | G180: 28460 | H180: 85473 | I180: 90 | J180: 30169 | K180: 3210 | L180: 2184 | M180: 35563 | N180: 25471 | O180: 34 | P180: 57 | Q180: 165 | R180: 164 | S180: 4089 | U180: 3454 | V180: 44 | X180: 679 | Y180: -105 | Z180: -37 | AA180: 0 | AB180: 0 | AD180: 537 | AF180: 13191 | AI180: -8897 | AL180: 6510 | AN180: 37401 | AQ180: 11016 | AR180: 20.5 | AU180: 28447 | AV180: 86332 | AW180: 53 | AX180: 29339 | AY180: 2665 | AZ180: 2202 | BA180: 34205 | BB180: 25728 | BC180: 17 | BD180: 97 | BE180: 166 | BF180: 167 | BG180: 2020 | BI180: 3522 | BJ180: -42 | BL180: -1544 | BM180: 66 | BN180: -78 | BO180: -3 | BP180: -1 | BQ180: -1560 | BS180: 12490 | BV180: -7393 | BY180: 5854 | CA180: 41331 | CF180: 20.5 | CT180: -221 | CU180: -7837 | CV180: 114 | CW180: 330 | CX180: 118
A181: 583 | B181: Pelkosenniemi | C181: 958 | D181: 22 | G181: 5600 | H181: 13466 | I181: -10 | J181: 2883 | K181: 357 | L181: 1737 | M181: 4977 | N181: 3995 | O181: 3 | P181: 38 | Q181: 36 | R181: 6 | S181: 1062 | U181: 739 | V181: -7 | X181: 316 | Y181: -8 | Z181: 0 | AA181: -13 | AB181: 8 | AD181: 303 | AF181: 2518 | AI181: -161 | AL181: 1620 | AN181: 4081 | AQ181: 954 | AR181: 22.25 | AU181: 5475 | AV181: 13836 | AW181: -3 | AX181: 2688 | AY181: 344 | AZ181: 1989 | BA181: 4986 | BB181: 3961 | BC181: 3 | BD181: 27 | BE181: 79 | BF181: 5 | BG181: 633 | BI181: 513 | BJ181: 0 | BL181: 120 | BM181: -53 | BN181: 0 | BO181: -1 | BP181: 4 | BQ181: 70 | BS181: 2588 | BV181: -400 | BY181: 1601 | CA181: 3490 | CF181: 22.25 | CT181: 18 | CU181: -409 | CV181: 5 | CW181: 4 | CX181: 0
A182: 854 | B182: Pello | C182: 3510 | D182: 20.25 | G182: 13802 | H182: 40850 | I182: 0 | J182: 9553 | K182: 791 | L182: 746 | M182: 11090 | N182: 16104 | O182: 1 | P182: 69 | Q182: 184 | R182: 52 | S182: 210 | U182: 2091 | V182: -21 | X182: -1902 | Y182: 20 | Z182: -37 | AA182: 0 | AB182: 1 | AD182: -1918 | AF182: 2861 | AI182: -1478 | AL182: 2485 | AN182: 10906 | AQ182: 3438 | AR182: 21 | AU182: 14489 | AV182: 40458 | AW182: 0 | AX182: 9571 | AY182: 765 | AZ182: 719 | BA182: 11055 | BB182: 16467 | BC182: 0 | BD182: 67 | BE182: 131 | BF182: 25 | BG182: 1592 | BI182: 2034 | BJ182: 17 | BL182: -425 | BM182: 23 | BN182: -24 | BO182: 0 | BP182: 0 | BQ182: -426 | BS182: 2412 | BV182: -1107 | BY182: 2173 | CA182: 9731 | CF182: 21.25 | CT182: -59 | CU182: -1337 | CV182: 48 | CW182: 182 | CX182: 0
A183: 584 | B183: Perho | C183: 2860 | D183: 21.5 | G183: 13725 | H183: 32479 | I183: 4 | J183: 6569 | K183: 650 | L183: 583 | M183: 7802 | N183: 12672 | O183: 347 | P183: 79 | Q183: 31 | R183: 26 | S183: 1990 | U183: 1778 | V183: 0 | X183: 212 | Y183: 55 | Z183: 0 | AA183: 0 | AB183: -4 | AD183: 263 | AF183: 5739 | AI183: -4979 | AL183: 7449 | AN183: 15218 | AQ183: 2825 | AR183: 21.5 | AU183: 14166 | AV183: 33972 | AW183: 2 | AX183: 6365 | AY183: 613 | AZ183: 737 | BA183: 7709 | BB183: 12558 | BC183: 217 | BD183: 82 | BE183: 19 | BF183: 210 | BG183: 407 | BI183: 1836 | BJ183: -1 | BL183: -1430 | BM183: -6 | BN183: 0 | BO183: 0 | BP183: -3 | BQ183: -1439 | BS183: 4290 | BV183: -4560 | BY183: 7175 | CA183: 18555 | CF183: 21.5 | CT183: -180 | CU183: -5498 | CV183: 52 | CW183: 886 | CX183: 6
A184: 588 | B184: Pertunmaa | C184: 1739 | D184: 21 | G184: 10297 | H184: 21391 | I184: 0 | J184: 4126 | K184: 841 | L184: 813 | M184: 5780 | N184: 6328 | O184: 3 | P184: 50 | Q184: 136 | R184: 1 | S184: 1102 | U184: 877 | V184: 6 | X184: 231 | Y184: -10 | Z184: 0 | AA184: 15 | AB184: -4 | AD184: 232 | AF184: 656 | AI184: -1867 | AL184: 2048 | AN184: 9210 | AQ184: 1713 | AR184: 21.5 | AU184: 10771 | AV184: 22485 | AW184: 3 | AX184: 3876 | AY184: 795 | AZ184: 824 | BA184: 5495 | BB184: 6001 | BC184: 3 | BD184: 49 | BE184: 76 | BF184: 1 | BG184: -186 | BI184: 954 | BJ184: -72 | BL184: -1212 | BM184: 4 | BN184: 0 | BO184: 6 | BP184: 0 | BQ184: -1202 | BS184: -567 | BV184: -1001 | BY184: 1286 | CA184: 9478 | CF184: 21.5 | CT184: 4 | CU184: -1086 | CV184: 40 | CW184: 45 | CX184: -1
A185: 592 | B185: Petäjävesi | C185: 3920 | D185: 21.25 | G185: 11014 | H185: 34317 | I185: 0 | J185: 11046 | K185: 1081 | L185: 882 | M185: 13009 | N185: 11941 | O185: 2 | P185: 148 | Q185: 219 | R185: 31 | S185: 1689 | U185: 2356 | V185: 0 | X185: -667 | Y185: 221 | Z185: 0 | AA185: 0 | AB185: 0 | AD185: -446 | AF185: 8527 | AI185: -2675 | AL185: 6122 | AN185: 20387 | AQ185: 3900 | AR185: 21.75 | AU185: 10746 | AV185: 33835 | AW185: 0 | AX185: 10870 | AY185: 1161 | AZ185: 942 | BA185: 12972 | BB185: 11553 | BC185: 3 | BD185: 122 | BE185: 124 | BF185: 92 | BG185: 1349 | BI185: 1670 | BJ185: 0 | BL185: -321 | BM185: 0 | BN185: 0 | BO185: 0 | BP185: 0 | BQ185: -321 | BS185: 8206 | BV185: -4063 | BY185: 5888 | CA185: 22572 | CF185: 21.75 | CT185: 12 | CU185: -4113 | CV185: 2 | CW185: 48 | CX185: 0
A186: 593 | B186: Pieksämäki | C186: 18220 | D186: 22 | G186: 71597 | H186: 172931 | I186: -413 | J186: 58000 | K186: 4818 | L186: 4152 | M186: 66970 | N186: 49505 | O186: 72 | P186: 837 | Q186: 741 | R186: 200 | S186: 14254 | U186: 9299 | V186: 10 | X186: 4965 | Y186: 0 | Z186: -39 | AA186: -162 | AB186: -30 | AD186: 4734 | AF186: 1247 | AI186: -9674 | AL186: 11212 | AN186: 95033 | AQ186: 17933 | AR186: 22 | AU186: 75209 | AV186: 178665 | AW186: -37 | AX186: 56515 | AY186: 4472 | AZ186: 4215 | BA186: 64961 | BB186: 48549 | BC186: 88 | BD186: 763 | BE186: 728 | BF186: 43 | BG186: 10027 | BI186: 10511 | BJ186: 64 | BL186: -420 | BM186: 37 | BN186: -20 | BO186: -125 | BP186: -49 | BQ186: -577 | BS186: 671 | BV186: -19458 | BY186: 10070 | CA186: 102522 | CF186: 22 | CT186: -1116 | CU186: -20277 | CV186: 83 | CW186: 736 | CX186: -26
A187: 595 | B187: Pielavesi | C187: 4624 | D187: 20.75 | G187: 19604 | H187: 50944 | I187: 33 | J187: 10348 | K187: 1534 | L187: 1178 | M187: 13060 | N187: 21825 | O187: 45 | P187: 261 | Q187: 524 | R187: 33 | S187: 3820 | U187: 2982 | V187: 2 | X187: 840 | Y187: 6 | Z187: -7 | AA187: -13 | AB187: -18 | AD187: 808 | AF187: -1094 | AI187: -2187 | AL187: 3803 | AN187: 26351 | AQ187: 4498 | AR187: 21.75 | AU187: 19925 | AV187: 52160 | AW187: 50 | AX187: 10601 | AY187: 1438 | AZ187: 1171 | BA187: 13180 | BB187: 21492 | BC187: 42 | BD187: 232 | BE187: 549 | BF187: 97 | BG187: 2749 | BI187: 2699 | BJ187: -60 | BL187: -10 | BM187: 6 | BN187: -1 | BO187: 18 | BP187: -3 | BQ187: 10 | BS187: -1104 | BV187: -1542 | BY187: 6338 | CA187: 25427 | CF187: 21.75 | CT187: 100 | CU187: -1842 | CV187: 41 | CW187: 259 | CX187: 129
A188: 598 | B188: Pietarsaari | C188: 19379 | D188: 21.25 | G188: 122038 | H188: 231005 | I188: 3641 | J188: 66694 | K188: 5922 | L188: 5119 | M188: 77735 | N188: 39672 | O188: 234 | P188: 1102 | Q188: -206 | R188: 271 | S188: 10736 | U188: 11974 | V188: -278 | X188: -1516 | Y188: 1396 | Z188: 0 | AA188: 200 | AB188: -14 | AD188: 66 | AF188: 90127 | AI188: -13467 | AL188: 9860 | AN188: 109002 | AQ188: 19278 | AR188: 21.25 | AU188: 132822 | AV188: 241372 | AW188: 4763 | AX188: 66249 | AY188: 6167 | AZ188: 5932 | BA188: 78349 | BB188: 39484 | BC188: 17 | BD188: 156 | BE188: 1644 | BF188: 898 | BG188: 14653 | BI188: 14460 | BJ188: 0 | BL188: 193 | BM188: 67 | BN188: 0 | BO188: 35 | BP188: -2 | BQ188: 293 | BS188: 96307 | BV188: -15026 | BY188: 5344 | CA188: 111754 | CF188: 21.25 | CT188: -6076 | CU188: -16775 | CV188: 538 | CW188: 1211 | CX188: 11
A189: 601 | B189: Pihtipudas | C189: 4127 | D189: 21 | G189: 26768 | H189: 54316 | I189: 0 | J189: 9872 | K189: 1628 | L189: 935 | M189: 12435 | N189: 18158 | O189: 263 | P189: 130 | Q189: 78 | R189: 76 | S189: 3180 | U189: 2542 | V189: 0 | X189: 638 | Y189: -22 | Z189: 0 | AA189: 0 | AB189: 0 | AD189: 616 | AF189: 13448 | AI189: -3735 | AL189: 12156 | AN189: 27901 | AQ189: 4053 | AR189: 21 | AU189: 27306 | AV189: 55101 | AW189: 0 | AX189: 9292 | AY189: 1562 | AZ189: 938 | BA189: 11794 | BB189: 17673 | BC189: 171 | BD189: 141 | BE189: 100 | BF189: 39 | BG189: 1763 | BI189: 2532 | BJ189: 0 | BL189: -769 | BM189: -58 | BN189: 0 | BO189: 0 | BP189: 0 | BQ189: -827 | BS189: 13141 | BV189: -5611 | BY189: 11978 | CA189: 30590 | CF189: 21 | CT189: 103 | CU189: -5941 | CV189: 253 | CW189: 77 | CX189: 0
A190: 604 | B190: Pirkkala | C190: 19237 | D190: 20 | G190: 47171 | H190: 132603 | I190: 38 | J190: 76541 | K190: 3743 | L190: 5164 | M190: 85448 | N190: 11272 | O190: 3 | P190: 486 | Q190: 354 | R190: 177 | S190: 11020 | U190: 8997 | V190: 0 | X190: 2023 | Y190: -400 | Z190: -33 | AA190: -2 | AB190: 57 | AD190: 1645 | AF190: 56183 | AI190: -9280 | AL190: 6879 | AN190: 42237 | AQ190: 19368 | AR190: 20 | AU190: 51067 | AV190: 141103 | AW190: 3 | AX190: 76869 | AY190: 3814 | AZ190: 5384 | BA190: 86066 | BB190: 11375 | BC190: 3 | BD190: 390 | BE190: 279 | BF190: 189 | BG190: 7111 | BI190: 9391 | BJ190: 0 | BL190: -2280 | BM190: 1 | BN190: -36 | BO190: 0 | BP190: 46 | BQ190: -2269 | BS190: 53915 | BV190: -10821 | BY190: 4968 | CA190: 49168 | CF190: 20 | CT190: -5986 | CU190: -17023 | CV190: 9 | CW190: 6193 | CX190: 1
A191: 607 | B191: Polvijärvi | C191: 4414 | D191: 20.25 | G191: 30998 | H191: 55734 | I191: 0 | J191: 9963 | K191: 1241 | L191: 909 | M191: 12113 | N191: 15790 | O191: 12 | P191: 84 | Q191: 280 | R191: 108 | S191: 3267 | U191: 2165 | V191: 0 | X191: 1102 | Y191: -801 | Z191: 0 | AA191: 0 | AB191: 0 | AD191: 301 | AF191: 22210 | AI191: -7529 | AL191: 11855 | AN191: 6330 | AQ191: 4307 | AR191: 20.25 | AU191: 32003 | AV191: 56688 | AW191: 0 | AX191: 9223 | AY191: 1125 | AZ191: 901 | BA191: 11248 | BB191: 14481 | BC191: 16 | BD191: 63 | BE191: 244 | BF191: 51 | BG191: 1190 | BI191: 2094 | BJ191: 0 | BL191: -904 | BM191: 371 | BN191: 0 | BO191: 0 | BP191: 0 | BQ191: -533 | BS191: 21293 | BV191: -5797 | BY191: 8109 | CA191: 5203 | CF191: 20.25 | CT191: 78 | CU191: -6839 | CV191: 986 | CW191: 56 | CX191: 271
A192: 608 | B192: Pomarkku | C192: 2166 | D192: 20.5 | G192: 10984 | H192: 25278 | I192: 0 | J192: 5495 | K192: 530 | L192: 534 | M192: 6559 | N192: 8188 | O192: 1 | P192: 33 | Q192: 14 | R192: 9 | S192: 416 | U192: 758 | V192: 0 | X192: -342 | Y192: 0 | Z192: 0 | AA192: -20 | AB192: -3 | AD192: -365 | AF192: 3548 | AI192: -427 | AL192: 1049 | AN192: 5276 | AQ192: 2146 | AR192: 20.5 | AU192: 11350 | AV192: 25457 | AW192: 24 | AX192: 5032 | AY192: 540 | AZ192: 531 | BA192: 6093 | BB192: 8071 | BC192: 1 | BD192: 28 | BE192: 19 | BF192: 38 | BG192: 35 | BI192: 754 | BJ192: 0 | BL192: -719 | BM192: 0 | BN192: 0 | BO192: -7 | BP192: 0 | BQ192: -726 | BS192: 2827 | BV192: -455 | BY192: 874 | CA192: 5032 | CF192: 21.5 | CT192: 19 | CU192: -482 | CV192: 0 | CW192: 27 | CX192: 3
A193: 609 | B193: Pori | C193: 84587 | D193: 19.75 | G193: 420243 | H193: 849848 | I193: -918 | J193: 263387 | K193: 16961 | L193: 23139 | M193: 303487 | N193: 211754 | O193: 703 | P193: 5311 | Q193: 3598 | R193: 196 | S193: 81535 | U193: 63540 | V193: 0 | X193: 17995 | Y193: -12 | Z193: 0 | AA193: -3550 | AB193: 480 | AD193: 14913 | AF193: 64942 | AI193: -79315 | AL193: 93825 | AN193: 451663 | AQ193: 84403 | AR193: 19.75 | AU193: 415636 | AV193: 868353 | AW193: -948 | AX193: 265797 | AY193: 16332 | AZ193: 24428 | BA193: 304372 | BB193: 213558 | BC193: 674 | BD193: 5549 | BE193: 3294 | BF193: 624 | BG193: 62060 | BI193: 66021 | BJ193: 2 | BL193: -3959 | BM193: -497 | BN193: 0 | BO193: -3333 | BP193: -1177 | BQ193: -8966 | BS193: 53417 | BV193: -121322 | BY193: 50172 | CA193: 499109 | CF193: 20.25 | CT193: -3028 | CU193: -144679 | CV193: 1776 | CW193: 21581 | CX193: 175
A194: 611 | B194: Pornainen | C194: 5121 | D194: 20.5 | G194: 10329 | H194: 32999 | I194: 9 | J194: 18040 | K194: 627 | L194: 1129 | M194: 19796 | N194: 7123 | O194: 48 | P194: 208 | Q194: 8 | R194: 33 | S194: 4073 | U194: 2171 | V194: 18 | X194: 1920 | Y194: 19 | Z194: 0 | AA194: 0 | AB194: 0 | AD194: 1939 | AF194: 9774 | AI194: -1490 | AL194: 5595 | AN194: 15865 | AQ194: 5068 | AR194: 20.5 | AU194: 26070 | AV194: 48790 | AW194: 6 | AX194: 17786 | AY194: 726 | AZ194: 1170 | BA194: 19683 | BB194: 6265 | BC194: 16 | BD194: 168 | BE194: 6 | BF194: 33 | BG194: 3055 | BI194: 2014 | BJ194: -50 | BL194: 991 | BM194: -1 | BN194: -1 | BO194: 0 | BP194: 0 | BQ194: 989 | BS194: 10762 | BV194: -701 | BY194: 7425 | CA194: 14562 | CF194: 20.5 | CT194: -398 | CU194: -1847 | CV194: 7 | CW194: 1139 | CX194: -46
A195: 638 | B195: Porvoo | C195: 50159 | D195: 19.75 | G195: 236146 | H195: 467662 | I195: 565 | J195: 190592 | K195: 13931 | L195: 16658 | M195: 221181 | N195: 66196 | O195: 117 | P195: 3729 | Q195: 1209 | R195: 553 | S195: 53470 | U195: 48947 | V195: 231 | X195: 4754 | Y195: -924 | Z195: 1 | AA195: 391 | AB195: -129 | AD195: 4093 | AF195: 40627 | AI195: -74570 | AL195: 44047 | AN195: 332690 | AQ195: 50262 | AR195: 19.75 | AU195: 243042 | AV195: 485961 | AW195: 937 | AX195: 192402 | AY195: 20364 | AZ195: 16386 | BA195: 229152 | BB195: 69451 | BC195: 81 | BD195: 2933 | BE195: 928 | BF195: 519 | BG195: 54178 | BI195: 42069 | BJ195: 0 | BL195: 12109 | BM195: -3593 | BN195: -5 | BO195: 9 | BP195: -97 | BQ195: 8423 | BS195: 50659 | BV195: -71029 | BY195: 51276 | CA195: 361969 | CF195: 19.75 | CT195: -12429 | CU195: -85205 | CV195: 355 | CW195: 13821 | CX195: -79
A196: 614 | B196: Posio | C196: 3310 | D196: 21.75 | G196: 18741 | H196: 41555 | I196: 6 | J196: 8590 | K196: 786 | L196: 1277 | M196: 10653 | N196: 17140 | O196: 4 | P196: 337 | Q196: 284 | R196: 55 | S196: 4880 | U196: 1778 | V196: 1 | X196: 3103 | Y196: 12 | Z196: 0 | AA196: 0 | AB196: 0 | AD196: 3115 | AF196: 1751 | AI196: -1160 | AL196: 10385 | AN196: 18334 | AQ196: 3237 | AR196: 21.75 | AU196: 19591 | AV196: 42546 | AW196: 0 | AX196: 7511 | AY196: 660 | AZ196: 1230 | BA196: 9401 | BB196: 16916 | BC196: 1 | BD196: 332 | BE196: 72 | BF196: 158 | BG196: 2945 | BI196: 1846 | BJ196: 0 | BL196: 1099 | BM196: 11 | BN196: 0 | BO196: 0 | BP196: 1 | BQ196: 1111 | BS196: 2964 | BV196: -1271 | BY196: 10862 | CA196: 16804 | CF196: 21.75 | CT196: 95 | CU196: -1318 | CV196: 18 | CW196: 29 | CX196: 35
A197: 615 | B197: Pudasjärvi | C197: 8103 | D197: 20.5 | G197: 60389 | H197: 115300 | I197: 32 | J197: 18463 | K197: 2832 | L197: 1971 | M197: 23266 | N197: 36935 | O197: 66 | P197: 554 | Q197: 2176 | R197: 10 | S197: 7000 | U197: 5950 | V197: 0 | X197: 1050 | Y197: 591 | Z197: -30 | AA197: -7 | AB197: -3 | AD197: 1601 | AF197: 12732 | AI197: -8431 | AL197: 20677 | AN197: 47681 | AQ197: 7990 | AR197: 20.5 | AU197: 61726 | AV197: 119006 | AW197: -1 | AX197: 17561 | AY197: 2619 | AZ197: 2066 | BA197: 22246 | BB197: 35877 | BC197: 167 | BD197: 628 | BE197: 581 | BF197: 59 | BG197: 903 | BI197: 6127 | BJ197: 557 | BL197: -4667 | BM197: 674 | BN197: -41 | BO197: -4 | BP197: -3 | BQ197: -4041 | BS197: 8676 | BV197: -10370 | BY197: 20747 | CA197: 52963 | CF197: 20.5 | CT197: -513 | CU197: -12544 | CV197: 388 | CW197: 1786 | CX197: 3
A198: 616 | B198: Pukkila | C198: 1940 | D198: 22 | G198: 9946 | H198: 20099 | I198: 0 | J198: 6556 | K198: 455 | L198: 445 | M198: 7456 | N198: 3662 | O198: 22 | P198: 102 | Q198: 148 | R198: 3 | S198: 1030 | U198: 900 | V198: 491 | X198: 621 | Y198: 0 | Z198: 0 | AA198: 0 | AB198: 0 | AD198: 621 | AF198: 3470 | AI198: 208 | AL198: 1494 | AN198: 5908 | AQ198: 1899 | AR198: 21.5 | AU198: 10152 | AV198: 21036 | AW198: 0 | AX198: 5803 | AY198: 291 | AZ198: 407 | BA198: 6501 | BB198: 3620 | BC198: 33 | BD198: 61 | BE198: 153 | BF198: 3 | BG198: -641 | BI198: 530 | BJ198: -6 | BL198: -1177 | BM198: -1 | BN198: 0 | BO198: -1 | BP198: 0 | BQ198: -1179 | BS198: 2291 | BV198: -118 | BY198: 2550 | CA198: 5546 | CF198: 21.5 | CT198: 106 | CU198: -438 | CV198: 0 | CW198: 320 | CX198: 1
A199: 619 | B199: Punkalaidun | C199: 2949 | D199: 21.5 | G199: 11158 | H199: 28793 | I199: 2 | J199: 7772 | K199: 603 | L199: 606 | M199: 8981 | N199: 10920 | O199: 1 | P199: 65 | Q199: 6 | R199: 0 | S199: 2210 | U199: 1802 | V199: 0 | X199: 408 | Y199: 0 | Z199: 0 | AA199: 0 | AB199: -1 | AD199: 407 | AF199: 4242 | AI199: -672 | AL199: 1723 | AN199: 4390 | AQ199: 2896 | AR199: 22 | AU199: 11464 | AV199: 28715 | AW199: 2 | AX199: 7721 | AY199: 482 | AZ199: 674 | BA199: 8877 | BB199: 10108 | BC199: 1 | BD199: 57 | BE199: 4 | BF199: 2 | BG199: 1682 | BI199: 1631 | BJ199: 0 | BL199: 51 | BM199: 0 | BN199: 0 | BO199: 0 | BP199: 0 | BQ199: 51 | BS199: 4283 | BV199: -2485 | BY199: 2657 | CA199: 6283 | CF199: 22 | CT199: 12 | CU199: -2640 | CV199: 78 | CW199: 77 | CX199: 0
A200: 620 | B200: Puolanka | C200: 2669 | D200: 21.5 | G200: 19587 | H200: 41098 | I200: 0 | J200: 6697 | K200: 1367 | L200: 798 | M200: 8862 | N200: 14220 | O200: 3 | P200: 64 | Q200: 1415 | R200: 24 | S200: 2901 | U200: 1759 | V200: 0 | X200: 1142 | Y200: 4 | Z200: 0 | AA200: -23 | AB200: 0 | AD200: 1123 | AF200: 3644 | AI200: -1755 | AL200: 3295 | AN200: 9864 | AQ200: 2597 | AR200: 21.5 | AU200: 21176 | AV200: 42354 | AW200: 0 | AX200: 6079 | AY200: 1233 | AZ200: 796 | BA200: 8108 | BB200: 13846 | BC200: 3 | BD200: 67 | BE200: 22 | BF200: 44 | BG200: 690 | BI200: 1644 | BJ200: -2 | BL200: -956 | BM200: 4 | BN200: 0 | BO200: -13 | BP200: 0 | BQ200: -965 | BS200: 2197 | BV200: -2804 | BY200: 3189 | CA200: 12805 | CF200: 21.5 | CT200: 219 | CU200: -3157 | CV200: 147 | CW200: 206 | CX200: 42
... 98 more rows

Sheet väestöennuste
A1: Väestöennuste 2015 kunnittain 2019-2027
A2: TK, 28.9.2015
A3: 2019 kuntajako | B3: 2 | C3: 3 | D3: 4 | E3: 5 | F3: 6 | G3: 7 | H3: 8 | I3: 9 | J3: 10 | K3: 11 | L3: 12 | M3: 13
B5: 2017 | C5: 2018 | D5: 2019 | E5: 2020 | F5: 2021 | G5: 2022 | H5: 2023 | I5: 2024 | J5: 2026 | K5: 2026 | L5: 2027 | M5: 2028
B6: =SUM(B8:B303) -> 10967282 | C6: =SUM(C8:C303) -> 10976260 | D6: 11074405.99 | E6: 11115390.99 | F6: 11155685.74 | G6: 11195114.21 | H6: 11121961 | I6: 11161855 | J6: 11200909 | K6: 11238897 | L6: 11238897 | M6: 11238897
A7: Manner-Suomi | B7: =B6-B103 -> 5483641 | C7: =C6-C103 -> 5488130 | D7: 5537202.993 | E7: 5557695.497 | F7: 5577842.87 | G7: 5597557.105 | H7: 5557087 | I7: 5577064 | J7: 5596619 | K7: 5615640 | L7: 5615640 | M7: 5615640
A8: Akaa | B8: =pohjatiedot!C3 -> 16769 | C8: =pohjatiedot!AQ3 -> 16611 | D8: 17002.3111 | E8: 17036.0183 | F8: 17069.72548 | G8: 17099.46711 | H8: 17184 | I8: 17218 | J8: 17248 | K8: 17275 | L8: =K8 -> 17275 | M8: =L8 -> 17275
A9: Alajärvi | B9: =pohjatiedot!C4 -> 9831 | C9: =pohjatiedot!AQ4 -> 9700 | D9: 9669.366177 | E9: 9598.100561 | F9: 9530.794077 | G9: 9462.497784 | H9: 9697 | I9: 9629 | J9: 9560 | K9: 9499 | L9: =K9 -> 9499 | M9: 9499
A10: Alavieska | B10: =pohjatiedot!C5 -> 2610 | C10: =pohjatiedot!AQ5 -> 2573 | D10: 2588.211685 | E10: 2575.265655 | F10: 2561.323769 | G10: 2549.373582 | H10: 2586 | I10: 2572 | J10: 2560 | K10: 2549 | L10: 2549 | M10: 2549
A11: Alavus | B11: =pohjatiedot!C6 -> 11713 | C11: =pohjatiedot!AQ6 -> 11544 | D11: 11634.313 | E11: 11556.11597 | F11: 11482.93157 | G11: 11412.75476 | H11: 11527 | I11: 11454 | J11: 11384 | K11: 11319 | L11: 11319 | M11: 11319
A12: Asikkala | B12: =pohjatiedot!C7 -> 8248 | C12: =pohjatiedot!AQ7 -> 8149 | D12: 8247.737752 | E12: 8228.671293 | F12: 8212.615366 | G12: 8200.573399 | H12: 8200 | I12: 8184 | J12: 8172 | K12: 8159 | L12: 8159 | M12: 8159
A13: Askola | B13: =pohjatiedot!C8 -> 4990 | C13: =pohjatiedot!AQ8 -> 4958 | D13: 5193.406856 | E13: 5237.336039 | F13: 5281.265232 | G13: 5319.337202 | H13: 5365 | I13: 5410 | J13: 5449 | K13: 5490 | L13: 5490 | M13: 5490
A14: Aura | B14: =pohjatiedot!C9 -> 3991 | C14: =pohjatiedot!AQ9 -> 3984 | D14: 4047.191081 | E14: 4065.950935 | F14: 4081.748701 | G14: 4099.521183 | H14: 4118 | I14: 4134 | J14: 4152 | K14: 4168 | L14: 4168 | M14: 4168
A15: Enonkoski | B15: =pohjatiedot!C10 -> 1416 | C15: =pohjatiedot!AQ10 -> 1405 | D15: 1407.283154 | E15: 1392.375496 | F15: 1379.455523 | G15: 1366.535549 | H15: 1401 | I15: 1388 | J15: 1375 | K15: 1363 | L15: 1363 | M15: 1363
A16: Enontekiö | B16: =pohjatiedot!C11 -> 1893 | C16: =pohjatiedot!AQ11 -> 1852 | D16: 1892.734192 | E16: 1901.620264 | F16: 1911.493677 | G16: 1920.379765 | H16: 1926 | I16: 1936 | J16: 1945 | K16: 1956 | L16: 1956 | M16: 1956
A17: Espoo | B17: =pohjatiedot!C12 -> 279044 | C17: =pohjatiedot!AQ12 -> 283632 | D17: 286232.6278 | E17: 289923.3997 | F17: 293507.745 | G17: 296972.6127 | H17: 288763 | I17: 292333 | J17: 295784 | K17: 299117 | L17: 299117 | M17: 299117
A18: Eura | B18: =pohjatiedot!C13 -> 11910 | C18: =pohjatiedot!AQ13 -> 11748 | D18: 11891.87745 | E18: 11860.40441 | F18: 11829.91496 | G18: 11797.45844 | H18: 12059 | I18: 12028 | J18: 11995 | K18: 11960 | L18: 11960 | M18: 11960
A19: Eurajoki | B19: =pohjatiedot!C14 -> 9521 | C19: =pohjatiedot!AQ14 -> 9454 | D19: 9466.953411 | E19: 9485.903112 | F19: 9500.115404 | G19: 9512.748507 | H19: 6007 | I19: 6016 | J19: 6024 | K19: 6029 | L19: 6029 | M19: 6029
A20: Evijärvi | B20: =pohjatiedot!C15 -> 2499 | C20: =pohjatiedot!AQ15 -> 2473 | D20: 2468.597851 | E20: 2451.020805 | F20: 2433.443764 | G20: 2415.866719 | H20: 2510 | I20: 2492 | J20: 2474 | K20: 2458 | L20: 2458 | M20: 2458
A21: Forssa | B21: =pohjatiedot!C16 -> 17185 | C21: =pohjatiedot!AQ16 -> 17028 | D21: 17180.49824 | E21: 17140.62936 | F21: 17106.74083 | G21: 17075.84248 | H21: 17197 | I21: 17163 | J21: 17132 | K21: 17101 | L21: 17101 | M21: 17101
A22: Haapajärvi | B22: =pohjatiedot!C17 -> 7251 | C22: =pohjatiedot!AQ17 -> 7147 | D22: 7188.955989 | E22: 7147.234808 | F22: 7105.513629 | G22: 7069.752634 | H22: 7195 | I22: 7153 | J22: 7117 | K22: 7080 | L22: 7080 | M22: 7080
A23: Haapavesi | B23: =pohjatiedot!C18 -> 6970 | C23: =pohjatiedot!AQ18 -> 6854 | D23: 6955.41747 | E23: 6914.249283 | F23: 6872.076982 | G23: 6830.908756 | H23: 6886 | I23: 6844 | J23: 6803 | K23: 6763 | L23: 6763 | M23: 6763
A24: Hailuoto | B24: =pohjatiedot!C19 -> 967 | C24: =pohjatiedot!AQ19 -> 974 | D24: 995.9979886 | E24: 995.9979867 | F24: 996.9969856 | G24: 997.9959756 | H24: 997 | I24: 998 | J24: 999 | K24: 1000 | L24: 1000 | M24: 1000
A25: Halsua | B25: =pohjatiedot!C20 -> 1171 | C25: =pohjatiedot!AQ20 -> 1165 | D25: 1155.823296 | E25: 1135.109616 | F25: 1116.467304 | G25: 1099.896364 | H25: 1096 | I25: 1078 | J25: 1062 | K25: 1047 | L25: 1047 | M25: 1047
A26: Hamina | B26: =pohjatiedot!C21 -> 20493 | C26: =pohjatiedot!AQ21 -> 20286 | D26: 20355.87776 | E26: 20261.84383 | F26: 20168.79971 | G26: 20078.72501 | H26: 20470 | I26: 20376 | J26: 20285 | K26: 20196 | L26: 20196 | M26: 20196
A27: Hankasalmi | B27: =pohjatiedot!C22 -> 5019 | C27: =pohjatiedot!AQ22 -> 4939 | D27: 5043.211936 | E27: 5010.553772 | F27: 4978.88524 | G27: 4948.206365 | H27: 5063 | I27: 5031 | J27: 5000 | K27: 4971 | L27: 4971 | M27: 4971
A28: Hanko | B28: =pohjatiedot!C23 -> 8517 | C28: =pohjatiedot!AQ23 -> 8379 | D28: 8387.999768 | E28: 8307.175332 | F28: 8231.279203 | G28: 8162.282716 | H28: 8428 | I28: 8351 | J28: 8281 | K28: 8211 | L28: 8211 | M28: 8211
A29: Harjavalta | B29: =pohjatiedot!C24 -> 7151 | C29: =pohjatiedot!AQ24 -> 7018 | D29: 7138.727346 | E29: 7107.948397 | F29: 7075.183752 | G29: 7043.411939 | H29: 7159 | I29: 7126 | J29: 7094 | K29: 7063 | L29: 7063 | M29: 7063
A30: Hartola | B30: =pohjatiedot!C25 -> 2882 | C30: =pohjatiedot!AQ25 -> 2780 | D30: 2808.422981 | E30: 2781.751358 | F30: 2756.067567 | G30: 2733.347305 | H30: 2816 | I30: 2790 | J30: 2767 | K30: 2746 | L30: 2746 | M30: 2746
A31: Hattula | B31: =pohjatiedot!C26 -> 9610 | C31: =pohjatiedot!AQ26 -> 9475 | D31: 9730.469337 | E31: 9741.350218 | F31: 9754.209436 | G31: 9766.07948 | H31: 9848 | I31: 9861 | J31: 9873 | K31: 9885 | L31: 9885 | M31: 9885
A32: Hausjärvi | B32: =pohjatiedot!C27 -> 8504 | C32: =pohjatiedot!AQ27 -> 8417 | D32: 8662.568218 | E32: 8674.33267 | F32: 8689.038272 | G32: 8705.704595 | H32: 8848 | I32: 8863 | J32: 8880 | K32: 8895 | L32: 8895 | M32: 8895
A33: Heinola | B33: =pohjatiedot!C28 -> 19128 | C33: =pohjatiedot!AQ28 -> 18889 | D33: 18952.18505 | E33: 18836.23897 | F33: 18734.28636 | G33: 18635.3324 | H33: 18845 | I33: 18743 | J33: 18644 | K33: 18547 | L33: 18547 | M33: 18547
A34: Heinävesi | B34: =pohjatiedot!C29 -> 3455 | C34: =pohjatiedot!AQ29 -> 3329 | D34: 3335.134717 | E34: 3282.881912 | F34: 3231.633993 | G34: 3185.410373 | H34: 3267 | I34: 3216 | J34: 3170 | K34: 3124 | L34: 3124 | M34: 3124
A35: Helsinki | B35: =pohjatiedot!C30 -> 643272 | C35: =pohjatiedot!AQ30 -> 648042 | D35: 655976.7314 | E35: 662570.4038 | F35: 668964.9349 | G35: 675192.3471 | H35: 662101 | I35: 668491 | J35: 674714 | K35: 680782 | L35: 680782 | M35: 680782
A36: Hirvensalmi | B36: =pohjatiedot!C31 -> 2236 | C36: =pohjatiedot!AQ31 -> 2152 | D36: 2209.369467 | E36: 2190.47747 | F36: 2175.562732 | G36: 2161.642312 | H36: 2203 | I36: 2188 | J36: 2174 | K36: 2160 | L36: 2160 | M36: 2160
A37: Hollola | B37: =pohjatiedot!C32 -> 23782 | C37: =pohjatiedot!AQ32 -> 23602 | D37: 23791.00004 | E37: 23781.20771 | F37: 23768.1513 | G37: 23748.5666 | H37: 23989 | I37: 23981 | J37: 23970 | K37: 23949 | L37: 23949 | M37: 23949
A38: Honkajoki | B38: =pohjatiedot!C33 -> 1707 | C38: =pohjatiedot!AQ33 -> 1666 | D38: 1715.630161 | E38: 1703.526953 | F38: 1693.440949 | G38: 1684.363537 | H38: 1689 | I38: 1679 | J38: 1670 | K38: 1663 | L38: 1663 | M38: 1663
A39: Huittinen | B39: =pohjatiedot!C34 -> 10207 | C39: =pohjatiedot!AQ34 -> 10091 | D39: 10277.75924 | E39: 10239.68602 | F39: 10208.62633 | G39: 10177.5666 | H39: 10220 | I39: 10189 | J39: 10158 | K39: 10130 | L39: 10130 | M39: 10130
A40: Humppila | B40: =pohjatiedot!C35 -> 2290 | C40: =pohjatiedot!AQ35 -> 2235 | D40: 2294.381483 | E40: 2280.753425 | F40: 2270.045667 | G40: 2258.364461 | H40: 2343 | I40: 2332 | J40: 2320 | K40: 2309 | L40: 2309 | M40: 2309
A41: Hyrynsalmi | B41: =pohjatiedot!C36 -> 2326 | C41: =pohjatiedot!AQ36 -> 2287 | D41: 2256.892927 | E41: 2213.276567 | F41: 2170.674543 | G41: 2132.129858 | H41: 2182 | I41: 2140 | J41: 2102 | K41: 2066 | L41: 2066 | M41: 2066
A42: Hyvinkää | B42: =pohjatiedot!C37 -> 46739 | C42: =pohjatiedot!AQ37 -> 46504 | D42: 47175.30901 | E42: 47375.72419 | F42: 47576.13922 | G42: 47776.55417 | H42: 47514 | I42: 47715 | J42: 47916 | K42: 48116 | L42: 48116 | M42: 48116
A43: Hämeenkyrö | B43: =pohjatiedot!C38 -> 10599 | C43: =pohjatiedot!AQ38 -> 10510 | D43: 10791.09276 | E43: 10827.12306 | F43: 10861.15181 | G43: 10892.17789 | H43: 10818 | I43: 10852 | J43: 10883 | K43: 10916 | L43: 10916 | M43: 10916
A44: Hämeenlinna | B44: =pohjatiedot!C39 -> 67662 | C44: =pohjatiedot!AQ39 -> 67532 | D44: 68650.22754 | E44: 68914.65955 | F44: 69180.08139 | G44: 69440.55158 | H44: 69584 | I44: 69852 | J44: 70115 | K44: 70372 | L44: 70372 | M44: 70372
A45: Ii | B45: =pohjatiedot!C40 -> 9966 | C45: =pohjatiedot!AQ40 -> 9862 | D45: 9778.452857 | E45: 9815.820249 | F45: 9851.220916 | G45: 9880.721473 | H45: 9982 | I45: 10018 | J45: 10048 | K45: 10074 | L45: 10074 | M45: 10074
A46: Iisalmi | B46: =pohjatiedot!C41 -> 21639 | C46: =pohjatiedot!AQ41 -> 21472 | D46: 21745.34235 | E46: 21736.48233 | F46: 21723.68462 | G46: 21714.82474 | H46: 22080 | I46: 22067 | J46: 22058 | K46: 22047 | L46: 22047 | M46: 22047
A47: Iitti | B47: =pohjatiedot!C42 -> 6820 | C47: =pohjatiedot!AQ42 -> 6765 | D47: 6839.021732 | E47: 6828.026536 | F47: 6820.030011 | G47: 6811.033935 | H47: 6831 | I47: 6823 | J47: 6814 | K47: 6807 | L47: 6807 | M47: 6807
A48: Ikaalinen | B48: =pohjatiedot!C43 -> 7119 | C48: =pohjatiedot!AQ43 -> 7003 | D48: 7081.656653 | E48: 7074.75446 | F48: 7071.796358 | G48: 7070.810327 | H48: 7175 | I48: 7172 | J48: 7171 | K48: 7173 | L48: 7173 | M48: 7173
A49: Ilmajoki | B49: =pohjatiedot!C44 -> 12205 | C49: =pohjatiedot!AQ44 -> 12187 | D49: 12378.22232 | E49: 12445.33972 | F49: 12509.49607 | G49: 12577.60047 | H49: 12609 | I49: 12674 | J49: 12743 | K49: 12812 | L49: 12812 | M49: 12812
A50: Ilomantsi | B50: =pohjatiedot!C45 -> 5128 | C50: =pohjatiedot!AQ45 -> 4973 | D50: 4974.902783 | E50: 4896.768119 | F50: 4824.567747 | G50: 4754.345452 | H50: 4951 | I50: 4878 | J50: 4807 | K50: 4740 | L50: 4740 | M50: 4740
A51: Imatra | B51: =pohjatiedot!C46 -> 27269 | C51: =pohjatiedot!AQ46 -> 26932 | D51: 27156.68431 | E51: 27052.46073 | F51: 26951.215 | G51: 26851.95454 | H51: 27254 | I51: 27152 | J51: 27052 | K51: 26951 | L51: 26951 | M51: 26951
A52: Inari | B52: =pohjatiedot!C47 -> 6869 | C52: =pohjatiedot!AQ47 -> 6930 | D52: 6824.999984 | E52: 6828.010993 | F52: 6835.036759 | G52: 6842.062486 | H52: 6803 | I52: 6810 | J52: 6817 | K52: 6823 | L52: 6823 | M52: 6823
A53: Inkoo | B53: =pohjatiedot!C48 -> 5481 | C53: =pohjatiedot!AQ48 -> 5403 | D53: 5572.86526 | E53: 5571.854052 | F53: 5573.876507 | G53: 5576.910179 | H53: 5510 | I53: 5512 | J53: 5515 | K53: 5519 | L53: 5519 | M53: 5519
A54: Isojoki | B54: =pohjatiedot!C49 -> 2032 | C54: =pohjatiedot!AQ49 -> 1976 | D54: 1986.817894 | E54: 1962.301388 | F54: 1940.726859 | G54: 1919.152335 | H54: 2001 | I54: 1979 | J54: 1957 | K54: 1937 | L54: 1937 | M54: 1937
A55: Isokyrö | B55: =pohjatiedot!C50 -> 4673 | C55: =pohjatiedot!AQ50 -> 4601 | D55: 4651.035067 | E55: 4632.352264 | F55: 4613.669464 | G55: 4598.919879 | H55: 4711 | I55: 4692 | J55: 4677 | K55: 4664 | L55: 4664 | M55: 4664
A56: Janakkala | B56: =pohjatiedot!C51 -> 16607 | C56: =pohjatiedot!AQ51 -> 16447 | D56: 16736.75413 | E56: 16747.65754 | F56: 16757.56976 | G56: 16766.49068 | H56: 16896 | I56: 16906 | J56: 16915 | K56: 16924 | L56: 16924 | M56: 16924
A57: Joensuu | B57: =pohjatiedot!C52 -> 76067 | C57: =pohjatiedot!AQ52 -> 76551 | D57: 76877.36197 | E57: 77175.17762 | F57: 77453.0053 | G57: 77720.83951 | H57: 77223 | I57: 77501 | J57: 77769 | K57: 78031 | L57: 78031 | M57: 78031
A58: Jokioinen | B58: =pohjatiedot!C53 -> 5286 | C58: =pohjatiedot!AQ53 -> 5195 | D58: 5237.834929 | E58: 5208.359209 | F58: 5179.86602 | G58: 5152.355353 | H58: 5301 | I58: 5272 | J58: 5244 | K58: 5218 | L58: 5218 | M58: 5218
A59: Joroinen | B59: =pohjatiedot!C54 -> 4917 | C59: =pohjatiedot!AQ54 -> 4812 | D59: 4918.9293 | E59: 4885.190426 | F59: 4847.48226 | G59: 4814.735718 | H59: 4923 | I59: 4885 | J59: 4852 | K59: 4820 | L59: 4820 | M59: 4820
A60: Joutsa | B60: =pohjatiedot!C55 -> 4567 | C60: =pohjatiedot!AQ55 -> 4467 | D60: 4518.878609 | E60: 4474.556117 | F60: 4435.270293 | G60: 4397.999121 | H60: 4442 | I60: 4403 | J60: 4366 | K60: 4327 | L60: 4327 | M60: 4327
A61: Juuka | B61: =pohjatiedot!C56 -> 4817 | C61: =pohjatiedot!AQ56 -> 4709 | D61: 4651.186876 | E61: 4569.956567 | F61: 4492.737642 | G61: 4415.518698 | H61: 4557 | I61: 4480 | J61: 4403 | K61: 4330 | L61: 4330 | M61: 4330
A62: Juupajoki | B62: =pohjatiedot!C57 -> 1904 | C62: =pohjatiedot!AQ57 -> 1884 | D62: 1922.632197 | E62: 1914.776702 | F62: 1905.939268 | G62: 1899.06571 | H62: 1950 | I62: 1941 | J62: 1934 | K62: 1926 | L62: 1926 | M62: 1926
A63: Juva | B63: =pohjatiedot!C58 -> 6334 | C63: =pohjatiedot!AQ58 -> 6225 | D63: 6168.275494 | E63: 6086.364826 | F63: 6010.447579 | G63: 5938.525979 | H63: 6093 | I63: 6017 | J63: 5945 | K63: 5875 | L63: 5875 | M63: 5875
A64: Jyväskylä | B64: =pohjatiedot!C59 -> 140188 | C64: =pohjatiedot!AQ59 -> 141305 | D64: 141892.6981 | E64: 142818.7806 | F64: 143703.6362 | G64: 144562.3491 | H64: 142035 | I64: 142915 | J64: 143769 | K64: 144599 | L64: 144599 | M64: 144599
A65: Jämijärvi | B65: =pohjatiedot!C60 -> 1867 | C65: =pohjatiedot!AQ60 -> 1809 | D65: 1883.956422 | E65: 1876.19553 | F65: 1871.344971 | G65: 1867.464532 | H65: 1934 | I65: 1929 | J65: 1925 | K65: 1922 | L65: 1922 | M65: 1922
A66: Jämsä | B66: =pohjatiedot!C61 -> 20877 | C66: =pohjatiedot!AQ61 -> 20607 | D66: 20624.17989 | E66: 20432.83691 | F66: 20250.46316 | G66: 20083.03803 | H66: 20503 | I66: 20320 | J66: 20152 | K66: 19991 | L66: 19991 | M66: 19991
A67: Järvenpää | B67: =pohjatiedot!C62 -> 42572 | C67: =pohjatiedot!AQ62 -> 43410 | D67: 42484.1558 | E67: 42814.70873 | F67: 43145.26166 | G67: 43473.78641 | H67: 42225 | I67: 42551 | J67: 42875 | K67: 43192 | L67: 43192 | M67: 43192
A68: Kaarina | B68: =pohjatiedot!C63 -> 33099 | C68: =pohjatiedot!AQ63 -> 33458 | D68: 33470.54397 | E68: 33699.02546 | F68: 33926.50489 | G68: 34144.96527 | H68: 33628 | I68: 33855 | J68: 34073 | K68: 34279 | L68: 34279 | M68: 34279
A69: Kaavi | B69: =pohjatiedot!C64 -> 3048 | C69: =pohjatiedot!AQ64 -> 2990 | D69: 3049.302924 | E69: 3021.115244 | F69: 2991.920866 | G69: 2965.74659 | H69: 3001 | I69: 2972 | J69: 2946 | K69: 2921 | L69: 2921 | M69: 2921
A70: Kajaani | B70: =pohjatiedot!C65 -> 37239 | C70: =pohjatiedot!AQ65 -> 36973 | D70: 37323.50513 | E70: 37264.65582 | F70: 37212.7884 | G70: 37159.92374 | H70: 37360 | I70: 37308 | J70: 37255 | K70: 37203 | L70: 37203 | M70: 37203
A71: Kalajoki | B71: =pohjatiedot!C66 -> 12516 | C71: =pohjatiedot!AQ66 -> 12387 | D71: 12632.74742 | E71: 12643.68834 | F71: 12652.63995 | G71: 12658.60772 | H71: 12712 | I71: 12721 | J71: 12727 | K71: 12729 | L71: 12729 | M71: 12729
A72: Kangasala | B72: =pohjatiedot!C67 -> 31437 | C72: =pohjatiedot!AQ67 -> 31676 | D72: 31675.69587 | E72: 31831.84878 | F72: 31981.91782 | G72: 32122.86093 | H72: 31393 | I72: 31541 | J72: 31680 | K72: 31798 | L72: 31798 | M72: 31798
A73: Kangasniemi | B73: =pohjatiedot!C68 -> 5549 | C73: =pohjatiedot!AQ68 -> 5452 | D73: 5428.190582 | E73: 5379.688507 | F73: 5332.196892 | G73: 5287.736656 | H73: 5324 | I73: 5277 | J73: 5233 | K73: 5189 | L73: =K73 -> 5189 | M73: 5189
A74: Kankaanpää | B74: =pohjatiedot!C69 -> 11585 | C74: =pohjatiedot!AQ69 -> 11471 | D74: 11450.60177 | E74: 11394.0874 | F74: 11342.53046 | G74: 11291.96495 | H74: 11492 | I74: 11440 | J74: 11389 | K74: 11343 | L74: 11343 | M74: 11343
A75: Kannonkoski | B75: =pohjatiedot!C70 -> 1408 | C75: =pohjatiedot!AQ70 -> 1353 | D75: 1374.417809 | E75: 1359.543163 | F75: 1346.651796 | G75: 1332.768784 | H75: 1371 | I75: 1358 | J75: 1344 | K75: 1334 | L75: 1334 | M75: 1334
A76: Kannus | B76: =pohjatiedot!C71 -> 5520 | C76: =pohjatiedot!AQ71 -> 5502 | D76: 5482.829388 | E76: 5454.7791 | F76: 5427.730603 | G76: 5404.689308 | H76: 5445 | I76: 5418 | J76: 5395 | K76: 5372 | L76: 5372 | M76: 5372
A77: Karijoki | B77: =pohjatiedot!C72 -> 1329 | C77: =pohjatiedot!AQ72 -> 1274 | D77: 1287.091769 | E77: 1269.118415 | F77: 1255.139141 | G77: 1240.161346 | H77: 1271 | I77: 1257 | J77: 1242 | K77: 1230 | L77: 1230 | M77: 1230
A78: Karkkila | B78: =pohjatiedot!C73 -> 8900 | C78: =pohjatiedot!AQ73 -> 8778 | D78: 8851.907286 | E78: 8838.88681 | F78: 8832.877388 | G78: 8828.87109 | H78: 8825 | I78: 8819 | J78: 8815 | K78: 8814 | L78: 8814 | M78: 8814
A79: Karstula | B79: =pohjatiedot!C74 -> 4146 | C79: =pohjatiedot!AQ74 -> 4031 | D79: 4072.665717 | E79: 4024.966923 | F79: 3977.268116 | G79: 3931.599033 | H79: 3966 | I79: 3919 | J79: 3874 | K79: 3832 | L79: 3832 | M79: 3832
A80: Karvia | B80: =pohjatiedot!C75 -> 2403 | C80: =pohjatiedot!AQ75 -> 2390 | D80: 2351.889704 | E80: 2322.554312 | F80: 2295.242043 | G80: 2271.976033 | H80: 2296 | I80: 2269 | J80: 2246 | K80: 2222 | L80: 2222 | M80: 2222
A81: Kaskinen | B81: =pohjatiedot!C76 -> 1274 | C81: =pohjatiedot!AQ76 -> 1262 | D81: 1254.422513 | E81: 1244.281667 | F81: 1235.15491 | G81: 1229.070404 | H81: 1227 | I81: 1218 | J81: 1212 | K81: 1206 | L81: 1206 | M81: 1206
A82: Kauhajoki | B82: =pohjatiedot!C77 -> 13610 | C82: =pohjatiedot!AQ77 -> 13375 | D82: 13595.19398 | E82: 13548.50923 | F82: 13507.7843 | G82: 13470.03913 | H82: 13640 | I82: 13599 | J82: 13561 | K82: 13526 | L82: 13526 | M82: 13526
A83: Kauhava | B83: =pohjatiedot!C78 -> 16278 | C83: =pohjatiedot!AQ78 -> 16022 | D83: 16241.66733 | E83: 16133.8687 | F83: 16030.06255 | G83: 15933.24333 | H83: 16164 | I83: 16060 | J83: 15963 | K83: 15863 | L83: 15863 | M83: 15863
A84: Kauniainen | B84: =pohjatiedot!C79 -> 9624 | C84: =pohjatiedot!AQ79 -> 9615 | D84: 9763.955644 | E84: 9883.338528 | F84: 9996.850164 | G84: 10108.40466 | H84: 10100 | I84: 10216 | J84: 10330 | K84: 10444 | L84: 10444 | M84: 10444
A85: Kaustinen | B85: =pohjatiedot!C80 -> 4309 | C85: =pohjatiedot!AQ80 -> 4273 | D85: 4289.949401 | E85: 4289.949401 | F85: 4290.955719 | G85: 4290.955717 | H85: 4263 | I85: 4264 | J85: 4264 | K85: 4263 | L85: 4263 | M85: 4263
A86: Keitele | B86: =pohjatiedot!C81 -> 2309 | C86: =pohjatiedot!AQ81 -> 2244 | D86: 2262.787192 | E86: 2237.723093 | F86: 2213.661547 | G86: 2192.607697 | H86: 2232 | I86: 2208 | J86: 2187 | K86: 2166 | L86: 2166 | M86: 2166
A87: Kemi | B87: =pohjatiedot!C82 -> 21256 | C87: =pohjatiedot!AQ82 -> 21021 | D87: 21251.72968 | E87: 21147.94579 | F87: 21051.14749 | G87: 20959.3387 | H87: 21192 | I87: 21095 | J87: 21003 | K87: 20916 | L87: 20916 | M87: 20916
A88: Kemijärvi | B88: =pohjatiedot!C83 -> 7534 | C88: =pohjatiedot!AQ83 -> 7370 | D88: 7308.931956 | E88: 7202.305646 | F88: 7099.702982 | G88: 7004.141638 | H88: 7160 | I88: 7058 | J88: 6963 | K88: 6872 | L88: 6872 | M88: 6872
A89: Keminmaa | B89: =pohjatiedot!C84 -> 8296 | C89: =pohjatiedot!AQ84 -> 8147 | D89: 8255.724869 | E89: 8239.914959 | F89: 8226.081311 | G89: 8213.235766 | H89: 8339 | I89: 8325 | J89: 8312 | K89: 8299 | L89: 8299 | M89: 8299
A90: Kemiönsaari | B90: =pohjatiedot!C85 -> 6793 | C90: =pohjatiedot!AQ85 -> 6724 | D90: 6673.105766 | E90: 6616.278824 | F90: 6564.525726 | G90: 6515.816929 | H90: 6520 | I90: 6469 | J90: 6421 | K90: 6376 | L90: 6376 | M90: 6376
A91: Kempele | B91: =pohjatiedot!C86 -> 17535 | C91: =pohjatiedot!AQ86 -> 17923 | D91: 17904.75132 | E91: 18084.08769 | F91: 18250.47213 | G91: 18400.91542 | H91: 18151 | I91: 18318 | J91: 18469 | K91: 18606 | L91: 18606 | M91: 18606
A92: Kerava | B92: =pohjatiedot!C87 -> 35554 | C92: =pohjatiedot!AQ87 -> 36254 | D92: 36331.5825 | E92: 36606.10095 | F92: 36877.64628 | G92: 37148.20056 | H92: 36937 | I92: 37211 | J92: 37484 | K92: 37751 | L92: 37751 | M92: 37751
A93: Keuruu | B93: =pohjatiedot!C88 -> 9919 | C93: =pohjatiedot!AQ88 -> 9762 | D93: 9707.490871 | E93: 9629.074944 | F93: 9551.664332 | G93: 9480.285748 | H93: 9578 | I93: 9501 | J93: 9430 | K93: 9363 | L93: 9363 | M93: 9363
A94: Kihniö | B94: =pohjatiedot!C89 -> 1967 | C94: =pohjatiedot!AQ89 -> 1910 | D94: 1904.671987 | E94: 1876.881049 | F94: 1851.075174 | G94: 1825.269302 | H94: 1891 | I94: 1865 | J94: 1839 | K94: 1816 | L94: 1816 | M94: 1816
A95: Kinnula | B95: =pohjatiedot!C90 -> 1656 | C95: =pohjatiedot!AQ90 -> 1615 | D95: 1671.769324 | E95: 1664.961654 | F95: 1659.126506 | G95: 1652.318833 | H95: 1712 | I95: 1706 | J95: 1699 | K95: 1692 | L95: 1692 | M95: 1692
A96: Kirkkonummi | B96: =pohjatiedot!C91 -> 39170 | C96: =pohjatiedot!AQ91 -> 39262 | D96: 39943.48143 | E96: 40244.29274 | F96: 40535.04314 | G96: 40818.75113 | H96: 40002 | I96: 40291 | J96: 40573 | K96: 40841 | L96: 40841 | M96: 40841
A97: Kitee | B97: =pohjatiedot!C92 -> 10486 | C97: =pohjatiedot!AQ92 -> 10358 | D97: 10239.81433 | E97: 10096.2608 | F97: 9961.805732 | G97: 9831.394425 | H97: 9987 | I97: 9854 | J97: 9725 | K97: 9602 | L97: 9602 | M97: 9602
A98: Kittilä | B98: =pohjatiedot!C93 -> 6421 | C98: =pohjatiedot!AQ93 -> 6436 | D98: 6562.134569 | E98: 6619.26397 | F98: 6674.456771 | G98: 6725.776408 | H98: 6836 | I98: 6893 | J98: 6946 | K98: 6992 | L98: 6992 | M98: 6992
A99: Kiuruvesi | B99: =pohjatiedot!C94 -> 8283 | C99: =pohjatiedot!AQ94 -> 8153 | D99: 8181.082493 | E99: 8102.009582 | F99: 8028.867135 | G99: 7957.701472 | H99: 8197 | I99: 8123 | J99: 8051 | K99: 7984 | L99: 7984 | M99: 7984
A100: Kivijärvi | B100: =pohjatiedot!C95 -> 1132 | C100: =pohjatiedot!AQ95 -> 1103 | D100: 1102.215171 | E100: 1086.539222 | F100: 1072.822766 | G100: 1060.086058 | H100: 1109 | I100: 1095 | J100: 1082 | K100: 1070 | L100: 1070 | M100: 1070
A101: Kokemäki | B101: =pohjatiedot!C96 -> 7381 | C101: =pohjatiedot!AQ96 -> 7226 | D101: 7313.060603 | E101: 7259.368522 | F101: 7209.653591 | G101: 7164.910223 | H101: 7301 | I101: 7251 | J101: 7206 | K101: 7162 | L101: 7162 | M101: 7162
A102: Kokkola | B102: =pohjatiedot!C97 -> 47723 | C102: =pohjatiedot!AQ97 -> 47657 | D102: 48402.91448 | E102: 48618.88748 | F102: 48829.86082 | G102: 49031.83551 | H102: 48625 | I102: 48836 | J102: 49038 | K102: 49235 | L102: 49235 | M102: 49235
A103: KOKO MAA (Manner-Suomi) | B103: =pohjatiedot!C98 -> 5483641 | C103: =pohjatiedot!AQ98 -> 5488130 | D103: 5537202.993 | E103: 5557695.497 | F103: 5577842.87 | G103: 5597557.105 | H103: 5564874 | I103: 5584791 | J103: 5604290 | K103: 5623257 | L103: 5623257 | M103: 5623257
A104: Kolari | B104: =pohjatiedot!C99 -> 3854 | C104: =pohjatiedot!AQ99 -> 3834 | D104: 3842.007808 | E104: 3851.012507 | F104: 3860.01722 | G104: 3868.021405 | H104: 3849 | I104: 3858 | J104: 3866 | K104: 3873 | L104: 3873 | M104: 3873
A105: Konnevesi | B105: =pohjatiedot!C100 -> 2748 | C105: =pohjatiedot!AQ100 -> 2698 | D105: 2675.562557 | E105: 2652.728445 | F105: 2632.872686 | G105: 2612.02416 | H105: 2672 | I105: 2652 | J105: 2631 | K105: 2610 | L105: 2610 | M105: 2610
A106: Kontiolahti | B106: =pohjatiedot!C101 -> 14830 | C106: =pohjatiedot!AQ101 -> 14849 | D106: 15355.78593 | E106: 15521.40769 | F106: 15676.24938 | G106: 15824.23097 | H106: 15838 | I106: 15996 | J106: 16147 | K106: 16290 | L106: 16290 | M106: 16290
A107: Korsnäs | B107: =pohjatiedot!C102 -> 2154 | C107: =pohjatiedot!AQ102 -> 2122 | D107: 2161.140717 | E107: 2160.154795 | F107: 2162.126638 | G107: 2166.070326 | H107: 2191 | I107: 2193 | J107: 2197 | K107: 2199 | L107: 2199 | M107: 2199
A108: Koski | B108: =pohjatiedot!C103 -> 2359 | C108: =pohjatiedot!AQ103 -> 2340 | D108: 2399.056133 | E108: 2392.079234 | F108: 2387.095734 | G108: 2380.118831 | H108: 2400 | I108: 2395 | J108: 2388 | K108: 2385 | L108: 2385 | M108: 2385
A109: Kotka | B109: =pohjatiedot!C104 -> 53539 | C109: =pohjatiedot!AQ104 -> 52883 | D109: 54013.59846 | E109: 53954.80131 | F109: 53898.994 | G109: 53842.18992 | H109: 54141 | I109: 54085 | J109: 54028 | K109: 53971 | L109: 53971 | M109: 53971
A110: Kouvola | B110: =pohjatiedot!C105 -> 84196 | C110: =pohjatiedot!AQ105 -> 83177 | D110: 84335.4484 | E110: 84033.83073 | F110: 83746.14948 | G110: 83469.41803 | H110: 84419 | I110: 84130 | J110: 83852 | K110: 83577 | L110: 83577 | M110: 83577
A111: Kristiinankaupunki | B111: =pohjatiedot!C106 -> 6638 | C111: =pohjatiedot!AQ106 -> 6596 | D111: 6497.302482 | E111: 6433.553852 | F111: 6373.85273 | G111: 6319.211031 | H111: 6358 | I111: 6299 | J111: 6245 | K111: 6197 | L111: 6197 | M111: 6197
A112: Kruunupyy | B112: =pohjatiedot!C107 -> 6531 | C112: =pohjatiedot!AQ107 -> 6509 | D112: 6589.032742 | E112: 6581.041173 | F112: 6576.046469 | G112: 6572.050688 | H112: 6588 | I112: 6583 | J112: 6579 | K112: 6576 | L112: 6576 | M112: 6576
A113: Kuhmo | B113: =pohjatiedot!C108 -> 8499 | C113: =pohjatiedot!AQ108 -> 8329 | D113: 8259.537674 | E113: 8137.706776 | F113: 8019.870311 | G113: 7908.025496 | H113: 8149 | I113: 8031 | J113: 7919 | K113: 7809 | L113: 7809 | M113: 7809
A114: Kuhmoinen | B114: =pohjatiedot!C109 -> 2252 | C114: =pohjatiedot!AQ109 -> 2238 | D114: 2175.951872 | E114: 2139.936113 | F114: 2106.921679 | G114: 2077.908986 | H114: 2139 | I114: 2106 | J114: 2077 | K114: 2049 | L114: 2049 | M114: 2049
A115: Kuopio | B115: =pohjatiedot!C110 -> 118209 | C115: =pohjatiedot!AQ110 -> 118664 | D115: 120401.9661 | E115: 121215.1135 | F115: 121996.0258 | G115: 122751.9827 | H115: 116572 | I115: 117323 | J115: 118050 | K115: 118754 | L115: 118754 | M115: 118754
A116: Kuortane | B116: =pohjatiedot!C111 -> 3637 | C116: =pohjatiedot!AQ111 -> 3572 | D116: 3537.782401 | E116: 3491.810635 | F116: 3445.838875 | G116: 3401.9103 | H116: 3418 | I116: 3373 | J116: 3330 | K116: 3289 | L116: 3289 | M116: 3289
A117: Kurikka | B117: =pohjatiedot!C112 -> 21203 | C117: =pohjatiedot!AQ112 -> 20952 | D117: 21121.17262 | E117: 21011.9914 | F117: 20905.88587 | G117: 20802.85572 | H117: 21129 | I117: 21004 | J117: 20883 | K117: 20766 | L117: 20766 | M117: 20766
A118: Kustavi | B118: =pohjatiedot!C113 -> 923 | C118: =pohjatiedot!AQ113 -> 926 | D118: 909.0179186 | E118: 909.0179186 | F118: 912.0717292 | G118: 914.1075993 | H118: 893 | I118: 896 | J118: 898 | K118: 898 | L118: 898 | M118: 898
A119: Kuusamo | B119: =pohjatiedot!C114 -> 15386 | C119: =pohjatiedot!AQ114 -> 15207 | D119: 15063.00435 | E119: 14933.17692 | F119: 14811.40075 | G119: 14693.65026 | H119: 14838 | I119: 14717 | J119: 14600 | K119: 14489 | L119: 14489 | M119: 14489
A120: Kyyjärvi | B120: =pohjatiedot!C115 -> 1352 | C120: =pohjatiedot!AQ115 -> 1343 | D120: 1302.308259 | E120: 1277.736401 | F120: 1255.212204 | G120: 1233.711835 | H120: 1248 | I120: 1226 | J120: 1205 | K120: 1186 | L120: 1186 | M120: 1186
A121: Kärkölä | B121: =pohjatiedot!C116 -> 4508 | C121: =pohjatiedot!AQ116 -> 4451 | D121: 4439.84558 | E121: 4415.808522 | F121: 4391.771463 | G121: 4369.737503 | H121: 4409 | I121: 4385 | J121: 4363 | K121: 4345 | L121: 4345 | M121: 4345
A122: Kärsämäki | B122: =pohjatiedot!C117 -> 2611 | C122: =pohjatiedot!AQ117 -> 2613 | D122: 2519.895906 | E122: 2478.955278 | F122: 2439.038161 | G122: 2399.121045 | H122: 2422 | I122: 2383 | J122: 2344 | K122: 2308 | L122: 2308 | M122: 2308
A123: Lahti | B123: =pohjatiedot!C118 -> 119573 | C123: =pohjatiedot!AQ118 -> 119951 | D123: 121050.4699 | E123: 121539.5882 | F123: 122011.6042 | G123: 122474.4994 | H123: 121300 | I123: 121683 | J123: 122060 | K123: 122425 | L123: 122425 | M123: 122425
A124: Laihia | B124: =pohjatiedot!C119 -> 8051 | C124: =pohjatiedot!AQ119 -> 8058 | D124: 8279.688841 | E124: 8322.59397 | F124: 8360.510087 | G124: 8397.428456 | H124: 8341 | I124: 8379 | J124: 8416 | K124: 8451 | L124: 8451 | M124: 8451
A125: Laitila | B125: =pohjatiedot!C120 -> 8610 | C125: =pohjatiedot!AQ120 -> 8647 | D125: 8576.627791 | E125: 8593.516781 | F125: 8611.399244 | G125: 8630.275176 | H125: 8650 | I125: 8668 | J125: 8687 | K125: 8706 | L125: 8706 | M125: 8706
A126: Lapinjärvi | B126: =pohjatiedot!C121 -> 2706 | C126: =pohjatiedot!AQ121 -> 2665 | D126: 2680.637749 | E126: 2665.544069 | F126: 2651.456647 | G126: 2642.400431 | H126: 2649 | I126: 2635 | J126: 2626 | K126: 2616 | L126: 2616 | M126: 2616
A127: Lapinlahti | B127: =pohjatiedot!C122 -> 9692 | C127: =pohjatiedot!AQ122 -> 9617 | D127: 9683.147007 | E127: 9621.50261 | F127: 9565.823748 | G127: 9512.13342 | H127: 9677 | I127: 9621 | J127: 9567 | K127: 9515 | L127: 9515 | M127: 9515
A128: Lappajärvi | B128: =pohjatiedot!C123 -> 3140 | C128: =pohjatiedot!AQ123 -> 3078 | D128: 3041.859623 | E128: 3002.525229 | F128: 2965.207982 | G128: 2930.916464 | H128: 2977 | I128: 2940 | J128: 2906 | K128: 2872 | L128: 2872 | M128: 2872
A129: Lappeenranta | B129: =pohjatiedot!C124 -> 72909 | C129: =pohjatiedot!AQ124 -> 72699 | D129: 73302.63497 | E129: 73433.22107 | F129: 73557.82589 | G129: 73683.42789 | H129: 73666 | I129: 73791 | J129: 73917 | K129: 74042 | L129: 74042 | M129: 74042
A130: Lapua | B130: =pohjatiedot!C125 -> 14494 | C130: =pohjatiedot!AQ125 -> 14427 | D130: 14777.21243 | E130: 14841.01733 | F130: 14903.8406 | G130: 14964.70066 | H130: 15119 | I130: 15183 | J130: 15245 | K130: 15300 | L130: 15300 | M130: 15300
A131: Laukaa | B131: =pohjatiedot!C126 -> 18978 | C131: =pohjatiedot!AQ126 -> 18927 | D131: 19321.44465 | E131: 19430.58275 | F131: 19532.71197 | G131: 19624.82843 | H131: 19406 | I131: 19508 | J131: 19600 | K131: 19682 | L131: 19682 | M131: 19682
A132: Lemi | B132: =pohjatiedot!C127 -> 3063 | C132: =pohjatiedot!AQ127 -> 3043 | D132: 3088.763502 | E132: 3091.708911 | F132: 3093.672534 | G132: 3093.672527 | H132: 3149 | I132: 3151 | J132: 3151 | K132: 3150 | L132: 3150 | M132: 3150
A133: Lempäälä | B133: =pohjatiedot!C128 -> 22829 | C133: =pohjatiedot!AQ128 -> 23206 | D133: 23803.55115 | E133: 24133.97744 | F133: 24449.56416 | G133: 24755.25795 | H133: 24395 | I133: 24714 | J133: 25023 | K133: 25313 | L133: 25313 | M133: 25313
A134: Leppävirta | B134: =pohjatiedot!C129 -> 9782 | C134: =pohjatiedot!AQ129 -> 9650 | D134: 9502.219293 | E134: 9392.777082 | F134: 9288.401637 | G134: 9191.119679 | H134: 9269 | I134: 9166 | J134: 9070 | K134: 8981 | L134: 8981 | M134: 8981
A135: Lestijärvi | B135: =pohjatiedot!C130 -> 789 | C135: =pohjatiedot!AQ130 -> 737 | D135: 794.7597122 | E135: 788.6695982 | F135: 782.5794868 | G135: 779.5344328 | H135: 777 | I135: 771 | J135: 768 | K135: 765 | L135: 765 | M135: 765
A136: Lieksa | B136: =pohjatiedot!C131 -> 11297 | C136: =pohjatiedot!AQ131 -> 11098 | D136: 11225.70995 | E136: 11120.98884 | F136: 11021.16128 | G136: 10926.22717 | H136: 11363 | I136: 11261 | J136: 11164 | K136: 11072 | L136: 11072 | M136: 11072
A137: Lieto | B137: =pohjatiedot!C132 -> 19596 | C137: =pohjatiedot!AQ132 -> 19831 | D137: 20093.70893 | E137: 20305.79267 | F137: 20513.93083 | G137: 20715.16387 | H137: 20585 | I137: 20796 | J137: 21000 | K137: 21193 | L137: =K137 -> 21193 | M137: 21193
A138: Liminka | B138: =pohjatiedot!C133 -> 10133 | C138: =pohjatiedot!AQ133 -> 10161 | D138: 10445.36817 | E138: 10561.16392 | F138: 10665.0831 | G138: 10758.11563 | H138: 10671 | I138: 10776 | J138: 10870 | K138: 10952 | L138: 10952 | M138: 10952
A139: Liperi | B139: =pohjatiedot!C134 -> 12150 | C139: =pohjatiedot!AQ134 -> 12145 | D139: 12376.48443 | E139: 12395.35553 | F139: 12414.22667 | G139: 12432.10455 | H139: 12480 | I139: 12499 | J139: 12517 | K139: 12532 | L139: 12532 | M139: 12532
A140: Lohja | B140: =pohjatiedot!C135 -> 46785 | C140: =pohjatiedot!AQ135 -> 46296 | D140: 47424.46543 | E140: 47526.16056 | F140: 47633.77952 | G140: 47737.44925 | H140: 48136 | I140: 48245 | J140: 48350 | K140: 48461 | L140: 48461 | M140: 48461
A141: Loimaa | B141: =pohjatiedot!C136 -> 16150 | C141: =pohjatiedot!AQ136 -> 16032 | D141: 16061.90392 | E141: 16001.46497 | F141: 15949.94319 | G141: 15902.38465 | H141: 16150 | I141: 16098 | J141: 16050 | K141: 16006 | L141: 16006 | M141: 16006
A142: Loppi | B142: =pohjatiedot!C137 -> 8028 | C142: =pohjatiedot!AQ137 -> 7861 | D142: 8122.391576 | E142: 8127.269872 | F142: 8131.172523 | G142: 8135.075179 | H142: 8330 | I142: 8334 | J142: 8338 | K142: 8339 | L142: 8339 | M142: 8339
A143: Loviisa | B143: =pohjatiedot!C138 -> 15085 | C143: =pohjatiedot!AQ138 -> 14891 | D143: 15211.93448 | E143: 15220.78723 | F143: 15231.60722 | G143: 15245.37818 | H143: 15474 | I143: 15485 | J143: 15499 | K143: 15515 | L143: 15515 | M143: 15515
A144: Luhanka | B144: =pohjatiedot!C139 -> 734 | C144: =pohjatiedot!AQ139 -> 707 | D144: 724.2008181 | E144: 717.0203557 | F144: 709.8398962 | G144: 702.6594334 | H144: 699 | I144: 692 | J144: 685 | K144: 680 | L144: 680 | M144: 680
A145: Lumijoki | B145: =pohjatiedot!C140 -> 2081 | C145: =pohjatiedot!AQ140 -> 2052 | D145: 2142.963928 | E145: 2154.952537 | F145: 2166.941146 | G145: 2172.93545 | H145: 2157 | I145: 2169 | J145: 2175 | K145: 2181 | L145: 2181 | M145: 2181
A146: Luoto | B146: =pohjatiedot!C141 -> 5264 | C146: =pohjatiedot!AQ141 -> 5340 | D146: 5393.594816 | E146: 5463.500854 | F146: 5531.437687 | G146: 5599.374548 | H146: 5549 | I146: 5618 | J146: 5687 | K146: 5753 | L146: 5753 | M146: 5753
A147: Luumäki | B147: =pohjatiedot!C142 -> 4747 | C147: =pohjatiedot!AQ142 -> 4662 | D147: 4690.37844 | E147: 4649.488453 | F147: 4607.601178 | G147: 4571.697787 | H147: 4662 | I147: 4620 | J147: 4584 | K147: 4549 | L147: 4549 | M147: 4549
A148: Maalahti | B148: =pohjatiedot!C143 -> 5477 | C148: =pohjatiedot!AQ143 -> 5477 | D148: 5501.066392 | E148: 5500.070556 | F148: 5502.06226 | G148: 5504.053961 | H148: 5523 | I148: 5525 | J148: 5527 | K148: 5531 | L148: 5531 | M148: 5531
A149: Marttila | B149: =pohjatiedot!C144 -> 1988 | C149: =pohjatiedot!AQ144 -> 2018 | D149: 2049.096367 | E149: 2057.815926 | F149: 2070.410848 | G149: 2080.099249 | H149: 2124 | I149: 2137 | J149: 2147 | K149: 2158 | L149: 2158 | M149: 2158
A150: Masku | B150: =pohjatiedot!C145 -> 9656 | C150: =pohjatiedot!AQ145 -> 9554 | D150: 9862.371431 | E150: 9918.973215 | F150: 9974.599073 | G150: 10030.22498 | H150: 10164 | I150: 10221 | J150: 10278 | K150: 10331 | L150: 10331 | M150: 10331
A151: Merijärvi | B151: =pohjatiedot!C146 -> 1119 | C151: =pohjatiedot!AQ146 -> 1104 | D151: 1098.914893 | E151: 1087.88564 | F151: 1078.861703 | G151: 1069.837765 | H151: 1085 | I151: 1076 | J151: 1067 | K151: 1061 | L151: 1061 | M151: 1061
A152: Merikarvia | B152: =pohjatiedot!C147 -> 3156 | C152: =pohjatiedot!AQ147 -> 3115 | D152: 3073 | E152: 3044 | F152: 3015 | G152: 2987 | H152: 3044 | I152: 3015 | J152: 2987 | K152: 2961 | L152: 2961 | M152: 2961
A153: Miehikkälä | B153: =pohjatiedot!C148 -> 1992 | C153: =pohjatiedot!AQ148 -> 1940 | D153: 1967.020836 | E153: 1946.336094 | F153: 1927.621324 | G153: 1908.906549 | H153: 1976 | I153: 1957 | J153: 1938 | K153: 1921 | L153: 1921 | M153: 1921
A154: Mikkeli | B154: =pohjatiedot!C149 -> 54261 | C154: =pohjatiedot!AQ149 -> 53818 | D154: 54561.90446 | E154: 54573.87906 | F154: 54590.84296 | G154: 54605.81098 | H154: 54690 | I154: 54707 | J154: 54722 | K154: 54732 | L154: 54732 | M154: 54732
A155: Muhos | B155: =pohjatiedot!C150 -> 9019 | C155: =pohjatiedot!AQ150 -> 8980 | D155: 9016.946285 | E155: 9009.963395 | F155: 9001.98288 | G155: 8990.012204 | H155: 9032 | I155: 9024 | J155: 9012 | K155: 8999 | L155: 8999 | M155: 8999
A156: Multia | B156: =pohjatiedot!C151 -> 1636 | C156: =pohjatiedot!AQ151 -> 1584 | D156: 1578.772665 | E156: 1553.308587 | F156: 1528.823902 | G156: 1506.297985 | H156: 1586 | I156: 1561 | J156: 1538 | K156: 1517 | L156: 1517 | M156: 1517
A157: Muonio | B157: =pohjatiedot!C152 -> 2332 | C157: =pohjatiedot!AQ152 -> 2299 | D157: 2342.044012 | E157: 2343.038513 | F157: 2342.04402 | G157: 2342.044022 | H157: 2356 | I157: 2355 | J157: 2355 | K157: 2357 | L157: 2357 | M157: 2357
A158: Mustasaari | B158: =pohjatiedot!C153 -> 19384 | C158: =pohjatiedot!AQ153 -> 19444 | D158: 19877.70812 | E158: 20032.74806 | F158: 20182.85047 | G158: 20328.01534 | H158: 20286 | I158: 20438 | J158: 20585 | K158: 20720 | L158: 20720 | M158: 20720
A159: Muurame | B159: =pohjatiedot!C154 -> 10097 | C159: =pohjatiedot!AQ154 -> 10170 | D159: 10201.59918 | E159: 10279.07466 | F159: 10353.53149 | G159: 10423.9637 | H159: 10216 | I159: 10290 | J159: 10360 | K159: 10427 | L159: 10427 | M159: 10427
A160: Mynämäki | B160: =pohjatiedot!C155 -> 7838 | C160: =pohjatiedot!AQ155 -> 7766 | D160: 7735.905297 | E160: 7707.88029 | F160: 7684.859737 | G160: 7663.84099 | H160: 7701 | I160: 7678 | J160: 7657 | K160: 7638 | L160: 7638 | M160: 7638
A161: Myrskylä | B161: =pohjatiedot!C156 -> 1969 | C161: =pohjatiedot!AQ156 -> 1922 | D161: 1988.010119 | E161: 1992.030364 | F161: 1997.055659 | G161: 2001.07591 | H161: 1982 | I161: 1987 | J161: 1991 | K161: 1994 | L161: 1994 | M161: 1994
A162: Mäntsälä | B162: =pohjatiedot!C157 -> 20803 | C162: =pohjatiedot!AQ157 -> 20686 | D162: 21278.00136 | E162: 21414.68014 | F162: 21556.34727 | G162: 21697.01674 | H162: 21465 | I162: 21607 | J162: 21748 | K162: 21887 | L162: 21887 | M162: 21887
A163: Mänttä-Vilppula | B163: =pohjatiedot!C158 -> 10256 | C163: =pohjatiedot!AQ158 -> 9983 | D163: 10039.89067 | E163: 9920.272431 | F163: 9808.695749 | G163: 9706.165825 | H163: 9869 | I163: 9758 | J163: 9656 | K163: 9565 | L163: 9565 | M163: 9565
A164: Mäntyharju | B164: =pohjatiedot!C159 -> 6054 | C164: =pohjatiedot!AQ159 -> 5924 | D164: 5984.40355 | E164: 5948.846756 | F164: 5916.253037 | G164: 5883.659321 | H164: 6023 | I164: 5990 | J164: 5957 | K164: 5926 | L164: 5926 | M164: 5926
A165: Naantali | B165: =pohjatiedot!C160 -> 19167 | C165: =pohjatiedot!AQ160 -> 19245 | D165: 19176.09411 | E165: 19221.55425 | F165: 19272.06552 | G165: 19321.56653 | H165: 19027 | I165: 19077 | J165: 19126 | K165: 19175 | L165: 19175 | M165: 19175
A166: Nakkila | B166: =pohjatiedot!C161 -> 5521 | C166: =pohjatiedot!AQ161 -> 5437 | D166: 5487.706368 | E166: 5465.961119 | F166: 5447.181175 | G166: 5426.424356 | H166: 5530 | I166: 5511 | J166: 5490 | K166: 5468 | L166: 5468 | M166: 5468
A167: Nivala | B167: =pohjatiedot!C162 -> 10815 | C167: =pohjatiedot!AQ162 -> 10737 | D167: 10838.09817 | E167: 10818.13665 | F167: 10798.17517 | G167: 10776.21753 | H167: 10839 | I167: 10819 | J167: 10797 | K167: 10775 | L167: 10775 | M167: 10775
A168: Nokia | B168: =pohjatiedot!C163 -> 33322 | C168: =pohjatiedot!AQ163 -> 33527 | D168: 33922.21197 | E168: 34148.327 | F168: 34365.4769 | G168: 34574.65806 | H168: 34282 | I168: 34500 | J168: 34710 | K168: 34904 | L168: 34904 | M168: 34904
A169: Nousiainen | B169: =pohjatiedot!C164 -> 4813 | C169: =pohjatiedot!AQ164 -> 4733 | D169: 4830.855103 | E169: 4836.800782 | F169: 4842.74644 | G169: 4849.683057 | H169: 4881 | I169: 4887 | J169: 4894 | K169: 4900 | L169: 4900 | M169: 4900
A170: Nurmes | B170: =pohjatiedot!C165 -> 7765 | C170: =pohjatiedot!AQ165 -> 7641 | D170: 7613.830683 | E170: 7532.479926 | F170: 7454.142121 | G170: 7377.813001 | H170: 7500 | I170: 7422 | J170: 7346 | K170: 7275 | L170: 7275 | M170: 7275
A171: Nurmijärvi | B171: =pohjatiedot!C166 -> 42159 | C171: =pohjatiedot!AQ166 -> 42665 | D171: 43007.60942 | E171: 43331.8574 | F171: 43647.15365 | G171: 43956.48214 | H171: 43566 | I171: 43883 | J171: 44194 | K171: 44501 | L171: 44501 | M171: 44501
A172: Närpiö | B172: =pohjatiedot!C167 -> 9507 | C172: =pohjatiedot!AQ167 -> 9471 | D172: 9389.390361 | E172: 9378.253477 | F172: 9369.141497 | G172: 9361.041949 | H172: 9263 | I172: 9254 | J172: 9246 | K172: 9240 | L172: 9240 | M172: 9240
A173: Orimattila | B173: =pohjatiedot!C168 -> 16221 | C173: =pohjatiedot!AQ168 -> 16091 | D173: 16277.9987 | E173: 16277.99876 | F173: 16277.99869 | G173: 16276.99737 | H173: 16257 | I173: 16257 | J173: 16256 | K173: 16256 | L173: 16256 | M173: 16256
A174: Oripää | B174: =pohjatiedot!C169 -> 1382 | C174: =pohjatiedot!AQ169 -> 1364 | D174: 1370.6305 | E174: 1371.584313 | F174: 1372.538127 | G174: 1373.491944 | H174: 1438 | I174: 1439 | J174: 1440 | K174: 1441 | L174: 1441 | M174: 1441
A175: Orivesi | B175: =pohjatiedot!C170 -> 9285 | C175: =pohjatiedot!AQ170 -> 9221 | D175: 9295.399312 | E175: 9301.258403 | F175: 9309.07046 | G175: 9318.835573 | H175: 9525 | I175: 9533 | J175: 9543 | K175: 9550 | L175: 9550 | M175: 9550
A176: Oulainen | B176: =pohjatiedot!C171 -> 7472 | C176: =pohjatiedot!AQ171 -> 7430 | D176: 7354.926516 | E176: 7307.500842 | F176: 7260.075231 | G176: 7217.589758 | H176: 7396 | I176: 7348 | J176: 7305 | K176: 7265 | L176: 7265 | M176: 7265
A177: Oulu | B177: =pohjatiedot!C172 -> 201810 | C177: =pohjatiedot!AQ172 -> 203567 | D177: 207763.4784 | E177: 209997.2804 | F177: 212155.4949 | G177: 214248.0683 | H177: 211144 | I177: 213314 | J177: 215418 | K177: 217444 | L177: 217444 | M177: 217444
A178: Outokumpu | B178: =pohjatiedot!C173 -> 7003 | C178: =pohjatiedot!AQ173 -> 6803 | D178: 6891.139813 | E178: 6832.594896 | F178: 6778.087582 | G178: 6727.61784 | H178: 6769 | I178: 6715 | J178: 6665 | K178: 6616 | L178: 6616 | M178: 6616
A179: Padasjoki | B179: =pohjatiedot!C174 -> 3027 | C179: =pohjatiedot!AQ174 -> 2963 | D179: 2946.943483 | E179: 2912.2035 | F179: 2880.441225 | G179: 2849.671516 | H179: 2934 | I179: 2902 | J179: 2871 | K179: 2843 | L179: 2843 | M179: 2843
A180: Paimio | B180: =pohjatiedot!C175 -> 10730 | C180: =pohjatiedot!AQ175 -> 10832 | D180: 10877.67723 | E180: 10933.56768 | F180: 10987.46205 | G180: 11037.36423 | H180: 10955 | I180: 11009 | J180: 11059 | K180: 11108 | L180: 11108 | M180: 11108
A181: Paltamo | B181: =pohjatiedot!C176 -> 3435 | C181: =pohjatiedot!AQ176 -> 3336 | D181: 3323.399265 | E181: 3277.411278 | F181: 3234.489143 | G181: 3195.654837 | H181: 3207 | I181: 3165 | J181: 3127 | K181: 3090 | L181: 3090 | M181: 3090
A182: Parainen | B182: =pohjatiedot!C177 -> 15285 | C182: =pohjatiedot!AQ177 -> 15217 | D182: 15404.9553 | E182: 15411.91059 | F182: 15416.87863 | G182: 15423.83391 | H182: 15511 | I182: 15516 | J182: 15523 | K182: 15529 | L182: 15529 | M182: 15529
A183: Parikkala | B183: =pohjatiedot!C178 -> 4969 | C183: =pohjatiedot!AQ178 -> 4842 | D183: 4883.132079 | E183: 4812.749963 | F183: 4747.324299 | G183: 4686.85515 | H183: 4855 | I183: 4789 | J183: 4728 | K183: 4670 | L183: 4670 | M183: 4670
A184: Parkano | B184: =pohjatiedot!C179 -> 6562 | C184: =pohjatiedot!AQ179 -> 6469 | D184: 6553.166153 | E184: 6512.215103 | F184: 6473.261677 | G184: 6437.304661 | H184: 6520 | I184: 6481 | J184: 6445 | K184: 6407 | L184: 6407 | M184: 6407
A185: Pedersören kunta | B185: =pohjatiedot!C180 -> 11084 | C185: =pohjatiedot!AQ180 -> 11016 | D185: 11217.82794 | E185: 11268.4347 | F185: 11318.04914 | G185: 11367.6636 | H185: 11356 | I185: 11406 | J185: 11456 | K185: 11503 | L185: 11503 | M185: 11503
A186: Pelkosenniemi | B186: =pohjatiedot!C181 -> 958 | C186: =pohjatiedot!AQ181 -> 954 | D186: 928.430423 | E186: 922.2750833 | F186: 915.0938538 | G186: 908.9385127 | H186: 899 | I186: 892 | J186: 886 | K186: 882 | L186: 882 | M186: 882
A187: Pello | B187: =pohjatiedot!C182 -> 3510 | C187: =pohjatiedot!AQ182 -> 3438 | D187: 3391.687383 | E187: 3339.290542 | F187: 3289.916603 | G187: 3243.565555 | H187: 3314 | I187: 3265 | J187: 3219 | K187: 3172 | L187: 3172 | M187: 3172
A188: Perho | B188: =pohjatiedot!C183 -> 2860 | C188: =pohjatiedot!AQ183 -> 2825 | D188: 2839.609067 | E188: 2818.166491 | F188: 2795.702843 | G188: 2776.302421 | H188: 2760 | I188: 2738 | J188: 2719 | K188: 2701 | L188: 2701 | M188: 2701
A189: Pertunmaa | B189: =pohjatiedot!C184 -> 1739 | C189: =pohjatiedot!AQ184 -> 1713 | D189: 1737.740494 | E189: 1719.659958 | F189: 1701.579426 | G189: 1684.503363 | H189: 1712 | I189: 1694 | J189: 1677 | K189: 1662 | L189: 1662 | M189: 1662
A190: Petäjävesi | B190: =pohjatiedot!C185 -> 3920 | C190: =pohjatiedot!AQ185 -> 3900 | D190: 4005.327784 | E190: 4013.112688 | F190: 4018.951356 | G190: 4026.736244 | H190: 4124 | I190: 4130 | J190: 4138 | K190: 4145 | L190: 4145 | M190: 4145
A191: Pieksämäki | B191: =pohjatiedot!C186 -> 18220 | C191: =pohjatiedot!AQ186 -> 17933 | D191: 17880.95494 | E191: 17707.11239 | F191: 17542.21022 | G191: 17387.24193 | H191: 17825 | I191: 17659 | J191: 17503 | K191: 17355 | L191: 17355 | M191: 17355
A192: Pielavesi | B192: =pohjatiedot!C187 -> 4624 | C192: =pohjatiedot!AQ187 -> 4498 | D192: 4522.251394 | E192: 4473.766235 | F192: 4426.291182 | G192: 4380.836334 | H192: 4429 | I192: 4382 | J192: 4337 | K192: 4291 | L192: 4291 | M192: 4291
A193: Pietarsaari | B193: =pohjatiedot!C188 -> 19379 | C193: =pohjatiedot!AQ188 -> 19278 | D193: 19371.04574 | E193: 19377.99232 | F193: 19377.99229 | G193: 19378.98469 | H193: 19527 | I193: 19527 | J193: 19528 | K193: 19529 | L193: 19529 | M193: 19529
A194: Pihtipudas | B194: =pohjatiedot!C189 -> 4127 | C194: =pohjatiedot!AQ189 -> 4053 | D194: 3981.436035 | E194: 3914.753906 | F194: 3851.149414 | G194: 3791.648438 | H194: 3816 | I194: 3754 | J194: 3696 | K194: 3640 | L194: 3640 | M194: 3640
A195: Pirkkala | B195: =pohjatiedot!C190 -> 19237 | C195: =pohjatiedot!AQ190 -> 19368 | D195: 20381.14506 | E195: 20762.3667 | F195: 21129.86823 | G195: 21482.66965 | H195: 21186 | I195: 21561 | J195: 21921 | K195: 22263 | L195: 22263 | M195: 22263
A196: Polvijärvi | B196: =pohjatiedot!C191 -> 4414 | C196: =pohjatiedot!AQ191 -> 4307 | D196: 4411.318392 | E196: 4381.411146 | F196: 4358.482258 | G196: 4334.556463 | H196: 4395 | I196: 4372 | J196: 4348 | K196: 4326 | L196: 4326 | M196: 4326
A197: Pomarkku | B197: =pohjatiedot!C192 -> 2166 | C197: =pohjatiedot!AQ192 -> 2146 | D197: 2137.184737 | E197: 2108.944441 | F197: 2080.704159 | G197: 2053.472449 | H197: 2091 | I197: 2063 | J197: 2036 | K197: 2012 | L197: 2012 | M197: 2012
A198: Pori | B198: =pohjatiedot!C193 -> 84587 | C198: =pohjatiedot!AQ193 -> 84403 | D198: 85258.85756 | E198: 85324.4831 | F198: 85389.11393 | G198: 85442.80711 | H198: 85812 | I198: 85877 | J198: 85931 | K198: 85987 | L198: 85987 | M198: 85987
A199: Pornainen | B199: =pohjatiedot!C194 -> 5121 | C199: =pohjatiedot!AQ194 -> 5068 | D199: 5159.465974 | E199: 5181.240029 | F199: 5203.014119 | G199: 5227.757394 | H199: 5235 | I199: 5257 | J199: 5282 | K199: 5303 | L199: 5303 | M199: 5303
A200: Porvoo | B200: =pohjatiedot!C195 -> 50159 | C200: =pohjatiedot!AQ195 -> 50262 | D200: 50790.63189 | E200: 51005.84215 | F200: 51221.05241 | G200: 51428.25502 | H200: 50956 | I200: 51171 | J200: 51378 | K200: 51581 | L200: 51581 | M200: 51581
A201: Posio | B201: =pohjatiedot!C196 -> 3310 | C201: =pohjatiedot!AQ196 -> 3237 | D201: 3257.548718 | E201: 3209.571612 | F201: 3164.531855 | G201: 3123.408604 | H201: 3278 | I201: 3232 | J201: 3190 | K201: 3151 | L201: =K201 -> 3151 | M201: 3151
... 102 more rows
